Workbook

Sheet Precios Promedio (hidden)
A1: Instituto Nacional de Estadística y Geografía (INEGI)
A2: Consulta en línea de los precios promedio del INPC
A3: Publicados en el diario oficial de la Federación mensualmente
A4: Fecha de consulta: 06/11/2023 13:31:05
A6: Año | B6: Mes | C6: Fecha_Pub_DOF | D6: Clave ciudad | E6: Nombre ciudad | F6: División | G6: Grupo | H6: Clase | I6: Subclase | J6: Clave genérico | K6: Genérico | L6: Consecutivo | M6: Especificación | N6: Precio promedio | O6: Cantidad | P6: Unidad | Q6: Estatus | R6: Precio promedio ajustado | S6: Clasificación CIEP
A7: 2023 | B7: 12 | C7: 22/12/2023 12:00:00 a. m. | D7: 01 | E7: Área Met. de la Cd. de México | F7: 1. Alimentos, bebidas y tabaco | G7: 1.2. Bebidas alcohólicas y tabaco | H7: 1.2.1. Bebidas alcohólicas | I7: 27 Vinos y licores | J7: 102 | K7: Brandy | L7: 001 | M7: TORRES 10, GRAN RESERVA, BOTELLA DE 700 ML | N7: 505.01 | O7: 1 | P7: LT | R7: =_xlfn.IFNA(VLOOKUP(M7,'Limpiador distinto de LT'!$A$4:$C$18,3,FALSE),N7) -> 505.01 | S7: =IF(K7="cerveza",K7,IF(K7="Vino de mesa","Fermentados","Destilados")) -> Destilados
A8: 2023 | B8: 12 | C8: 22/12/2023 12:00:00 a. m. | D8: 01 | E8: Área Met. de la Cd. de México | F8: 1. Alimentos, bebidas y tabaco | G8: 1.2. Bebidas alcohólicas y tabaco | H8: 1.2.1. Bebidas alcohólicas | I8: 27 Vinos y licores | J8: 102 | K8: Brandy | L8: 002 | M8: LOS REYES, AÑEJO, BOTELLA DE 900 ML | N8: 97.78 | O8: 1 | P8: LT | R8: =_xlfn.IFNA(VLOOKUP(M8,'Limpiador distinto de LT'!$A$4:$C$18,3,FALSE),N8) -> 97.78 | S8: =IF(K8="cerveza",K8,IF(K8="Vino de mesa","Fermentados","Destilados")) -> Destilados
A9: 2023 | B9: 12 | C9: 22/12/2023 12:00:00 a. m. | D9: 01 | E9: Área Met. de la Cd. de México | F9: 1. Alimentos, bebidas y tabaco | G9: 1.2. Bebidas alcohólicas y tabaco | H9: 1.2.1. Bebidas alcohólicas | I9: 27 Vinos y licores | J9: 102 | K9: Brandy | L9: 003 | M9: TORRES 10, GRAN RESERVA, BOTELLA DE 700 ML | N9: 500.01 | O9: 1 | P9: LT | R9: =_xlfn.IFNA(VLOOKUP(M9,'Limpiador distinto de LT'!$A$4:$C$18,3,FALSE),N9) -> 500.01 | S9: Destilados
A10: 2023 | B10: 12 | C10: 22/12/2023 12:00:00 a. m. | D10: 01 | E10: Área Met. de la Cd. de México | F10: 1. Alimentos, bebidas y tabaco | G10: 1.2. Bebidas alcohólicas y tabaco | H10: 1.2.1. Bebidas alcohólicas | I10: 27 Vinos y licores | J10: 102 | K10: Brandy | L10: 004 | M10: PRESIDENTE, GRAN RESERVA, ESPECIAL, BOTELLA DE 900 ML | N10: 193.33 | O10: 1 | P10: LT | R10: =_xlfn.IFNA(VLOOKUP(M10,'Limpiador distinto de LT'!$A$4:$C$18,3,FALSE),N10) -> 193.33 | S10: Destilados
A11: 2023 | B11: 12 | C11: 22/12/2023 12:00:00 a. m. | D11: 01 | E11: Área Met. de la Cd. de México | F11: 1. Alimentos, bebidas y tabaco | G11: 1.2. Bebidas alcohólicas y tabaco | H11: 1.2.1. Bebidas alcohólicas | I11: 27 Vinos y licores | J11: 102 | K11: Brandy | L11: 005 | M11: DON PEDRO, GRAN RESERVA, BOTELLA DE 1 LT | N11: 205 | O11: 1 | P11: LT | R11: =_xlfn.IFNA(VLOOKUP(M11,'Limpiador distinto de LT'!$A$4:$C$18,3,FALSE),N11) -> 205 | S11: Destilados
A12: 2023 | B12: 12 | C12: 22/12/2023 12:00:00 a. m. | D12: 01 | E12: Área Met. de la Cd. de México | F12: 1. Alimentos, bebidas y tabaco | G12: 1.2. Bebidas alcohólicas y tabaco | H12: 1.2.1. Bebidas alcohólicas | I12: 27 Vinos y licores | J12: 102 | K12: Brandy | L12: 006 | M12: DON PEDRO, RESERVA, ESPECIAL, BOTELLA DE 1LT | N12: 205 | O12: 1 | P12: LT | R12: =_xlfn.IFNA(VLOOKUP(M12,'Limpiador distinto de LT'!$A$4:$C$18,3,FALSE),N12) -> 205 | S12: Destilados
A13: 2023 | B13: 12 | C13: 22/12/2023 12:00:00 a. m. | D13: 01 | E13: Área Met. de la Cd. de México | F13: 1. Alimentos, bebidas y tabaco | G13: 1.2. Bebidas alcohólicas y tabaco | H13: 1.2.1. Bebidas alcohólicas | I13: 27 Vinos y licores | J13: 102 | K13: Brandy | L13: 007 | M13: DON PEDRO, GRAN RESERVA, ESPECIAL, BOTELLA DE 1 LT | N13: 205 | O13: 1 | P13: LT | R13: =_xlfn.IFNA(VLOOKUP(M13,'Limpiador distinto de LT'!$A$4:$C$18,3,FALSE),N13) -> 205 | S13: Destilados
A14: 2023 | B14: 12 | C14: 22/12/2023 12:00:00 a. m. | D14: 01 | E14: Área Met. de la Cd. de México | F14: 1. Alimentos, bebidas y tabaco | G14: 1.2. Bebidas alcohólicas y tabaco | H14: 1.2.1. Bebidas alcohólicas | I14: 27 Vinos y licores | J14: 102 | K14: Brandy | L14: 008 | M14: TORRES 10, GRAN RESERVA, BOTELLA DE 700 ML | N14: 461.5 | O14: 1 | P14: LT | R14: =_xlfn.IFNA(VLOOKUP(M14,'Limpiador distinto de LT'!$A$4:$C$18,3,FALSE),N14) -> 461.5 | S14: Destilados
A15: 2023 | B15: 12 | C15: 22/12/2023 12:00:00 a. m. | D15: 01 | E15: Área Met. de la Cd. de México | F15: 1. Alimentos, bebidas y tabaco | G15: 1.2. Bebidas alcohólicas y tabaco | H15: 1.2.1. Bebidas alcohólicas | I15: 27 Vinos y licores | J15: 102 | K15: Brandy | L15: 009 | M15: TORRES 10, GRAN RESERVA, ESPAÑOL, BOTELLA DE 1 LT | N15: 560 | O15: 1 | P15: LT | R15: =_xlfn.IFNA(VLOOKUP(M15,'Limpiador distinto de LT'!$A$4:$C$18,3,FALSE),N15) -> 560 | S15: Destilados
A16: 2023 | B16: 12 | C16: 22/12/2023 12:00:00 a. m. | D16: 01 | E16: Área Met. de la Cd. de México | F16: 1. Alimentos, bebidas y tabaco | G16: 1.2. Bebidas alcohólicas y tabaco | H16: 1.2.1. Bebidas alcohólicas | I16: 27 Vinos y licores | J16: 102 | K16: Brandy | L16: 010 | M16: SOBERANO, AÑEJO, DE JEREZ, ESPAÑOL, BOTELLA DE 700 ML | N16: 208.81 | O16: 1 | P16: LT | R16: =_xlfn.IFNA(VLOOKUP(M16,'Limpiador distinto de LT'!$A$4:$C$18,3,FALSE),N16) -> 208.81 | S16: Destilados
A17: 2023 | B17: 12 | C17: 22/12/2023 12:00:00 a. m. | D17: 01 | E17: Área Met. de la Cd. de México | F17: 1. Alimentos, bebidas y tabaco | G17: 1.2. Bebidas alcohólicas y tabaco | H17: 1.2.1. Bebidas alcohólicas | I17: 27 Vinos y licores | J17: 102 | K17: Brandy | L17: 011 | M17: TERRY CENTENARIO, SOLERA, DE JEREZ, BOTELLA DE 700 ML | N17: 485.72 | O17: 1 | P17: LT | R17: =_xlfn.IFNA(VLOOKUP(M17,'Limpiador distinto de LT'!$A$4:$C$18,3,FALSE),N17) -> 485.72 | S17: Destilados
A18: 2023 | B18: 12 | C18: 22/12/2023 12:00:00 a. m. | D18: 01 | E18: Área Met. de la Cd. de México | F18: 1. Alimentos, bebidas y tabaco | G18: 1.2. Bebidas alcohólicas y tabaco | H18: 1.2.1. Bebidas alcohólicas | I18: 27 Vinos y licores | J18: 102 | K18: Brandy | L18: 012 | M18: PRESIDENTE, AÑEJO, CLASICO, BOTELLA DE 900 ML | N18: 165.55 | O18: 1 | P18: LT | R18: =_xlfn.IFNA(VLOOKUP(M18,'Limpiador distinto de LT'!$A$4:$C$18,3,FALSE),N18) -> 165.55 | S18: Destilados
A19: 2023 | B19: 12 | C19: 22/12/2023 12:00:00 a. m. | D19: 01 | E19: Área Met. de la Cd. de México | F19: 1. Alimentos, bebidas y tabaco | G19: 1.2. Bebidas alcohólicas y tabaco | H19: 1.2.1. Bebidas alcohólicas | I19: 27 Vinos y licores | J19: 102 | K19: Brandy | L19: 013 | M19: TORRES 5, SOLERA, CORTO AÑEJAMIENTO, BOTELLA DE 700 ML | N19: 378.58 | O19: 1 | P19: LT | R19: =_xlfn.IFNA(VLOOKUP(M19,'Limpiador distinto de LT'!$A$4:$C$18,3,FALSE),N19) -> 378.58 | S19: Destilados
A20: 2023 | B20: 12 | C20: 22/12/2023 12:00:00 a. m. | D20: 01 | E20: Área Met. de la Cd. de México | F20: 1. Alimentos, bebidas y tabaco | G20: 1.2. Bebidas alcohólicas y tabaco | H20: 1.2.1. Bebidas alcohólicas | I20: 27 Vinos y licores | J20: 102 | K20: Brandy | L20: 014 | M20: TORRES 10, RESERVA, IMPERIAL, BOTELLA DE 700 ML | N20: 515.7 | O20: 1 | P20: LT | R20: =_xlfn.IFNA(VLOOKUP(M20,'Limpiador distinto de LT'!$A$4:$C$18,3,FALSE),N20) -> 515.7 | S20: Destilados
A21: 2023 | B21: 12 | C21: 22/12/2023 12:00:00 a. m. | D21: 01 | E21: Área Met. de la Cd. de México | F21: 1. Alimentos, bebidas y tabaco | G21: 1.2. Bebidas alcohólicas y tabaco | H21: 1.2.1. Bebidas alcohólicas | I21: 27 Vinos y licores | J21: 102 | K21: Brandy | L21: 015 | M21: MARTELL, COGNAC, VSOP, BOTELLA DE 700 ML | N21: 1581.59 | O21: 1 | P21: LT | R21: =_xlfn.IFNA(VLOOKUP(M21,'Limpiador distinto de LT'!$A$4:$C$18,3,FALSE),N21) -> 1581.59 | S21: Destilados
A22: 2023 | B22: 12 | C22: 22/12/2023 12:00:00 a. m. | D22: 01 | E22: Área Met. de la Cd. de México | F22: 1. Alimentos, bebidas y tabaco | G22: 1.2. Bebidas alcohólicas y tabaco | H22: 1.2.1. Bebidas alcohólicas | I22: 27 Vinos y licores | J22: 102 | K22: Brandy | L22: 016 | M22: DON PEDRO, AÑEJO, ESPECIAL, BOTELLA DE 1 LT | N22: 176.29 | O22: 1 | P22: LT | R22: =_xlfn.IFNA(VLOOKUP(M22,'Limpiador distinto de LT'!$A$4:$C$18,3,FALSE),N22) -> 176.29 | S22: Destilados
A23: 2023 | B23: 12 | C23: 22/12/2023 12:00:00 a. m. | D23: 01 | E23: Área Met. de la Cd. de México | F23: 1. Alimentos, bebidas y tabaco | G23: 1.2. Bebidas alcohólicas y tabaco | H23: 1.2.1. Bebidas alcohólicas | I23: 27 Vinos y licores | J23: 102 | K23: Brandy | L23: 017 | M23: TERRY CENTENARIO, SOLERA, BOTELLA DE 700 ML | N23: 485.72 | O23: 1 | P23: LT | R23: =_xlfn.IFNA(VLOOKUP(M23,'Limpiador distinto de LT'!$A$4:$C$18,3,FALSE),N23) -> 485.72 | S23: Destilados
A24: 2023 | B24: 12 | C24: 22/12/2023 12:00:00 a. m. | D24: 01 | E24: Área Met. de la Cd. de México | F24: 1. Alimentos, bebidas y tabaco | G24: 1.2. Bebidas alcohólicas y tabaco | H24: 1.2.1. Bebidas alcohólicas | I24: 27 Vinos y licores | J24: 102 | K24: Brandy | L24: 018 | M24: TORRES 10, GRAN RESERVA, BOTELLA DE 700 ML | N24: 464.3 | O24: 1 | P24: LT | R24: =_xlfn.IFNA(VLOOKUP(M24,'Limpiador distinto de LT'!$A$4:$C$18,3,FALSE),N24) -> 464.3 | S24: Destilados
A25: 2023 | B25: 12 | C25: 22/12/2023 12:00:00 a. m. | D25: 01 | E25: Área Met. de la Cd. de México | F25: 1. Alimentos, bebidas y tabaco | G25: 1.2. Bebidas alcohólicas y tabaco | H25: 1.2.1. Bebidas alcohólicas | I25: 27 Vinos y licores | J25: 103 | K25: Otros licores | L25: 001 | M25: BEEFEATER, GINEBRA, SECO, BOTELLA 750 ML | N25: 644.65 | O25: 1 | P25: LT | R25: =_xlfn.IFNA(VLOOKUP(M25,'Limpiador distinto de LT'!$A$4:$C$18,3,FALSE),N25) -> 644.65 | S25: Destilados
A26: 2023 | B26: 12 | C26: 22/12/2023 12:00:00 a. m. | D26: 01 | E26: Área Met. de la Cd. de México | F26: 1. Alimentos, bebidas y tabaco | G26: 1.2. Bebidas alcohólicas y tabaco | H26: 1.2.1. Bebidas alcohólicas | I26: 27 Vinos y licores | J26: 103 | K26: Otros licores | L26: 002 | M26: ABSOLUT, VODKA, NATURAL, BOTELLA DE 750 ML | N26: 321.99 | O26: 1 | P26: LT | R26: =_xlfn.IFNA(VLOOKUP(M26,'Limpiador distinto de LT'!$A$4:$C$18,3,FALSE),N26) -> 321.99 | S26: Destilados
A27: 2023 | B27: 12 | C27: 22/12/2023 12:00:00 a. m. | D27: 01 | E27: Área Met. de la Cd. de México | F27: 1. Alimentos, bebidas y tabaco | G27: 1.2. Bebidas alcohólicas y tabaco | H27: 1.2.1. Bebidas alcohólicas | I27: 27 Vinos y licores | J27: 103 | K27: Otros licores | L27: 003 | M27: CHIVAS REGAL, WHISKY, 12 AÑOS, BLENDED SCOTCH, DE 750 ML | N27: 1011.97 | O27: 1 | P27: LT | R27: =_xlfn.IFNA(VLOOKUP(M27,'Limpiador distinto de LT'!$A$4:$C$18,3,FALSE),N27) -> 1011.97 | S27: Destilados
A28: 2023 | B28: 12 | C28: 22/12/2023 12:00:00 a. m. | D28: 01 | E28: Área Met. de la Cd. de México | F28: 1. Alimentos, bebidas y tabaco | G28: 1.2. Bebidas alcohólicas y tabaco | H28: 1.2.1. Bebidas alcohólicas | I28: 27 Vinos y licores | J28: 103 | K28: Otros licores | L28: 004 | M28: WYBOROWA, VODKA, BOTELLA DE 1 LT | N28: 258.67 | O28: 1 | P28: LT | R28: =_xlfn.IFNA(VLOOKUP(M28,'Limpiador distinto de LT'!$A$4:$C$18,3,FALSE),N28) -> 258.67 | S28: Destilados
A29: 2023 | B29: 12 | C29: 22/12/2023 12:00:00 a. m. | D29: 01 | E29: Área Met. de la Cd. de México | F29: 1. Alimentos, bebidas y tabaco | G29: 1.2. Bebidas alcohólicas y tabaco | H29: 1.2.1. Bebidas alcohólicas | I29: 27 Vinos y licores | J29: 103 | K29: Otros licores | L29: 005 | M29: HOLANDESA, ROMPOPE, BOTELLA DE 1 LT | N29: 131 | O29: 1 | P29: LT | R29: =_xlfn.IFNA(VLOOKUP(M29,'Limpiador distinto de LT'!$A$4:$C$18,3,FALSE),N29) -> 131 | S29: Destilados
A30: 2023 | B30: 12 | C30: 22/12/2023 12:00:00 a. m. | D30: 01 | E30: Área Met. de la Cd. de México | F30: 1. Alimentos, bebidas y tabaco | G30: 1.2. Bebidas alcohólicas y tabaco | H30: 1.2.1. Bebidas alcohólicas | I30: 27 Vinos y licores | J30: 103 | K30: Otros licores | L30: 006 | M30: CORONADO, ROMPOPE, BOTELLA DE 1 LT | N30: 147 | O30: 1 | P30: LT | R30: =_xlfn.IFNA(VLOOKUP(M30,'Limpiador distinto de LT'!$A$4:$C$18,3,FALSE),N30) -> 147 | S30: Destilados
A31: 2023 | B31: 12 | C31: 22/12/2023 12:00:00 a. m. | D31: 01 | E31: Área Met. de la Cd. de México | F31: 1. Alimentos, bebidas y tabaco | G31: 1.2. Bebidas alcohólicas y tabaco | H31: 1.2.1. Bebidas alcohólicas | I31: 27 Vinos y licores | J31: 103 | K31: Otros licores | L31: 007 | M31: JOHNNIE WALKER, WHISKY, ESCOSES, RED LABEL, BLENDED, DE 1 LT | N31: 522 | O31: 1 | P31: LT | R31: =_xlfn.IFNA(VLOOKUP(M31,'Limpiador distinto de LT'!$A$4:$C$18,3,FALSE),N31) -> 522 | S31: Destilados
A32: 2023 | B32: 12 | C32: 22/12/2023 12:00:00 a. m. | D32: 01 | E32: Área Met. de la Cd. de México | F32: 1. Alimentos, bebidas y tabaco | G32: 1.2. Bebidas alcohólicas y tabaco | H32: 1.2.1. Bebidas alcohólicas | I32: 27 Vinos y licores | J32: 103 | K32: Otros licores | L32: 008 | M32: JACK DANIEL´S, WHISKY, AMERICANO, BOTELLA DE 700 ML | N32: 778.59 | O32: 1 | P32: LT | R32: =_xlfn.IFNA(VLOOKUP(M32,'Limpiador distinto de LT'!$A$4:$C$18,3,FALSE),N32) -> 778.59 | S32: Destilados
A33: 2023 | B33: 12 | C33: 22/12/2023 12:00:00 a. m. | D33: 01 | E33: Área Met. de la Cd. de México | F33: 1. Alimentos, bebidas y tabaco | G33: 1.2. Bebidas alcohólicas y tabaco | H33: 1.2.1. Bebidas alcohólicas | I33: 27 Vinos y licores | J33: 103 | K33: Otros licores | L33: 009 | M33: PASSPORT SCOTCH, WHISKY, ESCOSES, BLENDED, BOTELLA DE 700 ML | N33: 312.15 | O33: 1 | P33: LT | R33: =_xlfn.IFNA(VLOOKUP(M33,'Limpiador distinto de LT'!$A$4:$C$18,3,FALSE),N33) -> 312.15 | S33: Destilados
A34: 2023 | B34: 12 | C34: 22/12/2023 12:00:00 a. m. | D34: 01 | E34: Área Met. de la Cd. de México | F34: 1. Alimentos, bebidas y tabaco | G34: 1.2. Bebidas alcohólicas y tabaco | H34: 1.2.1. Bebidas alcohólicas | I34: 27 Vinos y licores | J34: 103 | K34: Otros licores | L34: 010 | M34: JACK DANIEL´S, WHISKY, AMERICANO, 7, TENNESSE, SOUR MASH, DE | N34: 800 | O34: 1 | P34: LT | R34: =_xlfn.IFNA(VLOOKUP(M34,'Limpiador distinto de LT'!$A$4:$C$18,3,FALSE),N34) -> 800 | S34: Destilados
A35: 2023 | B35: 12 | C35: 22/12/2023 12:00:00 a. m. | D35: 01 | E35: Área Met. de la Cd. de México | F35: 1. Alimentos, bebidas y tabaco | G35: 1.2. Bebidas alcohólicas y tabaco | H35: 1.2.1. Bebidas alcohólicas | I35: 27 Vinos y licores | J35: 103 | K35: Otros licores | L35: 011 | M35: JACK DANIEL´S, WHISKY, AMERICANO, 7, TENNESSE, BOTELLA DE 70 | N35: 625.82 | O35: 1 | P35: LT | R35: =_xlfn.IFNA(VLOOKUP(M35,'Limpiador distinto de LT'!$A$4:$C$18,3,FALSE),N35) -> 625.82 | S35: Destilados
A36: 2023 | B36: 12 | C36: 22/12/2023 12:00:00 a. m. | D36: 01 | E36: Área Met. de la Cd. de México | F36: 1. Alimentos, bebidas y tabaco | G36: 1.2. Bebidas alcohólicas y tabaco | H36: 1.2.1. Bebidas alcohólicas | I36: 27 Vinos y licores | J36: 103 | K36: Otros licores | L36: 012 | M36: JOHNNIE WALKER, WHISKY, RED LABEL, BOTELLA DE 700 ML | N36: 430.01 | O36: 1 | P36: LT | R36: =_xlfn.IFNA(VLOOKUP(M36,'Limpiador distinto de LT'!$A$4:$C$18,3,FALSE),N36) -> 430.01 | S36: Destilados
A37: 2023 | B37: 12 | C37: 22/12/2023 12:00:00 a. m. | D37: 01 | E37: Área Met. de la Cd. de México | F37: 1. Alimentos, bebidas y tabaco | G37: 1.2. Bebidas alcohólicas y tabaco | H37: 1.2.1. Bebidas alcohólicas | I37: 27 Vinos y licores | J37: 103 | K37: Otros licores | L37: 013 | M37: BUCHANAN´S, WHISKY, DE LUXE, BOTELLA DE 750 ML | N37: 1271.34 | O37: 1 | P37: LT | R37: =_xlfn.IFNA(VLOOKUP(M37,'Limpiador distinto de LT'!$A$4:$C$18,3,FALSE),N37) -> 1271.34 | S37: Destilados
A38: 2023 | B38: 12 | C38: 22/12/2023 12:00:00 a. m. | D38: 01 | E38: Área Met. de la Cd. de México | F38: 1. Alimentos, bebidas y tabaco | G38: 1.2. Bebidas alcohólicas y tabaco | H38: 1.2.1. Bebidas alcohólicas | I38: 27 Vinos y licores | J38: 103 | K38: Otros licores | L38: 014 | M38: MICO, ANIS, BOTELLA DE 1 LT | N38: 170 | O38: 1 | P38: LT | R38: =_xlfn.IFNA(VLOOKUP(M38,'Limpiador distinto de LT'!$A$4:$C$18,3,FALSE),N38) -> 170 | S38: Destilados
A39: 2023 | B39: 12 | C39: 22/12/2023 12:00:00 a. m. | D39: 01 | E39: Área Met. de la Cd. de México | F39: 1. Alimentos, bebidas y tabaco | G39: 1.2. Bebidas alcohólicas y tabaco | H39: 1.2.1. Bebidas alcohólicas | I39: 27 Vinos y licores | J39: 103 | K39: Otros licores | L39: 015 | M39: TRES CORONAS, JEREZ, BOTELLA DE 1 LT | N39: 100 | O39: 1 | P39: LT | R39: =_xlfn.IFNA(VLOOKUP(M39,'Limpiador distinto de LT'!$A$4:$C$18,3,FALSE),N39) -> 100 | S39: Destilados
A40: 2023 | B40: 12 | C40: 22/12/2023 12:00:00 a. m. | D40: 01 | E40: Área Met. de la Cd. de México | F40: 1. Alimentos, bebidas y tabaco | G40: 1.2. Bebidas alcohólicas y tabaco | H40: 1.2.1. Bebidas alcohólicas | I40: 27 Vinos y licores | J40: 103 | K40: Otros licores | L40: 016 | M40: JACK DANIEL´S, AMERICANO, WHISKY, BOURBON, CORN, BOTELLA DE | N40: 800 | O40: 1 | P40: LT | R40: =_xlfn.IFNA(VLOOKUP(M40,'Limpiador distinto de LT'!$A$4:$C$18,3,FALSE),N40) -> 800 | S40: Destilados
A41: 2023 | B41: 12 | C41: 22/12/2023 12:00:00 a. m. | D41: 01 | E41: Área Met. de la Cd. de México | F41: 1. Alimentos, bebidas y tabaco | G41: 1.2. Bebidas alcohólicas y tabaco | H41: 1.2.1. Bebidas alcohólicas | I41: 27 Vinos y licores | J41: 103 | K41: Otros licores | L41: 017 | M41: THE MACALLAN, WHISKY, ESCOCES, DE MALTA, 12 AÑOS, DE 700 ML | N41: 2503.76 | O41: 1 | P41: LT | R41: =_xlfn.IFNA(VLOOKUP(M41,'Limpiador distinto de LT'!$A$4:$C$18,3,FALSE),N41) -> 2503.76 | S41: Destilados
A42: 2023 | B42: 12 | C42: 22/12/2023 12:00:00 a. m. | D42: 01 | E42: Área Met. de la Cd. de México | F42: 1. Alimentos, bebidas y tabaco | G42: 1.2. Bebidas alcohólicas y tabaco | H42: 1.2.1. Bebidas alcohólicas | I42: 27 Vinos y licores | J42: 103 | K42: Otros licores | L42: 018 | M42: CHINCHON, ANIS, DULCE, ALCOHOLERA, BOTELLA DE 1 LT | N42: 312.7 | O42: 1 | P42: LT | R42: =_xlfn.IFNA(VLOOKUP(M42,'Limpiador distinto de LT'!$A$4:$C$18,3,FALSE),N42) -> 312.7 | S42: Destilados
A43: 2023 | B43: 12 | C43: 22/12/2023 12:00:00 a. m. | D43: 01 | E43: Área Met. de la Cd. de México | F43: 1. Alimentos, bebidas y tabaco | G43: 1.2. Bebidas alcohólicas y tabaco | H43: 1.2.1. Bebidas alcohólicas | I43: 27 Vinos y licores | J43: 103 | K43: Otros licores | L43: 019 | M43: BUCHANAN´S DELUX, WHISKY, ESCOCES, BLENDED, 12 AÑOS, 750 ML | N43: 1236.05 | O43: 1 | P43: LT | R43: =_xlfn.IFNA(VLOOKUP(M43,'Limpiador distinto de LT'!$A$4:$C$18,3,FALSE),N43) -> 1236.05 | S43: Destilados
A44: 2023 | B44: 12 | C44: 22/12/2023 12:00:00 a. m. | D44: 01 | E44: Área Met. de la Cd. de México | F44: 1. Alimentos, bebidas y tabaco | G44: 1.2. Bebidas alcohólicas y tabaco | H44: 1.2.1. Bebidas alcohólicas | I44: 27 Vinos y licores | J44: 103 | K44: Otros licores | L44: 020 | M44: JACK DANIEL´S, WHISKY, AMERICANO, TENESSEE, HONEY, BOTELLA D | N44: 780.2 | O44: 1 | P44: LT | R44: =_xlfn.IFNA(VLOOKUP(M44,'Limpiador distinto de LT'!$A$4:$C$18,3,FALSE),N44) -> 780.2 | S44: Destilados
A45: 2023 | B45: 12 | C45: 22/12/2023 12:00:00 a. m. | D45: 01 | E45: Área Met. de la Cd. de México | F45: 1. Alimentos, bebidas y tabaco | G45: 1.2. Bebidas alcohólicas y tabaco | H45: 1.2.1. Bebidas alcohólicas | I45: 27 Vinos y licores | J45: 103 | K45: Otros licores | L45: 021 | M45: LAS CADENAS, ANIS, DULCE, BOTELLA DE 1 LT | N45: 469.58 | O45: 1 | P45: LT | R45: =_xlfn.IFNA(VLOOKUP(M45,'Limpiador distinto de LT'!$A$4:$C$18,3,FALSE),N45) -> 469.58 | S45: Destilados
A46: 2023 | B46: 12 | C46: 22/12/2023 12:00:00 a. m. | D46: 01 | E46: Área Met. de la Cd. de México | F46: 1. Alimentos, bebidas y tabaco | G46: 1.2. Bebidas alcohólicas y tabaco | H46: 1.2.1. Bebidas alcohólicas | I46: 27 Vinos y licores | J46: 103 | K46: Otros licores | L46: 022 | M46: JIM BEAM, WHISKY, BOURBON, BOTELLA DE 700 ML | N46: 529.03 | O46: 1 | P46: LT | R46: =_xlfn.IFNA(VLOOKUP(M46,'Limpiador distinto de LT'!$A$4:$C$18,3,FALSE),N46) -> 529.03 | S46: Destilados
A47: 2023 | B47: 12 | C47: 22/12/2023 12:00:00 a. m. | D47: 01 | E47: Área Met. de la Cd. de México | F47: 1. Alimentos, bebidas y tabaco | G47: 1.2. Bebidas alcohólicas y tabaco | H47: 1.2.1. Bebidas alcohólicas | I47: 27 Vinos y licores | J47: 103 | K47: Otros licores | L47: 023 | M47: HOLANDESA, ROMPOPE, BOTELLA DE 1 LT | N47: 142 | O47: 1 | P47: LT | R47: =_xlfn.IFNA(VLOOKUP(M47,'Limpiador distinto de LT'!$A$4:$C$18,3,FALSE),N47) -> 142 | S47: Destilados
A48: 2023 | B48: 12 | C48: 22/12/2023 12:00:00 a. m. | D48: 01 | E48: Área Met. de la Cd. de México | F48: 1. Alimentos, bebidas y tabaco | G48: 1.2. Bebidas alcohólicas y tabaco | H48: 1.2.1. Bebidas alcohólicas | I48: 27 Vinos y licores | J48: 103 | K48: Otros licores | L48: 024 | M48: DON PANCHO, LICOR, DE CAFE, BOTELLA DE 1 LT | N48: 163.25 | O48: 1 | P48: LT | R48: =_xlfn.IFNA(VLOOKUP(M48,'Limpiador distinto de LT'!$A$4:$C$18,3,FALSE),N48) -> 163.25 | S48: Destilados
A49: 2023 | B49: 12 | C49: 22/12/2023 12:00:00 a. m. | D49: 01 | E49: Área Met. de la Cd. de México | F49: 1. Alimentos, bebidas y tabaco | G49: 1.2. Bebidas alcohólicas y tabaco | H49: 1.2.1. Bebidas alcohólicas | I49: 27 Vinos y licores | J49: 103 | K49: Otros licores | L49: 025 | M49: SMIRNOFF, VODKA, BOTELLA DE 1 LT | N49: 289 | O49: 1 | P49: LT | R49: =_xlfn.IFNA(VLOOKUP(M49,'Limpiador distinto de LT'!$A$4:$C$18,3,FALSE),N49) -> 289 | S49: Destilados
A50: 2023 | B50: 12 | C50: 22/12/2023 12:00:00 a. m. | D50: 01 | E50: Área Met. de la Cd. de México | F50: 1. Alimentos, bebidas y tabaco | G50: 1.2. Bebidas alcohólicas y tabaco | H50: 1.2.1. Bebidas alcohólicas | I50: 27 Vinos y licores | J50: 103 | K50: Otros licores | L50: 026 | M50: BLACK & WHITE, WHISKY, BOTELLA DE 700 ML | N50: 304.29 | O50: 1 | P50: LT | R50: =_xlfn.IFNA(VLOOKUP(M50,'Limpiador distinto de LT'!$A$4:$C$18,3,FALSE),N50) -> 304.29 | S50: Destilados
A51: 2023 | B51: 12 | C51: 22/12/2023 12:00:00 a. m. | D51: 01 | E51: Área Met. de la Cd. de México | F51: 1. Alimentos, bebidas y tabaco | G51: 1.2. Bebidas alcohólicas y tabaco | H51: 1.2.1. Bebidas alcohólicas | I51: 27 Vinos y licores | J51: 103 | K51: Otros licores | L51: 027 | M51: SPERRY´S, COCTEL, PIÑA COLADA, BOTELLA DE 750 ML | N51: 221.33 | O51: 1 | P51: LT | R51: =_xlfn.IFNA(VLOOKUP(M51,'Limpiador distinto de LT'!$A$4:$C$18,3,FALSE),N51) -> 221.33 | S51: Destilados
A52: 2023 | B52: 12 | C52: 22/12/2023 12:00:00 a. m. | D52: 01 | E52: Área Met. de la Cd. de México | F52: 1. Alimentos, bebidas y tabaco | G52: 1.2. Bebidas alcohólicas y tabaco | H52: 1.2.1. Bebidas alcohólicas | I52: 27 Vinos y licores | J52: 104 | K52: Ron | L52: 001 | M52: BACARDI, SOLERA, BOTELLA DE 750 ML | N52: 505.32 | O52: 1 | P52: LT | R52: =_xlfn.IFNA(VLOOKUP(M52,'Limpiador distinto de LT'!$A$4:$C$18,3,FALSE),N52) -> 505.32 | S52: Destilados
A53: 2023 | B53: 12 | C53: 22/12/2023 12:00:00 a. m. | D53: 01 | E53: Área Met. de la Cd. de México | F53: 1. Alimentos, bebidas y tabaco | G53: 1.2. Bebidas alcohólicas y tabaco | H53: 1.2.1. Bebidas alcohólicas | I53: 27 Vinos y licores | J53: 104 | K53: Ron | L53: 002 | M53: BACARDI, AÑEJO, BOTELLA DE 750 ML | N53: 313.33 | O53: 1 | P53: LT | R53: =_xlfn.IFNA(VLOOKUP(M53,'Limpiador distinto de LT'!$A$4:$C$18,3,FALSE),N53) -> 313.33 | S53: Destilados
A54: 2023 | B54: 12 | C54: 22/12/2023 12:00:00 a. m. | D54: 01 | E54: Área Met. de la Cd. de México | F54: 1. Alimentos, bebidas y tabaco | G54: 1.2. Bebidas alcohólicas y tabaco | H54: 1.2.1. Bebidas alcohólicas | I54: 27 Vinos y licores | J54: 104 | K54: Ron | L54: 003 | M54: MATUSALEM, BLANCO, PLATINO, BOTELLA DE 750 ML | N54: 366.67 | O54: 1 | P54: LT | R54: =_xlfn.IFNA(VLOOKUP(M54,'Limpiador distinto de LT'!$A$4:$C$18,3,FALSE),N54) -> 366.67 | S54: Destilados
A55: 2023 | B55: 12 | C55: 22/12/2023 12:00:00 a. m. | D55: 01 | E55: Área Met. de la Cd. de México | F55: 1. Alimentos, bebidas y tabaco | G55: 1.2. Bebidas alcohólicas y tabaco | H55: 1.2.1. Bebidas alcohólicas | I55: 27 Vinos y licores | J55: 104 | K55: Ron | L55: 004 | M55: BACARDI, AÑEJO, BOTELLA DE 1 LT | N55: 289.25 | O55: 1 | P55: LT | R55: =_xlfn.IFNA(VLOOKUP(M55,'Limpiador distinto de LT'!$A$4:$C$18,3,FALSE),N55) -> 289.25 | S55: Destilados
A56: 2023 | B56: 12 | C56: 22/12/2023 12:00:00 a. m. | D56: 01 | E56: Área Met. de la Cd. de México | F56: 1. Alimentos, bebidas y tabaco | G56: 1.2. Bebidas alcohólicas y tabaco | H56: 1.2.1. Bebidas alcohólicas | I56: 27 Vinos y licores | J56: 104 | K56: Ron | L56: 005 | M56: RON MATUSALEN, AÑEJO, CLASICO, BOTELLA DE 750 ML | N56: 406.66 | O56: 1 | P56: LT | R56: =_xlfn.IFNA(VLOOKUP(M56,'Limpiador distinto de LT'!$A$4:$C$18,3,FALSE),N56) -> 406.66 | S56: Destilados
A57: 2023 | B57: 12 | C57: 22/12/2023 12:00:00 a. m. | D57: 01 | E57: Área Met. de la Cd. de México | F57: 1. Alimentos, bebidas y tabaco | G57: 1.2. Bebidas alcohólicas y tabaco | H57: 1.2.1. Bebidas alcohólicas | I57: 27 Vinos y licores | J57: 104 | K57: Ron | L57: 006 | M57: FLOR DE CAÑA, AÑEJO, 7 AÑOS, BOTELLA DE 750 ML | N57: 585.32 | O57: 1 | P57: LT | R57: =_xlfn.IFNA(VLOOKUP(M57,'Limpiador distinto de LT'!$A$4:$C$18,3,FALSE),N57) -> 585.32 | S57: Destilados
A58: 2023 | B58: 12 | C58: 22/12/2023 12:00:00 a. m. | D58: 01 | E58: Área Met. de la Cd. de México | F58: 1. Alimentos, bebidas y tabaco | G58: 1.2. Bebidas alcohólicas y tabaco | H58: 1.2.1. Bebidas alcohólicas | I58: 27 Vinos y licores | J58: 104 | K58: Ron | L58: 007 | M58: ANTILLANO, BLANCO, BOTELLA DE 1 LT | N58: 198 | O58: 1 | P58: LT | R58: =_xlfn.IFNA(VLOOKUP(M58,'Limpiador distinto de LT'!$A$4:$C$18,3,FALSE),N58) -> 198 | S58: Destilados
A59: 2023 | B59: 12 | C59: 22/12/2023 12:00:00 a. m. | D59: 01 | E59: Área Met. de la Cd. de México | F59: 1. Alimentos, bebidas y tabaco | G59: 1.2. Bebidas alcohólicas y tabaco | H59: 1.2.1. Bebidas alcohólicas | I59: 27 Vinos y licores | J59: 104 | K59: Ron | L59: 008 | M59: ANTILLANO, AÑEJO, ESPECIAL, BOTELLA DE 1 LT | N59: 187 | O59: 1 | P59: LT | R59: =_xlfn.IFNA(VLOOKUP(M59,'Limpiador distinto de LT'!$A$4:$C$18,3,FALSE),N59) -> 187 | S59: Destilados
A60: 2023 | B60: 12 | C60: 22/12/2023 12:00:00 a. m. | D60: 01 | E60: Área Met. de la Cd. de México | F60: 1. Alimentos, bebidas y tabaco | G60: 1.2. Bebidas alcohólicas y tabaco | H60: 1.2.1. Bebidas alcohólicas | I60: 27 Vinos y licores | J60: 104 | K60: Ron | L60: 009 | M60: BACARDI, AÑEJO, BOTELLA DE 980 ML | N60: 315.3 | O60: 1 | P60: LT | R60: =_xlfn.IFNA(VLOOKUP(M60,'Limpiador distinto de LT'!$A$4:$C$18,3,FALSE),N60) -> 315.3 | S60: Destilados
A61: 2023 | B61: 12 | C61: 22/12/2023 12:00:00 a. m. | D61: 01 | E61: Área Met. de la Cd. de México | F61: 1. Alimentos, bebidas y tabaco | G61: 1.2. Bebidas alcohólicas y tabaco | H61: 1.2.1. Bebidas alcohólicas | I61: 27 Vinos y licores | J61: 104 | K61: Ron | L61: 010 | M61: FLOR DE CAÑA, AÑEJO, GRAN RESERVA, BOTELLA DE 750 ML | N61: 501.41 | O61: 1 | P61: LT | R61: =_xlfn.IFNA(VLOOKUP(M61,'Limpiador distinto de LT'!$A$4:$C$18,3,FALSE),N61) -> 501.41 | S61: Destilados
A62: 2023 | B62: 12 | C62: 22/12/2023 12:00:00 a. m. | D62: 01 | E62: Área Met. de la Cd. de México | F62: 1. Alimentos, bebidas y tabaco | G62: 1.2. Bebidas alcohólicas y tabaco | H62: 1.2.1. Bebidas alcohólicas | I62: 27 Vinos y licores | J62: 104 | K62: Ron | L62: 011 | M62: APPLETON ESTATE, ORO, 8 AÑOS, BOTELLA DE 750 ML | N62: 652.32 | O62: 1 | P62: LT | R62: =_xlfn.IFNA(VLOOKUP(M62,'Limpiador distinto de LT'!$A$4:$C$18,3,FALSE),N62) -> 652.32 | S62: Destilados
A63: 2023 | B63: 12 | C63: 22/12/2023 12:00:00 a. m. | D63: 01 | E63: Área Met. de la Cd. de México | F63: 1. Alimentos, bebidas y tabaco | G63: 1.2. Bebidas alcohólicas y tabaco | H63: 1.2.1. Bebidas alcohólicas | I63: 27 Vinos y licores | J63: 104 | K63: Ron | L63: 012 | M63: ANTILLANO, ORO, ESPECIAL, BOTELLA DE 1 LT | N63: 180 | O63: 1 | P63: LT | R63: =_xlfn.IFNA(VLOOKUP(M63,'Limpiador distinto de LT'!$A$4:$C$18,3,FALSE),N63) -> 180 | S63: Destilados
A64: 2023 | B64: 12 | C64: 22/12/2023 12:00:00 a. m. | D64: 01 | E64: Área Met. de la Cd. de México | F64: 1. Alimentos, bebidas y tabaco | G64: 1.2. Bebidas alcohólicas y tabaco | H64: 1.2.1. Bebidas alcohólicas | I64: 27 Vinos y licores | J64: 104 | K64: Ron | L64: 013 | M64: THE KRAKEN, NEGRO, BLACK SPICED, BOTELLA DE 750 ML | N64: 222.66 | O64: 1 | P64: LT | R64: =_xlfn.IFNA(VLOOKUP(M64,'Limpiador distinto de LT'!$A$4:$C$18,3,FALSE),N64) -> 222.66 | S64: Destilados
A65: 2023 | B65: 12 | C65: 22/12/2023 12:00:00 a. m. | D65: 01 | E65: Área Met. de la Cd. de México | F65: 1. Alimentos, bebidas y tabaco | G65: 1.2. Bebidas alcohólicas y tabaco | H65: 1.2.1. Bebidas alcohólicas | I65: 27 Vinos y licores | J65: 105 | K65: Tequila | L65: 001 | M65: JOSE CUERVO, REPOSADO, TRADICIONAL, 100% DE AGAVE, DE 950 ML | N65: 441.04 | O65: 1 | P65: LT | R65: =_xlfn.IFNA(VLOOKUP(M65,'Limpiador distinto de LT'!$A$4:$C$18,3,FALSE),N65) -> 441.04 | S65: Destilados
A66: 2023 | B66: 12 | C66: 22/12/2023 12:00:00 a. m. | D66: 01 | E66: Área Met. de la Cd. de México | F66: 1. Alimentos, bebidas y tabaco | G66: 1.2. Bebidas alcohólicas y tabaco | H66: 1.2.1. Bebidas alcohólicas | I66: 27 Vinos y licores | J66: 105 | K66: Tequila | L66: 002 | M66: JOSE CUERVO, BLANCO, TRADICIONAL PLATA, BOTELLA DE 950 ML | N66: 473.67 | O66: 1 | P66: LT | R66: =_xlfn.IFNA(VLOOKUP(M66,'Limpiador distinto de LT'!$A$4:$C$18,3,FALSE),N66) -> 473.67 | S66: Destilados
A67: 2023 | B67: 12 | C67: 22/12/2023 12:00:00 a. m. | D67: 01 | E67: Área Met. de la Cd. de México | F67: 1. Alimentos, bebidas y tabaco | G67: 1.2. Bebidas alcohólicas y tabaco | H67: 1.2.1. Bebidas alcohólicas | I67: 27 Vinos y licores | J67: 105 | K67: Tequila | L67: 003 | M67: MAYORAZGO, REPOSADO, BOTELLA DE 750 ML | N67: 338.66 | O67: 1 | P67: LT | R67: =_xlfn.IFNA(VLOOKUP(M67,'Limpiador distinto de LT'!$A$4:$C$18,3,FALSE),N67) -> 338.66 | S67: Destilados
A68: 2023 | B68: 12 | C68: 22/12/2023 12:00:00 a. m. | D68: 01 | E68: Área Met. de la Cd. de México | F68: 1. Alimentos, bebidas y tabaco | G68: 1.2. Bebidas alcohólicas y tabaco | H68: 1.2.1. Bebidas alcohólicas | I68: 27 Vinos y licores | J68: 105 | K68: Tequila | L68: 004 | M68: CAZADORES, BLANCO, BOTELLA DE 950 ML | N68: 389.46 | O68: 1 | P68: LT | R68: =_xlfn.IFNA(VLOOKUP(M68,'Limpiador distinto de LT'!$A$4:$C$18,3,FALSE),N68) -> 389.46 | S68: Destilados
A69: 2023 | B69: 12 | C69: 22/12/2023 12:00:00 a. m. | D69: 01 | E69: Área Met. de la Cd. de México | F69: 1. Alimentos, bebidas y tabaco | G69: 1.2. Bebidas alcohólicas y tabaco | H69: 1.2.1. Bebidas alcohólicas | I69: 27 Vinos y licores | J69: 105 | K69: Tequila | L69: 005 | M69: CABRITO, REPOSADO, BOTELLA DE 1 LT | N69: 179.37 | O69: 1 | P69: LT | R69: =_xlfn.IFNA(VLOOKUP(M69,'Limpiador distinto de LT'!$A$4:$C$18,3,FALSE),N69) -> 179.37 | S69: Destilados
A70: 2023 | B70: 12 | C70: 22/12/2023 12:00:00 a. m. | D70: 01 | E70: Área Met. de la Cd. de México | F70: 1. Alimentos, bebidas y tabaco | G70: 1.2. Bebidas alcohólicas y tabaco | H70: 1.2.1. Bebidas alcohólicas | I70: 27 Vinos y licores | J70: 105 | K70: Tequila | L70: 006 | M70: HORNITOS, REPOSADO, 100% DE AGAVE, BOTELLA DE 1 LT | N70: 460 | O70: 1 | P70: LT | R70: =_xlfn.IFNA(VLOOKUP(M70,'Limpiador distinto de LT'!$A$4:$C$18,3,FALSE),N70) -> 460 | S70: Destilados
A71: 2023 | B71: 12 | C71: 22/12/2023 12:00:00 a. m. | D71: 01 | E71: Área Met. de la Cd. de México | F71: 1. Alimentos, bebidas y tabaco | G71: 1.2. Bebidas alcohólicas y tabaco | H71: 1.2.1. Bebidas alcohólicas | I71: 27 Vinos y licores | J71: 105 | K71: Tequila | L71: 007 | M71: DON JULIO 70, AÑEJO, CRISTALINO, BOTELLA DE 700 ML | N71: 1607.18 | O71: 1 | P71: LT | R71: =_xlfn.IFNA(VLOOKUP(M71,'Limpiador distinto de LT'!$A$4:$C$18,3,FALSE),N71) -> 1607.18 | S71: Destilados
A72: 2023 | B72: 12 | C72: 22/12/2023 12:00:00 a. m. | D72: 01 | E72: Área Met. de la Cd. de México | F72: 1. Alimentos, bebidas y tabaco | G72: 1.2. Bebidas alcohólicas y tabaco | H72: 1.2.1. Bebidas alcohólicas | I72: 27 Vinos y licores | J72: 105 | K72: Tequila | L72: 008 | M72: JOSE CUERVO, AÑEJO, 1800, BOTELLA DE 700 ML | N72: 1075.81 | O72: 1 | P72: LT | R72: =_xlfn.IFNA(VLOOKUP(M72,'Limpiador distinto de LT'!$A$4:$C$18,3,FALSE),N72) -> 1075.81 | S72: =IF(K72="cerveza",K72,IF(K72="Vino de mesa","Fermentados","Destilados")) -> Destilados
A73: 2023 | B73: 12 | C73: 22/12/2023 12:00:00 a. m. | D73: 01 | E73: Área Met. de la Cd. de México | F73: 1. Alimentos, bebidas y tabaco | G73: 1.2. Bebidas alcohólicas y tabaco | H73: 1.2.1. Bebidas alcohólicas | I73: 27 Vinos y licores | J73: 105 | K73: Tequila | L73: 009 | M73: JOSE CUERVO, REPOSADO, TRADICIONAL, 100% DE AGAVE, DE 950 ML | N73: 447.37 | O73: 1 | P73: LT | R73: =_xlfn.IFNA(VLOOKUP(M73,'Limpiador distinto de LT'!$A$4:$C$18,3,FALSE),N73) -> 447.37 | S73: Destilados
A74: 2023 | B74: 12 | C74: 22/12/2023 12:00:00 a. m. | D74: 01 | E74: Área Met. de la Cd. de México | F74: 1. Alimentos, bebidas y tabaco | G74: 1.2. Bebidas alcohólicas y tabaco | H74: 1.2.1. Bebidas alcohólicas | I74: 27 Vinos y licores | J74: 105 | K74: Tequila | L74: 010 | M74: SAUZA, REPOSADO, HACIENDA, BOTELLA DE 1 LT | N74: 325 | O74: 1 | P74: LT | R74: =_xlfn.IFNA(VLOOKUP(M74,'Limpiador distinto de LT'!$A$4:$C$18,3,FALSE),N74) -> 325 | S74: Destilados
A75: 2023 | B75: 12 | C75: 22/12/2023 12:00:00 a. m. | D75: 01 | E75: Área Met. de la Cd. de México | F75: 1. Alimentos, bebidas y tabaco | G75: 1.2. Bebidas alcohólicas y tabaco | H75: 1.2.1. Bebidas alcohólicas | I75: 27 Vinos y licores | J75: 105 | K75: Tequila | L75: 011 | M75: LAPIS, REPOSADO, BOTELLA DE 750 ML | N75: 1644.55 | O75: 1 | P75: LT | Q75: DESENCADENADO | R75: =_xlfn.IFNA(VLOOKUP(M75,'Limpiador distinto de LT'!$A$4:$C$18,3,FALSE),N75) -> 1644.55 | S75: Destilados
A76: 2023 | B76: 12 | C76: 22/12/2023 12:00:00 a. m. | D76: 01 | E76: Área Met. de la Cd. de México | F76: 1. Alimentos, bebidas y tabaco | G76: 1.2. Bebidas alcohólicas y tabaco | H76: 1.2.1. Bebidas alcohólicas | I76: 27 Vinos y licores | J76: 105 | K76: Tequila | L76: 012 | M76: TIERRA NOBLE, AÑEJO, BOQUILLA ROJA, BOTELLA DE 750 ML | N76: 1245.48 | O76: 1 | P76: LT | R76: =_xlfn.IFNA(VLOOKUP(M76,'Limpiador distinto de LT'!$A$4:$C$18,3,FALSE),N76) -> 1245.48 | S76: Destilados
A77: 2023 | B77: 12 | C77: 22/12/2023 12:00:00 a. m. | D77: 01 | E77: Área Met. de la Cd. de México | F77: 1. Alimentos, bebidas y tabaco | G77: 1.2. Bebidas alcohólicas y tabaco | H77: 1.2.1. Bebidas alcohólicas | I77: 27 Vinos y licores | J77: 105 | K77: Tequila | L77: 013 | M77: EL MEXICANO, BLANCO, BOTELLA DE 750 ML | N77: 1069.85 | O77: 1 | P77: LT | R77: =_xlfn.IFNA(VLOOKUP(M77,'Limpiador distinto de LT'!$A$4:$C$18,3,FALSE),N77) -> 1069.85 | S77: Destilados
A78: 2023 | B78: 12 | C78: 22/12/2023 12:00:00 a. m. | D78: 01 | E78: Área Met. de la Cd. de México | F78: 1. Alimentos, bebidas y tabaco | G78: 1.2. Bebidas alcohólicas y tabaco | H78: 1.2.1. Bebidas alcohólicas | I78: 27 Vinos y licores | J78: 105 | K78: Tequila | L78: 014 | M78: EL JIMADOR, REPOSADO, 100% AGAVE, BOTELLA DE 700 ML | N78: 450.01 | O78: 1 | P78: LT | R78: =_xlfn.IFNA(VLOOKUP(M78,'Limpiador distinto de LT'!$A$4:$C$18,3,FALSE),N78) -> 450.01 | S78: Destilados
A79: 2023 | B79: 12 | C79: 22/12/2023 12:00:00 a. m. | D79: 01 | E79: Área Met. de la Cd. de México | F79: 1. Alimentos, bebidas y tabaco | G79: 1.2. Bebidas alcohólicas y tabaco | H79: 1.2.1. Bebidas alcohólicas | I79: 27 Vinos y licores | J79: 105 | K79: Tequila | L79: 015 | M79: HERRADURA, REPOSADO, BOTELLA DE 700 ML | N79: 1128.59 | O79: 1 | P79: LT | R79: =_xlfn.IFNA(VLOOKUP(M79,'Limpiador distinto de LT'!$A$4:$C$18,3,FALSE),N79) -> 1128.59 | S79: Destilados
A80: 2023 | B80: 12 | C80: 22/12/2023 12:00:00 a. m. | D80: 01 | E80: Área Met. de la Cd. de México | F80: 1. Alimentos, bebidas y tabaco | G80: 1.2. Bebidas alcohólicas y tabaco | H80: 1.2.1. Bebidas alcohólicas | I80: 27 Vinos y licores | J80: 106 | K80: Vino de mesa | L80: 001 | M80: CARLO ROSSI, TINTO, FRUITY RED, BOTELLA DE 750 ML | N80: 211.99 | O80: 1 | P80: LT | Q80: DESENCADENADO | R80: =_xlfn.IFNA(VLOOKUP(M80,'Limpiador distinto de LT'!$A$4:$C$18,3,FALSE),N80) -> 211.99 | S80: Fermentados
A81: 2023 | B81: 12 | C81: 22/12/2023 12:00:00 a. m. | D81: 01 | E81: Área Met. de la Cd. de México | F81: 1. Alimentos, bebidas y tabaco | G81: 1.2. Bebidas alcohólicas y tabaco | H81: 1.2.1. Bebidas alcohólicas | I81: 27 Vinos y licores | J81: 106 | K81: Vino de mesa | L81: 002 | M81: CASILLERO DEL DIABLO, BLANCO, BOTELLA DE 750 ML | N81: 339.99 | O81: 1 | P81: LT | R81: =_xlfn.IFNA(VLOOKUP(M81,'Limpiador distinto de LT'!$A$4:$C$18,3,FALSE),N81) -> 339.99 | S81: Fermentados
A82: 2023 | B82: 12 | C82: 22/12/2023 12:00:00 a. m. | D82: 01 | E82: Área Met. de la Cd. de México | F82: 1. Alimentos, bebidas y tabaco | G82: 1.2. Bebidas alcohólicas y tabaco | H82: 1.2.1. Bebidas alcohólicas | I82: 27 Vinos y licores | J82: 106 | K82: Vino de mesa | L82: 003 | M82: SANGRE DE CRISTO, TINTO, BOTELLA DE 750 ML | N82: 193.75 | O82: 1 | P82: LT | R82: =_xlfn.IFNA(VLOOKUP(M82,'Limpiador distinto de LT'!$A$4:$C$18,3,FALSE),N82) -> 193.75 | S82: Fermentados
A83: 2023 | B83: 12 | C83: 22/12/2023 12:00:00 a. m. | D83: 01 | E83: Área Met. de la Cd. de México | F83: 1. Alimentos, bebidas y tabaco | G83: 1.2. Bebidas alcohólicas y tabaco | H83: 1.2.1. Bebidas alcohólicas | I83: 27 Vinos y licores | J83: 106 | K83: Vino de mesa | L83: 004 | M83: CASILLERO DEL DIABLO, TINTO, BOTELLA DE 750 ML | N83: 232.16 | O83: 1 | P83: LT | R83: =_xlfn.IFNA(VLOOKUP(M83,'Limpiador distinto de LT'!$A$4:$C$18,3,FALSE),N83) -> 232.16 | S83: Fermentados
A84: 2023 | B84: 12 | C84: 22/12/2023 12:00:00 a. m. | D84: 01 | E84: Área Met. de la Cd. de México | F84: 1. Alimentos, bebidas y tabaco | G84: 1.2. Bebidas alcohólicas y tabaco | H84: 1.2.1. Bebidas alcohólicas | I84: 27 Vinos y licores | J84: 106 | K84: Vino de mesa | L84: 005 | M84: CASILLERO DEL DIABLO, TINTO, MERLOT, BOTELLA DE 750 ML | N84: 291.53 | O84: 1 | P84: LT | R84: =_xlfn.IFNA(VLOOKUP(M84,'Limpiador distinto de LT'!$A$4:$C$18,3,FALSE),N84) -> 291.53 | S84: Fermentados
A85: 2023 | B85: 12 | C85: 22/12/2023 12:00:00 a. m. | D85: 01 | E85: Área Met. de la Cd. de México | F85: 1. Alimentos, bebidas y tabaco | G85: 1.2. Bebidas alcohólicas y tabaco | H85: 1.2.1. Bebidas alcohólicas | I85: 27 Vinos y licores | J85: 106 | K85: Vino de mesa | L85: 006 | M85: CASILLERO DEL DIABLO, TINTO, BOTELLA DE 750 ML | N85: 399.99 | O85: 1 | P85: LT | R85: =_xlfn.IFNA(VLOOKUP(M85,'Limpiador distinto de LT'!$A$4:$C$18,3,FALSE),N85) -> 399.99 | S85: Fermentados
A86: 2023 | B86: 12 | C86: 22/12/2023 12:00:00 a. m. | D86: 01 | E86: Área Met. de la Cd. de México | F86: 1. Alimentos, bebidas y tabaco | G86: 1.2. Bebidas alcohólicas y tabaco | H86: 1.2.1. Bebidas alcohólicas | I86: 27 Vinos y licores | J86: 106 | K86: Vino de mesa | L86: 007 | M86: LUIS CAÑAS, TINTO, CRIANZA, BOTELLA DE 750 ML | N86: 653.33 | O86: 1 | P86: LT | R86: =_xlfn.IFNA(VLOOKUP(M86,'Limpiador distinto de LT'!$A$4:$C$18,3,FALSE),N86) -> 653.33 | S86: Fermentados
A87: 2023 | B87: 12 | C87: 22/12/2023 12:00:00 a. m. | D87: 01 | E87: Área Met. de la Cd. de México | F87: 1. Alimentos, bebidas y tabaco | G87: 1.2. Bebidas alcohólicas y tabaco | H87: 1.2.1. Bebidas alcohólicas | I87: 27 Vinos y licores | J87: 106 | K87: Vino de mesa | L87: 008 | M87: MARELLA, BLANCO, CHARDONNAY, BOTELLA DE 750 ML | N87: 733.78 | O87: 1 | P87: LT | R87: =_xlfn.IFNA(VLOOKUP(M87,'Limpiador distinto de LT'!$A$4:$C$18,3,FALSE),N87) -> 733.78 | S87: Fermentados
A88: 2023 | B88: 12 | C88: 22/12/2023 12:00:00 a. m. | D88: 01 | E88: Área Met. de la Cd. de México | F88: 1. Alimentos, bebidas y tabaco | G88: 1.2. Bebidas alcohólicas y tabaco | H88: 1.2.1. Bebidas alcohólicas | I88: 27 Vinos y licores | J88: 106 | K88: Vino de mesa | L88: 009 | M88: SANTA CAROLINA, BLANCO, SAUVIGNON, BOTELLA DE 750 ML | N88: 387.44 | O88: 1 | P88: LT | R88: =_xlfn.IFNA(VLOOKUP(M88,'Limpiador distinto de LT'!$A$4:$C$18,3,FALSE),N88) -> 387.44 | S88: Fermentados
A89: 2023 | B89: 12 | C89: 22/12/2023 12:00:00 a. m. | D89: 01 | E89: Área Met. de la Cd. de México | F89: 1. Alimentos, bebidas y tabaco | G89: 1.2. Bebidas alcohólicas y tabaco | H89: 1.2.1. Bebidas alcohólicas | I89: 27 Vinos y licores | J89: 106 | K89: Vino de mesa | L89: 010 | M89: EL GAITERO, SIDRA, BOTELLA DE 750 ML | N89: 203.91 | O89: 1 | P89: LT | R89: =_xlfn.IFNA(VLOOKUP(M89,'Limpiador distinto de LT'!$A$4:$C$18,3,FALSE),N89) -> 203.91 | S89: Fermentados
A90: 2023 | B90: 12 | C90: 22/12/2023 12:00:00 a. m. | D90: 01 | E90: Área Met. de la Cd. de México | F90: 1. Alimentos, bebidas y tabaco | G90: 1.2. Bebidas alcohólicas y tabaco | H90: 1.2.1. Bebidas alcohólicas | I90: 27 Vinos y licores | J90: 106 | K90: Vino de mesa | L90: 011 | M90: LAMBRUSCO, TINTO, RIUNITE, BOTELLA DE 750 ML | N90: 206.66 | O90: 1 | P90: LT | R90: =_xlfn.IFNA(VLOOKUP(M90,'Limpiador distinto de LT'!$A$4:$C$18,3,FALSE),N90) -> 206.66 | S90: Fermentados
A91: 2023 | B91: 12 | C91: 22/12/2023 12:00:00 a. m. | D91: 01 | E91: Área Met. de la Cd. de México | F91: 1. Alimentos, bebidas y tabaco | G91: 1.2. Bebidas alcohólicas y tabaco | H91: 1.2.1. Bebidas alcohólicas | I91: 27 Vinos y licores | J91: 106 | K91: Vino de mesa | L91: 012 | M91: LA REDONDA, TINTO, RUBY, BOTELLA DE 750 ML | N91: 160.66 | O91: 1 | P91: LT | R91: =_xlfn.IFNA(VLOOKUP(M91,'Limpiador distinto de LT'!$A$4:$C$18,3,FALSE),N91) -> 160.66 | S91: Fermentados
A92: 2023 | B92: 12 | C92: 22/12/2023 12:00:00 a. m. | D92: 01 | E92: Área Met. de la Cd. de México | F92: 1. Alimentos, bebidas y tabaco | G92: 1.2. Bebidas alcohólicas y tabaco | H92: 1.2.1. Bebidas alcohólicas | I92: 27 Vinos y licores | J92: 106 | K92: Vino de mesa | L92: 013 | M92: RIUNITE, TINTO, LAMBRUSCO, BOTELLA DE 750 ML | N92: 190 | O92: 1 | P92: LT | R92: =_xlfn.IFNA(VLOOKUP(M92,'Limpiador distinto de LT'!$A$4:$C$18,3,FALSE),N92) -> 190 | S92: Fermentados
A93: 2023 | B93: 12 | C93: 22/12/2023 12:00:00 a. m. | D93: 01 | E93: Área Met. de la Cd. de México | F93: 1. Alimentos, bebidas y tabaco | G93: 1.2. Bebidas alcohólicas y tabaco | H93: 1.2.1. Bebidas alcohólicas | I93: 27 Vinos y licores | J93: 106 | K93: Vino de mesa | L93: 014 | M93: DOMEC, TINTO, X-A, CABERNET, BOTELLA DE 750 ML | N93: 197.33 | O93: 1 | P93: LT | R93: =_xlfn.IFNA(VLOOKUP(M93,'Limpiador distinto de LT'!$A$4:$C$18,3,FALSE),N93) -> 197.33 | S93: Fermentados
A94: 2023 | B94: 12 | C94: 22/12/2023 12:00:00 a. m. | D94: 01 | E94: Área Met. de la Cd. de México | F94: 1. Alimentos, bebidas y tabaco | G94: 1.2. Bebidas alcohólicas y tabaco | H94: 1.2.1. Bebidas alcohólicas | I94: 26 Cerveza | J94: 107 | K94: Cerveza | L94: 001 | M94: CORONA, CLARA, BOTELLA RETORNABLE DE 355 ML | N94: 50.7 | O94: 1 | P94: LT | R94: =_xlfn.IFNA(VLOOKUP(M94,'Limpiador distinto de LT'!$A$4:$C$18,3,FALSE),N94) -> 50.7 | S94: Cerveza
A95: 2023 | B95: 12 | C95: 22/12/2023 12:00:00 a. m. | D95: 01 | E95: Área Met. de la Cd. de México | F95: 1. Alimentos, bebidas y tabaco | G95: 1.2. Bebidas alcohólicas y tabaco | H95: 1.2.1. Bebidas alcohólicas | I95: 26 Cerveza | J95: 107 | K95: Cerveza | L95: 002 | M95: MODELO, CLARA, LATA DE 355 ML | N95: 73.24 | O95: 1 | P95: LT | R95: =_xlfn.IFNA(VLOOKUP(M95,'Limpiador distinto de LT'!$A$4:$C$18,3,FALSE),N95) -> 73.24 | S95: Cerveza
A96: 2023 | B96: 12 | C96: 22/12/2023 12:00:00 a. m. | D96: 01 | E96: Área Met. de la Cd. de México | F96: 1. Alimentos, bebidas y tabaco | G96: 1.2. Bebidas alcohólicas y tabaco | H96: 1.2.1. Bebidas alcohólicas | I96: 26 Cerveza | J96: 107 | K96: Cerveza | L96: 003 | M96: CORONA EXTRA, CLARA, PAQ DE 12 BOTELLAS DE 355 ML C/U 4260 | N96: 52.1 | O96: 1 | P96: LT | R96: =_xlfn.IFNA(VLOOKUP(M96,'Limpiador distinto de LT'!$A$4:$C$18,3,FALSE),N96) -> 52.1 | S96: Cerveza
A97: 2023 | B97: 12 | C97: 22/12/2023 12:00:00 a. m. | D97: 01 | E97: Área Met. de la Cd. de México | F97: 1. Alimentos, bebidas y tabaco | G97: 1.2. Bebidas alcohólicas y tabaco | H97: 1.2.1. Bebidas alcohólicas | I97: 26 Cerveza | J97: 107 | K97: Cerveza | L97: 004 | M97: CORONA, CLARA, PAQ DE 12 LATAS DE 355 ML C/U 4260 | N97: 50.99 | O97: 1 | P97: LT | R97: =_xlfn.IFNA(VLOOKUP(M97,'Limpiador distinto de LT'!$A$4:$C$18,3,FALSE),N97) -> 50.99 | S97: Cerveza
A98: 2023 | B98: 12 | C98: 22/12/2023 12:00:00 a. m. | D98: 01 | E98: Área Met. de la Cd. de México | F98: 1. Alimentos, bebidas y tabaco | G98: 1.2. Bebidas alcohólicas y tabaco | H98: 1.2.1. Bebidas alcohólicas | I98: 26 Cerveza | J98: 107 | K98: Cerveza | L98: 005 | M98: TECATE, CLARA, LATA DE 473 ML | N98: 46.51 | O98: 1 | P98: LT | R98: =_xlfn.IFNA(VLOOKUP(M98,'Limpiador distinto de LT'!$A$4:$C$18,3,FALSE),N98) -> 46.51 | S98: Cerveza
A99: 2023 | B99: 12 | C99: 22/12/2023 12:00:00 a. m. | D99: 01 | E99: Área Met. de la Cd. de México | F99: 1. Alimentos, bebidas y tabaco | G99: 1.2. Bebidas alcohólicas y tabaco | H99: 1.2.1. Bebidas alcohólicas | I99: 26 Cerveza | J99: 107 | K99: Cerveza | L99: 006 | M99: HEINEKEN, CLARA, PAQ DE 6 BOTELLAS DE 355 ML C/U | N99: 58.1 | O99: 1 | P99: LT | R99: =_xlfn.IFNA(VLOOKUP(M99,'Limpiador distinto de LT'!$A$4:$C$18,3,FALSE),N99) -> 58.1 | S99: Cerveza
A100: 2023 | B100: 12 | C100: 22/12/2023 12:00:00 a. m. | D100: 01 | E100: Área Met. de la Cd. de México | F100: 1. Alimentos, bebidas y tabaco | G100: 1.2. Bebidas alcohólicas y tabaco | H100: 1.2.1. Bebidas alcohólicas | I100: 26 Cerveza | J100: 107 | K100: Cerveza | L100: 007 | M100: SOL, CLARA, C/CLAMATO, LATA DE 473 ML | N100: 52.86 | O100: 1 | P100: LT | R100: =_xlfn.IFNA(VLOOKUP(M100,'Limpiador distinto de LT'!$A$4:$C$18,3,FALSE),N100) -> 52.86 | S100: Cerveza
A101: 2023 | B101: 12 | C101: 22/12/2023 12:00:00 a. m. | D101: 01 | E101: Área Met. de la Cd. de México | F101: 1. Alimentos, bebidas y tabaco | G101: 1.2. Bebidas alcohólicas y tabaco | H101: 1.2.1. Bebidas alcohólicas | I101: 26 Cerveza | J101: 107 | K101: Cerveza | L101: 008 | M101: INDIO, OSCURA, BOTELLA RET DE 1.2 LT | N101: 34.17 | O101: 1 | P101: LT | R101: =_xlfn.IFNA(VLOOKUP(M101,'Limpiador distinto de LT'!$A$4:$C$18,3,FALSE),N101) -> 34.17 | S101: Cerveza
A102: 2023 | B102: 12 | C102: 22/12/2023 12:00:00 a. m. | D102: 01 | E102: Área Met. de la Cd. de México | F102: 1. Alimentos, bebidas y tabaco | G102: 1.2. Bebidas alcohólicas y tabaco | H102: 1.2.1. Bebidas alcohólicas | I102: 26 Cerveza | J102: 107 | K102: Cerveza | L102: 009 | M102: MODELO, OSCURA, PAQ DE 6 BOTELLAS DE 355 ML C/U 2130 | N102: 61.5 | O102: 1 | P102: LT | R102: =_xlfn.IFNA(VLOOKUP(M102,'Limpiador distinto de LT'!$A$4:$C$18,3,FALSE),N102) -> 61.5 | S102: Cerveza
A103: 2023 | B103: 12 | C103: 22/12/2023 12:00:00 a. m. | D103: 01 | E103: Área Met. de la Cd. de México | F103: 1. Alimentos, bebidas y tabaco | G103: 1.2. Bebidas alcohólicas y tabaco | H103: 1.2.1. Bebidas alcohólicas | I103: 26 Cerveza | J103: 107 | K103: Cerveza | L103: 010 | M103: TECATE, CLARA, PAQ DE 12 LATAS DE 355 ML C/U | N103: 50.7 | O103: 1 | P103: LT | R103: =_xlfn.IFNA(VLOOKUP(M103,'Limpiador distinto de LT'!$A$4:$C$18,3,FALSE),N103) -> 50.7 | S103: Cerveza
A104: 2023 | B104: 12 | C104: 22/12/2023 12:00:00 a. m. | D104: 01 | E104: Área Met. de la Cd. de México | F104: 1. Alimentos, bebidas y tabaco | G104: 1.2. Bebidas alcohólicas y tabaco | H104: 1.2.1. Bebidas alcohólicas | I104: 26 Cerveza | J104: 107 | K104: Cerveza | L104: 011 | M104: CORONA, CLARA, BOTELLA RETORNABLE DE 355 ML | N104: 53.52 | O104: 1 | P104: LT | R104: =_xlfn.IFNA(VLOOKUP(M104,'Limpiador distinto de LT'!$A$4:$C$18,3,FALSE),N104) -> 53.52 | S104: Cerveza
A105: 2023 | B105: 12 | C105: 22/12/2023 12:00:00 a. m. | D105: 01 | E105: Área Met. de la Cd. de México | F105: 1. Alimentos, bebidas y tabaco | G105: 1.2. Bebidas alcohólicas y tabaco | H105: 1.2.1. Bebidas alcohólicas | I105: 26 Cerveza | J105: 107 | K105: Cerveza | L105: 012 | M105: VICTORIA, OSCURA, CAGUAMA, BOTELLA RETORNABLE DE 1.2 LT | N105: 37.5 | O105: 1 | P105: LT | R105: =_xlfn.IFNA(VLOOKUP(M105,'Limpiador distinto de LT'!$A$4:$C$18,3,FALSE),N105) -> 37.5 | S105: Cerveza
A106: 2023 | B106: 12 | C106: 22/12/2023 12:00:00 a. m. | D106: 01 | E106: Área Met. de la Cd. de México | F106: 1. Alimentos, bebidas y tabaco | G106: 1.2. Bebidas alcohólicas y tabaco | H106: 1.2.1. Bebidas alcohólicas | I106: 26 Cerveza | J106: 107 | K106: Cerveza | L106: 013 | M106: VICTORIA, OSCURA, LATA DE 473 ML | N106: 52.85 | O106: 1 | P106: LT | R106: =_xlfn.IFNA(VLOOKUP(M106,'Limpiador distinto de LT'!$A$4:$C$18,3,FALSE),N106) -> 4.22832981 | S106: Cerveza
A107: 2023 | B107: 12 | C107: 22/12/2023 12:00:00 a. m. | D107: 01 | E107: Área Met. de la Cd. de México | F107: 1. Alimentos, bebidas y tabaco | G107: 1.2. Bebidas alcohólicas y tabaco | H107: 1.2.1. Bebidas alcohólicas | I107: 26 Cerveza | J107: 107 | K107: Cerveza | L107: 014 | M107: INDIO, OSCURA, LATA DE 473 ML | N107: 42.28 | O107: 1 | P107: LT | R107: =_xlfn.IFNA(VLOOKUP(M107,'Limpiador distinto de LT'!$A$4:$C$18,3,FALSE),N107) -> 42.28 | S107: Cerveza
A108: 2023 | B108: 12 | C108: 22/12/2023 12:00:00 a. m. | D108: 01 | E108: Área Met. de la Cd. de México | F108: 1. Alimentos, bebidas y tabaco | G108: 1.2. Bebidas alcohólicas y tabaco | H108: 1.2.1. Bebidas alcohólicas | I108: 26 Cerveza | J108: 107 | K108: Cerveza | L108: 015 | M108: VICTORIA, OSCURA, BOTELLA DE 1.2 LT | N108: 37.5 | O108: 1 | P108: LT | R108: =_xlfn.IFNA(VLOOKUP(M108,'Limpiador distinto de LT'!$A$4:$C$18,3,FALSE),N108) -> 37.5 | S108: Cerveza
A109: 2023 | B109: 12 | C109: 22/12/2023 12:00:00 a. m. | D109: 02 | E109: Mérida, Yuc. | F109: 1. Alimentos, bebidas y tabaco | G109: 1.2. Bebidas alcohólicas y tabaco | H109: 1.2.1. Bebidas alcohólicas | I109: 27 Vinos y licores | J109: 102 | K109: Brandy | L109: 001 | M109: PRESIDENTE, AÑEJO, CLASICO, BOTELLA DE 900 ML | N109: 180 | O109: 1 | P109: LT | R109: =_xlfn.IFNA(VLOOKUP(M109,'Limpiador distinto de LT'!$A$4:$C$18,3,FALSE),N109) -> 180 | S109: Destilados
A110: 2023 | B110: 12 | C110: 22/12/2023 12:00:00 a. m. | D110: 02 | E110: Mérida, Yuc. | F110: 1. Alimentos, bebidas y tabaco | G110: 1.2. Bebidas alcohólicas y tabaco | H110: 1.2.1. Bebidas alcohólicas | I110: 27 Vinos y licores | J110: 102 | K110: Brandy | L110: 002 | M110: TORRES, SOLERA, 5, BOTELLA DE 700 ML | N110: 378.57 | O110: 1 | P110: LT | R110: =_xlfn.IFNA(VLOOKUP(M110,'Limpiador distinto de LT'!$A$4:$C$18,3,FALSE),N110) -> 378.57 | S110: Destilados
A111: 2023 | B111: 12 | C111: 22/12/2023 12:00:00 a. m. | D111: 02 | E111: Mérida, Yuc. | F111: 1. Alimentos, bebidas y tabaco | G111: 1.2. Bebidas alcohólicas y tabaco | H111: 1.2.1. Bebidas alcohólicas | I111: 27 Vinos y licores | J111: 102 | K111: Brandy | L111: 003 | M111: DON PEDRO, RESERVA, BOTELLA DE 750 ML | N111: 184 | O111: 1 | P111: LT | R111: =_xlfn.IFNA(VLOOKUP(M111,'Limpiador distinto de LT'!$A$4:$C$18,3,FALSE),N111) -> 184 | S111: Destilados
A112: 2023 | B112: 12 | C112: 22/12/2023 12:00:00 a. m. | D112: 02 | E112: Mérida, Yuc. | F112: 1. Alimentos, bebidas y tabaco | G112: 1.2. Bebidas alcohólicas y tabaco | H112: 1.2.1. Bebidas alcohólicas | I112: 27 Vinos y licores | J112: 102 | K112: Brandy | L112: 004 | M112: PRESIDENTE, CLASICO, BOTELLA DE 700 ML | N112: 172.86 | O112: 1 | P112: LT | R112: =_xlfn.IFNA(VLOOKUP(M112,'Limpiador distinto de LT'!$A$4:$C$18,3,FALSE),N112) -> 172.86 | S112: Destilados
A113: 2023 | B113: 12 | C113: 22/12/2023 12:00:00 a. m. | D113: 02 | E113: Mérida, Yuc. | F113: 1. Alimentos, bebidas y tabaco | G113: 1.2. Bebidas alcohólicas y tabaco | H113: 1.2.1. Bebidas alcohólicas | I113: 27 Vinos y licores | J113: 103 | K113: Otros licores | L113: 001 | M113: KARAT, VODKA, BOTELLA DE 1 LT | N113: 130.05 | O113: 1 | P113: LT | R113: =_xlfn.IFNA(VLOOKUP(M113,'Limpiador distinto de LT'!$A$4:$C$18,3,FALSE),N113) -> 130.05 | S113: Destilados
A114: 2023 | B114: 12 | C114: 22/12/2023 12:00:00 a. m. | D114: 02 | E114: Mérida, Yuc. | F114: 1. Alimentos, bebidas y tabaco | G114: 1.2. Bebidas alcohólicas y tabaco | H114: 1.2.1. Bebidas alcohólicas | I114: 27 Vinos y licores | J114: 103 | K114: Otros licores | L114: 002 | M114: WILLIAM LAWSONS, WHISKY, BLENDED, BOTELLA DE 700 ML | N114: 217.15 | O114: 1 | P114: LT | R114: =_xlfn.IFNA(VLOOKUP(M114,'Limpiador distinto de LT'!$A$4:$C$18,3,FALSE),N114) -> 217.15 | S114: Destilados
A115: 2023 | B115: 12 | C115: 22/12/2023 12:00:00 a. m. | D115: 02 | E115: Mérida, Yuc. | F115: 1. Alimentos, bebidas y tabaco | G115: 1.2. Bebidas alcohólicas y tabaco | H115: 1.2.1. Bebidas alcohólicas | I115: 27 Vinos y licores | J115: 103 | K115: Otros licores | L115: 003 | M115: OSO NEGRO, VODKA, PREMIUM, BOTELLA DE 1 LT | N115: 132 | O115: 1 | P115: LT | R115: =_xlfn.IFNA(VLOOKUP(M115,'Limpiador distinto de LT'!$A$4:$C$18,3,FALSE),N115) -> 132 | S115: Destilados
A116: 2023 | B116: 12 | C116: 22/12/2023 12:00:00 a. m. | D116: 02 | E116: Mérida, Yuc. | F116: 1. Alimentos, bebidas y tabaco | G116: 1.2. Bebidas alcohólicas y tabaco | H116: 1.2.1. Bebidas alcohólicas | I116: 27 Vinos y licores | J116: 103 | K116: Otros licores | L116: 004 | M116: SANTA CLARA, ROMPOPE, BOTELLA DE 1 LT | N116: 184.13 | O116: 1 | P116: LT | R116: =_xlfn.IFNA(VLOOKUP(M116,'Limpiador distinto de LT'!$A$4:$C$18,3,FALSE),N116) -> 184.13 | S116: Destilados
A117: 2023 | B117: 12 | C117: 22/12/2023 12:00:00 a. m. | D117: 02 | E117: Mérida, Yuc. | F117: 1. Alimentos, bebidas y tabaco | G117: 1.2. Bebidas alcohólicas y tabaco | H117: 1.2.1. Bebidas alcohólicas | I117: 27 Vinos y licores | J117: 103 | K117: Otros licores | L117: 005 | M117: BAILEYS, LICOR, CREMA DE WHISKY, BOTELLA DE 700 ML | N117: 693.57 | O117: 1 | P117: LT | R117: =_xlfn.IFNA(VLOOKUP(M117,'Limpiador distinto de LT'!$A$4:$C$18,3,FALSE),N117) -> 693.57 | S117: Destilados
A118: 2023 | B118: 12 | C118: 22/12/2023 12:00:00 a. m. | D118: 02 | E118: Mérida, Yuc. | F118: 1. Alimentos, bebidas y tabaco | G118: 1.2. Bebidas alcohólicas y tabaco | H118: 1.2.1. Bebidas alcohólicas | I118: 27 Vinos y licores | J118: 103 | K118: Otros licores | L118: 006 | M118: PASSPORT SCOTCH, WHISKY, ESCOCES, BLENDED, BOTELLA DE 700 ML | N118: 227.15 | O118: 1 | P118: LT | R118: =_xlfn.IFNA(VLOOKUP(M118,'Limpiador distinto de LT'!$A$4:$C$18,3,FALSE),N118) -> 227.15 | S118: Destilados
A119: 2023 | B119: 12 | C119: 22/12/2023 12:00:00 a. m. | D119: 02 | E119: Mérida, Yuc. | F119: 1. Alimentos, bebidas y tabaco | G119: 1.2. Bebidas alcohólicas y tabaco | H119: 1.2.1. Bebidas alcohólicas | I119: 27 Vinos y licores | J119: 103 | K119: Otros licores | L119: 007 | M119: J & B, WHISKY, ESCOCES, BLENDED, BOTELLA DE 750 ML | N119: 465.33 | O119: 1 | P119: LT | R119: =_xlfn.IFNA(VLOOKUP(M119,'Limpiador distinto de LT'!$A$4:$C$18,3,FALSE),N119) -> 465.33 | S119: Destilados
A120: 2023 | B120: 12 | C120: 22/12/2023 12:00:00 a. m. | D120: 02 | E120: Mérida, Yuc. | F120: 1. Alimentos, bebidas y tabaco | G120: 1.2. Bebidas alcohólicas y tabaco | H120: 1.2.1. Bebidas alcohólicas | I120: 27 Vinos y licores | J120: 103 | K120: Otros licores | L120: 008 | M120: SMIRNOFF, VODKA, SPICY TAMARINDO, BOTELLA DE 750 ML | N120: 290.99 | O120: 1 | P120: LT | R120: =_xlfn.IFNA(VLOOKUP(M120,'Limpiador distinto de LT'!$A$4:$C$18,3,FALSE),N120) -> 290.99 | S120: Destilados
A121: 2023 | B121: 12 | C121: 22/12/2023 12:00:00 a. m. | D121: 02 | E121: Mérida, Yuc. | F121: 1. Alimentos, bebidas y tabaco | G121: 1.2. Bebidas alcohólicas y tabaco | H121: 1.2.1. Bebidas alcohólicas | I121: 27 Vinos y licores | J121: 103 | K121: Otros licores | L121: 009 | M121: STOLICHNAYA, VODKA, BOTELLA DE 750 ML | N121: 409.02 | O121: 1 | P121: LT | R121: =_xlfn.IFNA(VLOOKUP(M121,'Limpiador distinto de LT'!$A$4:$C$18,3,FALSE),N121) -> 409.02 | S121: Destilados
A122: 2023 | B122: 12 | C122: 22/12/2023 12:00:00 a. m. | D122: 02 | E122: Mérida, Yuc. | F122: 1. Alimentos, bebidas y tabaco | G122: 1.2. Bebidas alcohólicas y tabaco | H122: 1.2.1. Bebidas alcohólicas | I122: 27 Vinos y licores | J122: 104 | K122: Ron | L122: 001 | M122: BACARDI, BLANCO, CARTA BLANCA, BOTELLA DE 980 ML | N122: 250 | O122: 1 | P122: LT | R122: =_xlfn.IFNA(VLOOKUP(M122,'Limpiador distinto de LT'!$A$4:$C$18,3,FALSE),N122) -> 250 | S122: Destilados
A123: 2023 | B123: 12 | C123: 22/12/2023 12:00:00 a. m. | D123: 02 | E123: Mérida, Yuc. | F123: 1. Alimentos, bebidas y tabaco | G123: 1.2. Bebidas alcohólicas y tabaco | H123: 1.2.1. Bebidas alcohólicas | I123: 27 Vinos y licores | J123: 104 | K123: Ron | L123: 002 | M123: MATUSALEM, AÑEJO, GRAN RESERVA, BOTELLA DE 750 ML | N123: 651.98 | O123: 1 | P123: LT | R123: =_xlfn.IFNA(VLOOKUP(M123,'Limpiador distinto de LT'!$A$4:$C$18,3,FALSE),N123) -> 651.98 | S123: Destilados
A124: 2023 | B124: 12 | C124: 22/12/2023 12:00:00 a. m. | D124: 02 | E124: Mérida, Yuc. | F124: 1. Alimentos, bebidas y tabaco | G124: 1.2. Bebidas alcohólicas y tabaco | H124: 1.2.1. Bebidas alcohólicas | I124: 27 Vinos y licores | J124: 104 | K124: Ron | L124: 003 | M124: HAVANA CLUB, AÑEJO, BOTELLA DE 700 ML | N124: 692.86 | O124: 1 | P124: LT | R124: =_xlfn.IFNA(VLOOKUP(M124,'Limpiador distinto de LT'!$A$4:$C$18,3,FALSE),N124) -> 692.86 | S124: Destilados
A125: 2023 | B125: 12 | C125: 22/12/2023 12:00:00 a. m. | D125: 02 | E125: Mérida, Yuc. | F125: 1. Alimentos, bebidas y tabaco | G125: 1.2. Bebidas alcohólicas y tabaco | H125: 1.2.1. Bebidas alcohólicas | I125: 27 Vinos y licores | J125: 104 | K125: Ron | L125: 004 | M125: ANTILLANO, BLANCO, BOTELLA DE 1 LT | N125: 174.25 | O125: 1 | P125: LT | R125: =_xlfn.IFNA(VLOOKUP(M125,'Limpiador distinto de LT'!$A$4:$C$18,3,FALSE),N125) -> 174.25 | S125: Destilados
A126: 2023 | B126: 12 | C126: 22/12/2023 12:00:00 a. m. | D126: 02 | E126: Mérida, Yuc. | F126: 1. Alimentos, bebidas y tabaco | G126: 1.2. Bebidas alcohólicas y tabaco | H126: 1.2.1. Bebidas alcohólicas | I126: 27 Vinos y licores | J126: 105 | K126: Tequila | L126: 001 | M126: GRAN CENTENARIO, REPOSADO, BOTELLA DE 950 ML | N126: 285.78 | O126: 1 | P126: LT | R126: =_xlfn.IFNA(VLOOKUP(M126,'Limpiador distinto de LT'!$A$4:$C$18,3,FALSE),N126) -> 285.78 | S126: Destilados
A127: 2023 | B127: 12 | C127: 22/12/2023 12:00:00 a. m. | D127: 02 | E127: Mérida, Yuc. | F127: 1. Alimentos, bebidas y tabaco | G127: 1.2. Bebidas alcohólicas y tabaco | H127: 1.2.1. Bebidas alcohólicas | I127: 27 Vinos y licores | J127: 105 | K127: Tequila | L127: 002 | M127: SAUZA, REPOSADO, HORNITOS, 100% AGAVE, BOTELLA DE 700 ML | N127: 512.86 | O127: 1 | P127: LT | R127: =_xlfn.IFNA(VLOOKUP(M127,'Limpiador distinto de LT'!$A$4:$C$18,3,FALSE),N127) -> 512.86 | S127: Destilados
A128: 2023 | B128: 12 | C128: 22/12/2023 12:00:00 a. m. | D128: 02 | E128: Mérida, Yuc. | F128: 1. Alimentos, bebidas y tabaco | G128: 1.2. Bebidas alcohólicas y tabaco | H128: 1.2.1. Bebidas alcohólicas | I128: 27 Vinos y licores | J128: 105 | K128: Tequila | L128: 003 | M128: DON JULIO, REPOSADO, BOTELLA DE 700 ML | N128: 1051.31 | O128: 1 | P128: LT | R128: =_xlfn.IFNA(VLOOKUP(M128,'Limpiador distinto de LT'!$A$4:$C$18,3,FALSE),N128) -> 1051.31 | S128: Destilados
A129: 2023 | B129: 12 | C129: 22/12/2023 12:00:00 a. m. | D129: 02 | E129: Mérida, Yuc. | F129: 1. Alimentos, bebidas y tabaco | G129: 1.2. Bebidas alcohólicas y tabaco | H129: 1.2.1. Bebidas alcohólicas | I129: 27 Vinos y licores | J129: 105 | K129: Tequila | L129: 004 | M129: JOSE CUERVO, REPOSADO, TRADICIONAL, BOTELLA DE 695 ML | N129: 556.47 | O129: 1 | P129: LT | R129: =_xlfn.IFNA(VLOOKUP(M129,'Limpiador distinto de LT'!$A$4:$C$18,3,FALSE),N129) -> 556.47 | S129: Destilados
A130: 2023 | B130: 12 | C130: 22/12/2023 12:00:00 a. m. | D130: 02 | E130: Mérida, Yuc. | F130: 1. Alimentos, bebidas y tabaco | G130: 1.2. Bebidas alcohólicas y tabaco | H130: 1.2.1. Bebidas alcohólicas | I130: 27 Vinos y licores | J130: 106 | K130: Vino de mesa | L130: 001 | M130: CONCHA Y TORO, TINTO, RESERVADO MERLOT, BOTELLA DE 750 ML | N130: 179.33 | O130: 1 | P130: LT | R130: =_xlfn.IFNA(VLOOKUP(M130,'Limpiador distinto de LT'!$A$4:$C$18,3,FALSE),N130) -> 179.33 | S130: Fermentados
A131: 2023 | B131: 12 | C131: 22/12/2023 12:00:00 a. m. | D131: 02 | E131: Mérida, Yuc. | F131: 1. Alimentos, bebidas y tabaco | G131: 1.2. Bebidas alcohólicas y tabaco | H131: 1.2.1. Bebidas alcohólicas | I131: 27 Vinos y licores | J131: 106 | K131: Vino de mesa | L131: 002 | M131: CALIFORNIA, BLANCO, BOTELLA DE 4 LT | N131: 101.87 | O131: 1 | P131: LT | R131: =_xlfn.IFNA(VLOOKUP(M131,'Limpiador distinto de LT'!$A$4:$C$18,3,FALSE),N131) -> 101.87 | S131: Fermentados
A132: 2023 | B132: 12 | C132: 22/12/2023 12:00:00 a. m. | D132: 02 | E132: Mérida, Yuc. | F132: 1. Alimentos, bebidas y tabaco | G132: 1.2. Bebidas alcohólicas y tabaco | H132: 1.2.1. Bebidas alcohólicas | I132: 27 Vinos y licores | J132: 106 | K132: Vino de mesa | L132: 003 | M132: RIUNITE, TINTO, LAMBRUSCO, BOTELLA DE 750 ML | N132: 184.66 | O132: 1 | P132: LT | R132: =_xlfn.IFNA(VLOOKUP(M132,'Limpiador distinto de LT'!$A$4:$C$18,3,FALSE),N132) -> 184.66 | S132: Fermentados
A133: 2023 | B133: 12 | C133: 22/12/2023 12:00:00 a. m. | D133: 02 | E133: Mérida, Yuc. | F133: 1. Alimentos, bebidas y tabaco | G133: 1.2. Bebidas alcohólicas y tabaco | H133: 1.2.1. Bebidas alcohólicas | I133: 27 Vinos y licores | J133: 106 | K133: Vino de mesa | L133: 004 | M133: ALMA MORA, BLANCO, PINOT GRIGIO, BOTELLA DE 750 ML | N133: 313.33 | O133: 1 | P133: LT | R133: =_xlfn.IFNA(VLOOKUP(M133,'Limpiador distinto de LT'!$A$4:$C$18,3,FALSE),N133) -> 313.33 | S133: Fermentados
A134: 2023 | B134: 12 | C134: 22/12/2023 12:00:00 a. m. | D134: 02 | E134: Mérida, Yuc. | F134: 1. Alimentos, bebidas y tabaco | G134: 1.2. Bebidas alcohólicas y tabaco | H134: 1.2.1. Bebidas alcohólicas | I134: 26 Cerveza | J134: 107 | K134: Cerveza | L134: 001 | M134: SUPERIOR, CLARA, LATA DE 355 ML | N134: 37.18 | O134: 1 | P134: LT | Q134: DESENCADENADO | R134: =_xlfn.IFNA(VLOOKUP(M134,'Limpiador distinto de LT'!$A$4:$C$18,3,FALSE),N134) -> 37.18 | S134: Cerveza
A135: 2023 | B135: 12 | C135: 22/12/2023 12:00:00 a. m. | D135: 02 | E135: Mérida, Yuc. | F135: 1. Alimentos, bebidas y tabaco | G135: 1.2. Bebidas alcohólicas y tabaco | H135: 1.2.1. Bebidas alcohólicas | I135: 26 Cerveza | J135: 107 | K135: Cerveza | L135: 002 | M135: AMSTEL ULTRA, CLARA, LATA DE 355 ML | N135: 61.97 | O135: 1 | P135: LT | R135: =_xlfn.IFNA(VLOOKUP(M135,'Limpiador distinto de LT'!$A$4:$C$18,3,FALSE),N135) -> 61.97 | S135: Cerveza
A136: 2023 | B136: 12 | C136: 22/12/2023 12:00:00 a. m. | D136: 02 | E136: Mérida, Yuc. | F136: 1. Alimentos, bebidas y tabaco | G136: 1.2. Bebidas alcohólicas y tabaco | H136: 1.2.1. Bebidas alcohólicas | I136: 26 Cerveza | J136: 107 | K136: Cerveza | L136: 003 | M136: INDIO, OSCURA, PAQ DE 6 BOTELLAS DE 355 ML, 2.13 LT | N136: 59.16 | O136: 1 | P136: LT | R136: =_xlfn.IFNA(VLOOKUP(M136,'Limpiador distinto de LT'!$A$4:$C$18,3,FALSE),N136) -> 59.16 | S136: =IF(K136="cerveza",K136,IF(K136="Vino de mesa","Fermentados","Destilados")) -> Cerveza
A137: 2023 | B137: 12 | C137: 22/12/2023 12:00:00 a. m. | D137: 02 | E137: Mérida, Yuc. | F137: 1. Alimentos, bebidas y tabaco | G137: 1.2. Bebidas alcohólicas y tabaco | H137: 1.2.1. Bebidas alcohólicas | I137: 26 Cerveza | J137: 107 | K137: Cerveza | L137: 004 | M137: MODELO, CLARA, ESPECIAL, PAQ 6 LATAS DE 355 ML, 2130 ML | N137: 48.36 | O137: 1 | P137: LT | R137: =_xlfn.IFNA(VLOOKUP(M137,'Limpiador distinto de LT'!$A$4:$C$18,3,FALSE),N137) -> 48.36 | S137: Cerveza
A138: 2023 | B138: 12 | C138: 22/12/2023 12:00:00 a. m. | D138: 02 | E138: Mérida, Yuc. | F138: 1. Alimentos, bebidas y tabaco | G138: 1.2. Bebidas alcohólicas y tabaco | H138: 1.2.1. Bebidas alcohólicas | I138: 26 Cerveza | J138: 107 | K138: Cerveza | L138: 005 | M138: XX LAGER, CLARA, ESPECIAL, PAQ 6 LATAS C/U DE 355 ML, 2130 M | N138: 44.6 | O138: 1 | P138: LT | R138: =_xlfn.IFNA(VLOOKUP(M138,'Limpiador distinto de LT'!$A$4:$C$18,3,FALSE),N138) -> 44.6 | S138: Cerveza
A139: 2023 | B139: 12 | C139: 22/12/2023 12:00:00 a. m. | D139: 02 | E139: Mérida, Yuc. | F139: 1. Alimentos, bebidas y tabaco | G139: 1.2. Bebidas alcohólicas y tabaco | H139: 1.2.1. Bebidas alcohólicas | I139: 26 Cerveza | J139: 107 | K139: Cerveza | L139: 006 | M139: INDIO, CLARA, PAQ 6 LATAS DE 437 ML C/U, 2622 ML | N139: 50.34 | O139: 1 | P139: LT | R139: =_xlfn.IFNA(VLOOKUP(M139,'Limpiador distinto de LT'!$A$4:$C$18,3,FALSE),N139) -> 50.34 | S139: Cerveza
A140: 2023 | B140: 12 | C140: 22/12/2023 12:00:00 a. m. | D140: 02 | E140: Mérida, Yuc. | F140: 1. Alimentos, bebidas y tabaco | G140: 1.2. Bebidas alcohólicas y tabaco | H140: 1.2.1. Bebidas alcohólicas | I140: 26 Cerveza | J140: 107 | K140: Cerveza | L140: 007 | M140: BARRILITO, CLARA, PAQ 6 BOTELLAS DE 325 ML C/U, 1950 ML | N140: 29.36 | O140: 1 | P140: LT | R140: =_xlfn.IFNA(VLOOKUP(M140,'Limpiador distinto de LT'!$A$4:$C$18,3,FALSE),N140) -> 29.36 | S140: Cerveza
A141: 2023 | B141: 12 | C141: 22/12/2023 12:00:00 a. m. | D141: 02 | E141: Mérida, Yuc. | F141: 1. Alimentos, bebidas y tabaco | G141: 1.2. Bebidas alcohólicas y tabaco | H141: 1.2.1. Bebidas alcohólicas | I141: 26 Cerveza | J141: 107 | K141: Cerveza | L141: 008 | M141: CORONA, CLARA, EXTRA, LATA DE 355 ML | N141: 59.15 | O141: 1 | P141: LT | R141: =_xlfn.IFNA(VLOOKUP(M141,'Limpiador distinto de LT'!$A$4:$C$18,3,FALSE),N141) -> 59.15 | S141: Cerveza
A142: 2023 | B142: 12 | C142: 22/12/2023 12:00:00 a. m. | D142: 02 | E142: Mérida, Yuc. | F142: 1. Alimentos, bebidas y tabaco | G142: 1.2. Bebidas alcohólicas y tabaco | H142: 1.2.1. Bebidas alcohólicas | I142: 26 Cerveza | J142: 107 | K142: Cerveza | L142: 009 | M142: AMSTEL ULTRA, CLARA, PAQ DE 6 LATAS DE 355ML, 2130 ML | N142: 52.11 | O142: 1 | P142: LT | R142: =_xlfn.IFNA(VLOOKUP(M142,'Limpiador distinto de LT'!$A$4:$C$18,3,FALSE),N142) -> 52.11 | S142: Cerveza
A143: 2023 | B143: 12 | C143: 22/12/2023 12:00:00 a. m. | D143: 03 | E143: Morelia, Mich. | F143: 1. Alimentos, bebidas y tabaco | G143: 1.2. Bebidas alcohólicas y tabaco | H143: 1.2.1. Bebidas alcohólicas | I143: 27 Vinos y licores | J143: 102 | K143: Brandy | L143: 001 | M143: FUNDADOR, SOLERA, BOTELLA DE 700 ML | N143: 298.57 | O143: 1 | P143: LT | R143: =_xlfn.IFNA(VLOOKUP(M143,'Limpiador distinto de LT'!$A$4:$C$18,3,FALSE),N143) -> 298.57 | S143: Destilados
A144: 2023 | B144: 12 | C144: 22/12/2023 12:00:00 a. m. | D144: 03 | E144: Morelia, Mich. | F144: 1. Alimentos, bebidas y tabaco | G144: 1.2. Bebidas alcohólicas y tabaco | H144: 1.2.1. Bebidas alcohólicas | I144: 27 Vinos y licores | J144: 102 | K144: Brandy | L144: 002 | M144: PRESIDENTE, SOLERA, CLASICO, BOTELLA DE 900 ML | N144: 176.67 | O144: 1 | P144: LT | R144: =_xlfn.IFNA(VLOOKUP(M144,'Limpiador distinto de LT'!$A$4:$C$18,3,FALSE),N144) -> 176.67 | S144: Destilados
A145: 2023 | B145: 12 | C145: 22/12/2023 12:00:00 a. m. | D145: 03 | E145: Morelia, Mich. | F145: 1. Alimentos, bebidas y tabaco | G145: 1.2. Bebidas alcohólicas y tabaco | H145: 1.2.1. Bebidas alcohólicas | I145: 27 Vinos y licores | J145: 102 | K145: Brandy | L145: 003 | M145: TORRES 5, SOLERA, BOTELLA DE 700 ML | N145: 384.29 | O145: 1 | P145: LT | R145: =_xlfn.IFNA(VLOOKUP(M145,'Limpiador distinto de LT'!$A$4:$C$18,3,FALSE),N145) -> 384.29 | S145: Destilados
A146: 2023 | B146: 12 | C146: 22/12/2023 12:00:00 a. m. | D146: 03 | E146: Morelia, Mich. | F146: 1. Alimentos, bebidas y tabaco | G146: 1.2. Bebidas alcohólicas y tabaco | H146: 1.2.1. Bebidas alcohólicas | I146: 27 Vinos y licores | J146: 102 | K146: Brandy | L146: 004 | M146: LOS REYES, AÑEJO, BOTELLA DE 900 ML | N146: 102.28 | O146: 1 | P146: LT | R146: =_xlfn.IFNA(VLOOKUP(M146,'Limpiador distinto de LT'!$A$4:$C$18,3,FALSE),N146) -> 102.28 | S146: Destilados
A147: 2023 | B147: 12 | C147: 22/12/2023 12:00:00 a. m. | D147: 03 | E147: Morelia, Mich. | F147: 1. Alimentos, bebidas y tabaco | G147: 1.2. Bebidas alcohólicas y tabaco | H147: 1.2.1. Bebidas alcohólicas | I147: 27 Vinos y licores | J147: 102 | K147: Brandy | L147: 005 | M147: DON PEDRO, SOLERA, BOTELLA DE 750 ML | N147: 189.2 | O147: 1 | P147: LT | Q147: DESENCADENADO | R147: =_xlfn.IFNA(VLOOKUP(M147,'Limpiador distinto de LT'!$A$4:$C$18,3,FALSE),N147) -> 189.2 | S147: Destilados
A148: 2023 | B148: 12 | C148: 22/12/2023 12:00:00 a. m. | D148: 03 | E148: Morelia, Mich. | F148: 1. Alimentos, bebidas y tabaco | G148: 1.2. Bebidas alcohólicas y tabaco | H148: 1.2.1. Bebidas alcohólicas | I148: 27 Vinos y licores | J148: 102 | K148: Brandy | L148: 006 | M148: AZTECA DE ORO, AÑEJO, BOTELLA DE 700 ML | N148: 278.83 | O148: 1 | P148: LT | R148: =_xlfn.IFNA(VLOOKUP(M148,'Limpiador distinto de LT'!$A$4:$C$18,3,FALSE),N148) -> 278.83 | S148: Destilados
A149: 2023 | B149: 12 | C149: 22/12/2023 12:00:00 a. m. | D149: 03 | E149: Morelia, Mich. | F149: 1. Alimentos, bebidas y tabaco | G149: 1.2. Bebidas alcohólicas y tabaco | H149: 1.2.1. Bebidas alcohólicas | I149: 27 Vinos y licores | J149: 103 | K149: Otros licores | L149: 001 | M149: SMIRNOFF, VODKA, BOTELLA DE 750 ML | N149: 358.67 | O149: 1 | P149: LT | R149: =_xlfn.IFNA(VLOOKUP(M149,'Limpiador distinto de LT'!$A$4:$C$18,3,FALSE),N149) -> 358.67 | S149: Destilados
A150: 2023 | B150: 12 | C150: 22/12/2023 12:00:00 a. m. | D150: 03 | E150: Morelia, Mich. | F150: 1. Alimentos, bebidas y tabaco | G150: 1.2. Bebidas alcohólicas y tabaco | H150: 1.2.1. Bebidas alcohólicas | I150: 27 Vinos y licores | J150: 103 | K150: Otros licores | L150: 002 | M150: KAHLUA, LICOR, DE CAFE, BOTELLA DE 1 LT | N150: 207 | O150: 1 | P150: LT | R150: =_xlfn.IFNA(VLOOKUP(M150,'Limpiador distinto de LT'!$A$4:$C$18,3,FALSE),N150) -> 207 | S150: Destilados
A151: 2023 | B151: 12 | C151: 22/12/2023 12:00:00 a. m. | D151: 03 | E151: Morelia, Mich. | F151: 1. Alimentos, bebidas y tabaco | G151: 1.2. Bebidas alcohólicas y tabaco | H151: 1.2.1. Bebidas alcohólicas | I151: 27 Vinos y licores | J151: 103 | K151: Otros licores | L151: 003 | M151: ABSOLUT, VODKA, BOTELLA DE 750 ML | N151: 386.66 | O151: 1 | P151: LT | R151: =_xlfn.IFNA(VLOOKUP(M151,'Limpiador distinto de LT'!$A$4:$C$18,3,FALSE),N151) -> 386.66 | S151: Destilados
A152: 2023 | B152: 12 | C152: 22/12/2023 12:00:00 a. m. | D152: 03 | E152: Morelia, Mich. | F152: 1. Alimentos, bebidas y tabaco | G152: 1.2. Bebidas alcohólicas y tabaco | H152: 1.2.1. Bebidas alcohólicas | I152: 27 Vinos y licores | J152: 103 | K152: Otros licores | L152: 004 | M152: JOHNNIE WALKER, WHISKY, RED LABEL, BOTELLA DE 750 ML | N152: 386.67 | O152: 1 | P152: LT | R152: =_xlfn.IFNA(VLOOKUP(M152,'Limpiador distinto de LT'!$A$4:$C$18,3,FALSE),N152) -> 386.67 | S152: Destilados
A153: 2023 | B153: 12 | C153: 22/12/2023 12:00:00 a. m. | D153: 03 | E153: Morelia, Mich. | F153: 1. Alimentos, bebidas y tabaco | G153: 1.2. Bebidas alcohólicas y tabaco | H153: 1.2.1. Bebidas alcohólicas | I153: 27 Vinos y licores | J153: 103 | K153: Otros licores | L153: 005 | M153: CHIVAS REGAL, WHISKY, 12 AÑOS, BOTELLA DE 750 ML | N153: 872.98 | O153: 1 | P153: LT | R153: =_xlfn.IFNA(VLOOKUP(M153,'Limpiador distinto de LT'!$A$4:$C$18,3,FALSE),N153) -> 872.98 | S153: Destilados
A154: 2023 | B154: 12 | C154: 22/12/2023 12:00:00 a. m. | D154: 03 | E154: Morelia, Mich. | F154: 1. Alimentos, bebidas y tabaco | G154: 1.2. Bebidas alcohólicas y tabaco | H154: 1.2.1. Bebidas alcohólicas | I154: 27 Vinos y licores | J154: 103 | K154: Otros licores | L154: 006 | M154: CHIVAS REGAL, WHISKY, BOTELLA DE 750 ML | N154: 1190.8 | O154: 1 | P154: LT | R154: =_xlfn.IFNA(VLOOKUP(M154,'Limpiador distinto de LT'!$A$4:$C$18,3,FALSE),N154) -> 1190.8 | S154: Destilados
A155: 2023 | B155: 12 | C155: 22/12/2023 12:00:00 a. m. | D155: 03 | E155: Morelia, Mich. | F155: 1. Alimentos, bebidas y tabaco | G155: 1.2. Bebidas alcohólicas y tabaco | H155: 1.2.1. Bebidas alcohólicas | I155: 27 Vinos y licores | J155: 103 | K155: Otros licores | L155: 007 | M155: RED LABEL, WHISKY, BOTELLA DE 700 ML | N155: 485.71 | O155: 1 | P155: LT | R155: =_xlfn.IFNA(VLOOKUP(M155,'Limpiador distinto de LT'!$A$4:$C$18,3,FALSE),N155) -> 485.71 | S155: Destilados
A156: 2023 | B156: 12 | C156: 22/12/2023 12:00:00 a. m. | D156: 03 | E156: Morelia, Mich. | F156: 1. Alimentos, bebidas y tabaco | G156: 1.2. Bebidas alcohólicas y tabaco | H156: 1.2.1. Bebidas alcohólicas | I156: 27 Vinos y licores | J156: 103 | K156: Otros licores | L156: 008 | M156: JHONNIE WALKER, WHISKY, RED LEBEL, BOTELLA DE 700 ML | N156: 584.29 | O156: 1 | P156: LT | R156: =_xlfn.IFNA(VLOOKUP(M156,'Limpiador distinto de LT'!$A$4:$C$18,3,FALSE),N156) -> 584.29 | S156: Destilados
A157: 2023 | B157: 12 | C157: 22/12/2023 12:00:00 a. m. | D157: 03 | E157: Morelia, Mich. | F157: 1. Alimentos, bebidas y tabaco | G157: 1.2. Bebidas alcohólicas y tabaco | H157: 1.2.1. Bebidas alcohólicas | I157: 27 Vinos y licores | J157: 103 | K157: Otros licores | L157: 009 | M157: TRES CORONAS, JEREZ, BOTELLA DE 1 LT | N157: 88.41 | O157: 1 | P157: LT | R157: =_xlfn.IFNA(VLOOKUP(M157,'Limpiador distinto de LT'!$A$4:$C$18,3,FALSE),N157) -> 88.41 | S157: Destilados
A158: 2023 | B158: 12 | C158: 22/12/2023 12:00:00 a. m. | D158: 03 | E158: Morelia, Mich. | F158: 1. Alimentos, bebidas y tabaco | G158: 1.2. Bebidas alcohólicas y tabaco | H158: 1.2.1. Bebidas alcohólicas | I158: 27 Vinos y licores | J158: 104 | K158: Ron | L158: 001 | M158: FLOR DE CAÑA, AÑEJO, BOTELLA DE 750 ML | N158: 580 | O158: 1 | P158: LT | R158: =_xlfn.IFNA(VLOOKUP(M158,'Limpiador distinto de LT'!$A$4:$C$18,3,FALSE),N158) -> 580 | S158: Destilados
A159: 2023 | B159: 12 | C159: 22/12/2023 12:00:00 a. m. | D159: 03 | E159: Morelia, Mich. | F159: 1. Alimentos, bebidas y tabaco | G159: 1.2. Bebidas alcohólicas y tabaco | H159: 1.2.1. Bebidas alcohólicas | I159: 27 Vinos y licores | J159: 104 | K159: Ron | L159: 002 | M159: BACARDI, BLANCO, BOTELLA DE 980 ML | N159: 329.59 | O159: 1 | P159: LT | R159: =_xlfn.IFNA(VLOOKUP(M159,'Limpiador distinto de LT'!$A$4:$C$18,3,FALSE),N159) -> 329.59 | S159: Destilados
A160: 2023 | B160: 12 | C160: 22/12/2023 12:00:00 a. m. | D160: 03 | E160: Morelia, Mich. | F160: 1. Alimentos, bebidas y tabaco | G160: 1.2. Bebidas alcohólicas y tabaco | H160: 1.2.1. Bebidas alcohólicas | I160: 27 Vinos y licores | J160: 104 | K160: Ron | L160: 003 | M160: CAPITAN MORGAN, AÑEJO, ORIGINAL, SPICED, BOTELLA DE 700 ML | N160: 274.29 | O160: 1 | P160: LT | R160: =_xlfn.IFNA(VLOOKUP(M160,'Limpiador distinto de LT'!$A$4:$C$18,3,FALSE),N160) -> 274.29 | S160: Destilados
A161: 2023 | B161: 12 | C161: 22/12/2023 12:00:00 a. m. | D161: 03 | E161: Morelia, Mich. | F161: 1. Alimentos, bebidas y tabaco | G161: 1.2. Bebidas alcohólicas y tabaco | H161: 1.2.1. Bebidas alcohólicas | I161: 27 Vinos y licores | J161: 104 | K161: Ron | L161: 004 | M161: BARAIMA, BLANCO, BOTELLA DE 700 ML | N161: 184.29 | O161: 1 | P161: LT | R161: =_xlfn.IFNA(VLOOKUP(M161,'Limpiador distinto de LT'!$A$4:$C$18,3,FALSE),N161) -> 184.29 | S161: Destilados
A162: 2023 | B162: 12 | C162: 22/12/2023 12:00:00 a. m. | D162: 03 | E162: Morelia, Mich. | F162: 1. Alimentos, bebidas y tabaco | G162: 1.2. Bebidas alcohólicas y tabaco | H162: 1.2.1. Bebidas alcohólicas | I162: 27 Vinos y licores | J162: 104 | K162: Ron | L162: 005 | M162: BACARDI, AÑEJO, BOTELLA DE 980 ML | N162: 243.88 | O162: 1 | P162: LT | R162: =_xlfn.IFNA(VLOOKUP(M162,'Limpiador distinto de LT'!$A$4:$C$18,3,FALSE),N162) -> 243.88 | S162: Destilados
A163: 2023 | B163: 12 | C163: 22/12/2023 12:00:00 a. m. | D163: 03 | E163: Morelia, Mich. | F163: 1. Alimentos, bebidas y tabaco | G163: 1.2. Bebidas alcohólicas y tabaco | H163: 1.2.1. Bebidas alcohólicas | I163: 27 Vinos y licores | J163: 104 | K163: Ron | L163: 006 | M163: ZACAPA, SOLERA, CENTENARIO, BOTELLA DE 750 ML | N163: 1598.67 | O163: 1 | P163: LT | R163: =_xlfn.IFNA(VLOOKUP(M163,'Limpiador distinto de LT'!$A$4:$C$18,3,FALSE),N163) -> 1598.67 | S163: Destilados
A164: 2023 | B164: 12 | C164: 22/12/2023 12:00:00 a. m. | D164: 03 | E164: Morelia, Mich. | F164: 1. Alimentos, bebidas y tabaco | G164: 1.2. Bebidas alcohólicas y tabaco | H164: 1.2.1. Bebidas alcohólicas | I164: 27 Vinos y licores | J164: 104 | K164: Ron | L164: 007 | M164: CAPITAN MORGAN, AÑEJO, ORIGINAL, BOTELA DE 700 ML | N164: 258.64 | O164: 1 | P164: LT | R164: =_xlfn.IFNA(VLOOKUP(M164,'Limpiador distinto de LT'!$A$4:$C$18,3,FALSE),N164) -> 258.64 | S164: Destilados
A165: 2023 | B165: 12 | C165: 22/12/2023 12:00:00 a. m. | D165: 03 | E165: Morelia, Mich. | F165: 1. Alimentos, bebidas y tabaco | G165: 1.2. Bebidas alcohólicas y tabaco | H165: 1.2.1. Bebidas alcohólicas | I165: 27 Vinos y licores | J165: 104 | K165: Ron | L165: 008 | M165: BACARDI, BLANCO, BOTELLA DE 750 ML | N165: 293.33 | O165: 1 | P165: LT | R165: =_xlfn.IFNA(VLOOKUP(M165,'Limpiador distinto de LT'!$A$4:$C$18,3,FALSE),N165) -> 293.33 | S165: Destilados
A166: 2023 | B166: 12 | C166: 22/12/2023 12:00:00 a. m. | D166: 03 | E166: Morelia, Mich. | F166: 1. Alimentos, bebidas y tabaco | G166: 1.2. Bebidas alcohólicas y tabaco | H166: 1.2.1. Bebidas alcohólicas | I166: 27 Vinos y licores | J166: 105 | K166: Tequila | L166: 001 | M166: JOSE CUERVO, REPOSADO, ESPECIAL, BOTELLA DE 990 ML | N166: 247.47 | O166: 1 | P166: LT | R166: =_xlfn.IFNA(VLOOKUP(M166,'Limpiador distinto de LT'!$A$4:$C$18,3,FALSE),N166) -> 5.633802817 | S166: Destilados
A167: 2023 | B167: 12 | C167: 22/12/2023 12:00:00 a. m. | D167: 03 | E167: Morelia, Mich. | F167: 1. Alimentos, bebidas y tabaco | G167: 1.2. Bebidas alcohólicas y tabaco | H167: 1.2.1. Bebidas alcohólicas | I167: 27 Vinos y licores | J167: 105 | K167: Tequila | L167: 002 | M167: EL JIMADOR, REPOSADO, BOTELLA DE 700 ML | N167: 440.71 | O167: 1 | P167: LT | R167: =_xlfn.IFNA(VLOOKUP(M167,'Limpiador distinto de LT'!$A$4:$C$18,3,FALSE),N167) -> 440.71 | S167: Destilados
A168: 2023 | B168: 12 | C168: 22/12/2023 12:00:00 a. m. | D168: 03 | E168: Morelia, Mich. | F168: 1. Alimentos, bebidas y tabaco | G168: 1.2. Bebidas alcohólicas y tabaco | H168: 1.2.1. Bebidas alcohólicas | I168: 27 Vinos y licores | J168: 105 | K168: Tequila | L168: 003 | M168: CENTENARIO, REPOSADO, BOTELLA DE 700 ML | N168: 401.44 | O168: 1 | P168: LT | R168: =_xlfn.IFNA(VLOOKUP(M168,'Limpiador distinto de LT'!$A$4:$C$18,3,FALSE),N168) -> 401.44 | S168: Destilados
A169: 2023 | B169: 12 | C169: 22/12/2023 12:00:00 a. m. | D169: 03 | E169: Morelia, Mich. | F169: 1. Alimentos, bebidas y tabaco | G169: 1.2. Bebidas alcohólicas y tabaco | H169: 1.2.1. Bebidas alcohólicas | I169: 27 Vinos y licores | J169: 105 | K169: Tequila | L169: 004 | M169: JIMADOR , REPOSADO, BOTELLA DE 950 ML | N169: 332.63 | O169: 1 | P169: LT | R169: =_xlfn.IFNA(VLOOKUP(M169,'Limpiador distinto de LT'!$A$4:$C$18,3,FALSE),N169) -> 332.63 | S169: Destilados
A170: 2023 | B170: 12 | C170: 22/12/2023 12:00:00 a. m. | D170: 03 | E170: Morelia, Mich. | F170: 1. Alimentos, bebidas y tabaco | G170: 1.2. Bebidas alcohólicas y tabaco | H170: 1.2.1. Bebidas alcohólicas | I170: 27 Vinos y licores | J170: 105 | K170: Tequila | L170: 005 | M170: SAN MATIAS LEGADO, REPOSADO, BOTELLA DE 750 ML | N170: 226.67 | O170: 1 | P170: LT | R170: =_xlfn.IFNA(VLOOKUP(M170,'Limpiador distinto de LT'!$A$4:$C$18,3,FALSE),N170) -> 226.67 | S170: Destilados
A171: 2023 | B171: 12 | C171: 22/12/2023 12:00:00 a. m. | D171: 03 | E171: Morelia, Mich. | F171: 1. Alimentos, bebidas y tabaco | G171: 1.2. Bebidas alcohólicas y tabaco | H171: 1.2.1. Bebidas alcohólicas | I171: 27 Vinos y licores | J171: 105 | K171: Tequila | L171: 006 | M171: CENTENARIO, REPOSADO, BOTELLA DE 700 ML | N171: 368.71 | O171: 1 | P171: LT | R171: =_xlfn.IFNA(VLOOKUP(M171,'Limpiador distinto de LT'!$A$4:$C$18,3,FALSE),N171) -> 368.71 | S171: Destilados
A172: 2023 | B172: 12 | C172: 22/12/2023 12:00:00 a. m. | D172: 03 | E172: Morelia, Mich. | F172: 1. Alimentos, bebidas y tabaco | G172: 1.2. Bebidas alcohólicas y tabaco | H172: 1.2.1. Bebidas alcohólicas | I172: 27 Vinos y licores | J172: 105 | K172: Tequila | L172: 007 | M172: JOSE CUERVO, REPOSADO, PLATA, BOTELLA DE 950 ML | N172: 453.68 | O172: 1 | P172: LT | R172: =_xlfn.IFNA(VLOOKUP(M172,'Limpiador distinto de LT'!$A$4:$C$18,3,FALSE),N172) -> 453.68 | S172: Destilados
A173: 2023 | B173: 12 | C173: 22/12/2023 12:00:00 a. m. | D173: 03 | E173: Morelia, Mich. | F173: 1. Alimentos, bebidas y tabaco | G173: 1.2. Bebidas alcohólicas y tabaco | H173: 1.2.1. Bebidas alcohólicas | I173: 27 Vinos y licores | J173: 106 | K173: Vino de mesa | L173: 001 | M173: CASILLERO DEL DIABLO, BLANCO, CHARDONNAY, BOTELLA DE 750 ML | N173: 313.33 | O173: 1 | P173: LT | R173: =_xlfn.IFNA(VLOOKUP(M173,'Limpiador distinto de LT'!$A$4:$C$18,3,FALSE),N173) -> 313.33 | S173: Fermentados
A174: 2023 | B174: 12 | C174: 22/12/2023 12:00:00 a. m. | D174: 03 | E174: Morelia, Mich. | F174: 1. Alimentos, bebidas y tabaco | G174: 1.2. Bebidas alcohólicas y tabaco | H174: 1.2.1. Bebidas alcohólicas | I174: 27 Vinos y licores | J174: 106 | K174: Vino de mesa | L174: 002 | M174: CONCHA Y TORO, TINTO, SELECCION, BOTELLA DE 750 ML | N174: 150.67 | O174: 1 | P174: LT | R174: =_xlfn.IFNA(VLOOKUP(M174,'Limpiador distinto de LT'!$A$4:$C$18,3,FALSE),N174) -> 150.67 | S174: Fermentados
A175: 2023 | B175: 12 | C175: 22/12/2023 12:00:00 a. m. | D175: 03 | E175: Morelia, Mich. | F175: 1. Alimentos, bebidas y tabaco | G175: 1.2. Bebidas alcohólicas y tabaco | H175: 1.2.1. Bebidas alcohólicas | I175: 27 Vinos y licores | J175: 106 | K175: Vino de mesa | L175: 003 | M175: RIUNITE, TINTO, LAMBRUSCO, BOTELLA DE 750 ML | N175: 196.67 | O175: 1 | P175: LT | R175: =_xlfn.IFNA(VLOOKUP(M175,'Limpiador distinto de LT'!$A$4:$C$18,3,FALSE),N175) -> 196.67 | S175: Fermentados
A176: 2023 | B176: 12 | C176: 22/12/2023 12:00:00 a. m. | D176: 03 | E176: Morelia, Mich. | F176: 1. Alimentos, bebidas y tabaco | G176: 1.2. Bebidas alcohólicas y tabaco | H176: 1.2.1. Bebidas alcohólicas | I176: 27 Vinos y licores | J176: 106 | K176: Vino de mesa | L176: 004 | M176: BERINGER, TINTO, BOTELLA DE 750 ML | N176: 569.07 | O176: 1 | P176: LT | R176: =_xlfn.IFNA(VLOOKUP(M176,'Limpiador distinto de LT'!$A$4:$C$18,3,FALSE),N176) -> 569.07 | S176: Fermentados
A177: 2023 | B177: 12 | C177: 22/12/2023 12:00:00 a. m. | D177: 03 | E177: Morelia, Mich. | F177: 1. Alimentos, bebidas y tabaco | G177: 1.2. Bebidas alcohólicas y tabaco | H177: 1.2.1. Bebidas alcohólicas | I177: 27 Vinos y licores | J177: 106 | K177: Vino de mesa | L177: 005 | M177: GATO NEGRO, TINTO, MERLOT, CHILE, BOTELLA DE 750 ML | N177: 166.67 | O177: 1 | P177: LT | R177: =_xlfn.IFNA(VLOOKUP(M177,'Limpiador distinto de LT'!$A$4:$C$18,3,FALSE),N177) -> 166.67 | S177: Fermentados
A178: 2023 | B178: 12 | C178: 22/12/2023 12:00:00 a. m. | D178: 03 | E178: Morelia, Mich. | F178: 1. Alimentos, bebidas y tabaco | G178: 1.2. Bebidas alcohólicas y tabaco | H178: 1.2.1. Bebidas alcohólicas | I178: 26 Cerveza | J178: 107 | K178: Cerveza | L178: 001 | M178: TECATE, CLARA, 6 LATAS, DE 355 ML C/U, 2130 ML | N178: 40.38 | O178: 1 | P178: LT | R178: =_xlfn.IFNA(VLOOKUP(M178,'Limpiador distinto de LT'!$A$4:$C$18,3,FALSE),N178) -> 40.38 | S178: Cerveza
A179: 2023 | B179: 12 | C179: 22/12/2023 12:00:00 a. m. | D179: 03 | E179: Morelia, Mich. | F179: 1. Alimentos, bebidas y tabaco | G179: 1.2. Bebidas alcohólicas y tabaco | H179: 1.2.1. Bebidas alcohólicas | I179: 26 Cerveza | J179: 107 | K179: Cerveza | L179: 002 | M179: CORONA, CLARA, EXTRA, BOTELLA DE 355 ML | N179: 73.24 | O179: 1 | P179: LT | R179: =_xlfn.IFNA(VLOOKUP(M179,'Limpiador distinto de LT'!$A$4:$C$18,3,FALSE),N179) -> 73.24 | S179: Cerveza
A180: 2023 | B180: 12 | C180: 22/12/2023 12:00:00 a. m. | D180: 03 | E180: Morelia, Mich. | F180: 1. Alimentos, bebidas y tabaco | G180: 1.2. Bebidas alcohólicas y tabaco | H180: 1.2.1. Bebidas alcohólicas | I180: 26 Cerveza | J180: 107 | K180: Cerveza | L180: 003 | M180: MODELO, CLARA, ESPECIAL, PAQ DE 6 LATAS, DE 355 ML C/U, 2130 | N180: 45.66 | O180: 1 | P180: LT | R180: =_xlfn.IFNA(VLOOKUP(M180,'Limpiador distinto de LT'!$A$4:$C$18,3,FALSE),N180) -> 45.66 | S180: Cerveza
A181: 2023 | B181: 12 | C181: 22/12/2023 12:00:00 a. m. | D181: 03 | E181: Morelia, Mich. | F181: 1. Alimentos, bebidas y tabaco | G181: 1.2. Bebidas alcohólicas y tabaco | H181: 1.2.1. Bebidas alcohólicas | I181: 26 Cerveza | J181: 107 | K181: Cerveza | L181: 004 | M181: HEINEKEN, CLARA, PAQ C/6 DE 355 ML C/U ( 2130 ML ) | N181: 64.79 | O181: 1 | P181: LT | R181: =_xlfn.IFNA(VLOOKUP(M181,'Limpiador distinto de LT'!$A$4:$C$18,3,FALSE),N181) -> 64.79 | S181: Cerveza
A182: 2023 | B182: 12 | C182: 22/12/2023 12:00:00 a. m. | D182: 03 | E182: Morelia, Mich. | F182: 1. Alimentos, bebidas y tabaco | G182: 1.2. Bebidas alcohólicas y tabaco | H182: 1.2.1. Bebidas alcohólicas | I182: 26 Cerveza | J182: 107 | K182: Cerveza | L182: 005 | M182: VICTORIA, CLARA, LATON, LATA DE 473 ML | N182: 46.51 | O182: 1 | P182: LT | R182: =_xlfn.IFNA(VLOOKUP(M182,'Limpiador distinto de LT'!$A$4:$C$18,3,FALSE),N182) -> 46.51 | S182: Cerveza
A183: 2023 | B183: 12 | C183: 22/12/2023 12:00:00 a. m. | D183: 03 | E183: Morelia, Mich. | F183: 1. Alimentos, bebidas y tabaco | G183: 1.2. Bebidas alcohólicas y tabaco | H183: 1.2.1. Bebidas alcohólicas | I183: 26 Cerveza | J183: 107 | K183: Cerveza | L183: 006 | M183: SOL, CLARA, CLAMATO, LATA DE 473 ML | N183: 52.85 | O183: 1 | P183: LT | R183: =_xlfn.IFNA(VLOOKUP(M183,'Limpiador distinto de LT'!$A$4:$C$18,3,FALSE),N183) -> 52.85 | S183: Cerveza
A184: 2023 | B184: 12 | C184: 22/12/2023 12:00:00 a. m. | D184: 03 | E184: Morelia, Mich. | F184: 1. Alimentos, bebidas y tabaco | G184: 1.2. Bebidas alcohólicas y tabaco | H184: 1.2.1. Bebidas alcohólicas | I184: 26 Cerveza | J184: 107 | K184: Cerveza | L184: 007 | M184: MODELO, OSCURA, BOTELLA DE 355 ML | N184: 59.15 | O184: 1 | P184: LT | R184: =_xlfn.IFNA(VLOOKUP(M184,'Limpiador distinto de LT'!$A$4:$C$18,3,FALSE),N184) -> 59.15 | S184: Cerveza
A185: 2023 | B185: 12 | C185: 22/12/2023 12:00:00 a. m. | D185: 03 | E185: Morelia, Mich. | F185: 1. Alimentos, bebidas y tabaco | G185: 1.2. Bebidas alcohólicas y tabaco | H185: 1.2.1. Bebidas alcohólicas | I185: 26 Cerveza | J185: 107 | K185: Cerveza | L185: 008 | M185: ESTRELLA, CLARA, LATA DE 473 ML | N185: 52.85 | O185: 1 | P185: LT | R185: =_xlfn.IFNA(VLOOKUP(M185,'Limpiador distinto de LT'!$A$4:$C$18,3,FALSE),N185) -> 52.85 | S185: Cerveza
A186: 2023 | B186: 12 | C186: 22/12/2023 12:00:00 a. m. | D186: 03 | E186: Morelia, Mich. | F186: 1. Alimentos, bebidas y tabaco | G186: 1.2. Bebidas alcohólicas y tabaco | H186: 1.2.1. Bebidas alcohólicas | I186: 26 Cerveza | J186: 107 | K186: Cerveza | L186: 009 | M186: TECATE, CLARA, LATA DE 355 ML | N186: 59.15 | O186: 1 | P186: LT | R186: =_xlfn.IFNA(VLOOKUP(M186,'Limpiador distinto de LT'!$A$4:$C$18,3,FALSE),N186) -> 59.15 | S186: Cerveza
A187: 2023 | B187: 12 | C187: 22/12/2023 12:00:00 a. m. | D187: 04 | E187: Guadalajara, Jal. | F187: 1. Alimentos, bebidas y tabaco | G187: 1.2. Bebidas alcohólicas y tabaco | H187: 1.2.1. Bebidas alcohólicas | I187: 27 Vinos y licores | J187: 102 | K187: Brandy | L187: 001 | M187: TORRES, SOLERA, 5 AÑOS, BOTELLA DE 750 ML | N187: 312 | O187: 1 | P187: LT | R187: =_xlfn.IFNA(VLOOKUP(M187,'Limpiador distinto de LT'!$A$4:$C$18,3,FALSE),N187) -> 312 | S187: Destilados
A188: 2023 | B188: 12 | C188: 22/12/2023 12:00:00 a. m. | D188: 04 | E188: Guadalajara, Jal. | F188: 1. Alimentos, bebidas y tabaco | G188: 1.2. Bebidas alcohólicas y tabaco | H188: 1.2.1. Bebidas alcohólicas | I188: 27 Vinos y licores | J188: 102 | K188: Brandy | L188: 002 | M188: PRESIDENTE, SOLERA, BOTELLA DE 900 ML | N188: 194.44 | O188: 1 | P188: LT | R188: =_xlfn.IFNA(VLOOKUP(M188,'Limpiador distinto de LT'!$A$4:$C$18,3,FALSE),N188) -> 194.44 | S188: Destilados
A189: 2023 | B189: 12 | C189: 22/12/2023 12:00:00 a. m. | D189: 04 | E189: Guadalajara, Jal. | F189: 1. Alimentos, bebidas y tabaco | G189: 1.2. Bebidas alcohólicas y tabaco | H189: 1.2.1. Bebidas alcohólicas | I189: 27 Vinos y licores | J189: 102 | K189: Brandy | L189: 003 | M189: DON PEDRO, AÑEJO, BOTELLA DE 1 LT | N189: 212.25 | O189: 1 | P189: LT | R189: =_xlfn.IFNA(VLOOKUP(M189,'Limpiador distinto de LT'!$A$4:$C$18,3,FALSE),N189) -> 212.25 | S189: Destilados
A190: 2023 | B190: 12 | C190: 22/12/2023 12:00:00 a. m. | D190: 04 | E190: Guadalajara, Jal. | F190: 1. Alimentos, bebidas y tabaco | G190: 1.2. Bebidas alcohólicas y tabaco | H190: 1.2.1. Bebidas alcohólicas | I190: 27 Vinos y licores | J190: 102 | K190: Brandy | L190: 004 | M190: DON PEDRO, GRAN RESERVA, ESPECIAL, BOTELLA DE 1 LT | N190: 188.55 | O190: 1 | P190: LT | R190: =_xlfn.IFNA(VLOOKUP(M190,'Limpiador distinto de LT'!$A$4:$C$18,3,FALSE),N190) -> 188.55 | S190: Destilados
A191: 2023 | B191: 12 | C191: 22/12/2023 12:00:00 a. m. | D191: 04 | E191: Guadalajara, Jal. | F191: 1. Alimentos, bebidas y tabaco | G191: 1.2. Bebidas alcohólicas y tabaco | H191: 1.2.1. Bebidas alcohólicas | I191: 27 Vinos y licores | J191: 102 | K191: Brandy | L191: 005 | M191: TORRES, RESERVA, PRIVADA, 15 IMPERIAL, BOTELLA 700 ML | N191: 967.29 | O191: 1 | P191: LT | R191: =_xlfn.IFNA(VLOOKUP(M191,'Limpiador distinto de LT'!$A$4:$C$18,3,FALSE),N191) -> 967.29 | S191: Destilados
A192: 2023 | B192: 12 | C192: 22/12/2023 12:00:00 a. m. | D192: 04 | E192: Guadalajara, Jal. | F192: 1. Alimentos, bebidas y tabaco | G192: 1.2. Bebidas alcohólicas y tabaco | H192: 1.2.1. Bebidas alcohólicas | I192: 27 Vinos y licores | J192: 102 | K192: Brandy | L192: 006 | M192: FUNDADOR, SOLERA, SHERRY CASK, BOTELLA DE 700 ML | N192: 341.44 | O192: 1 | P192: LT | R192: =_xlfn.IFNA(VLOOKUP(M192,'Limpiador distinto de LT'!$A$4:$C$18,3,FALSE),N192) -> 341.44 | S192: Destilados
A193: 2023 | B193: 12 | C193: 22/12/2023 12:00:00 a. m. | D193: 04 | E193: Guadalajara, Jal. | F193: 1. Alimentos, bebidas y tabaco | G193: 1.2. Bebidas alcohólicas y tabaco | H193: 1.2.1. Bebidas alcohólicas | I193: 27 Vinos y licores | J193: 102 | K193: Brandy | L193: 007 | M193: AZTECA DE ORO, SOLERA, BOTELLA DE 700 ML | N193: 206.79 | O193: 1 | P193: LT | R193: =_xlfn.IFNA(VLOOKUP(M193,'Limpiador distinto de LT'!$A$4:$C$18,3,FALSE),N193) -> 206.79 | S193: Destilados
A194: 2023 | B194: 12 | C194: 22/12/2023 12:00:00 a. m. | D194: 04 | E194: Guadalajara, Jal. | F194: 1. Alimentos, bebidas y tabaco | G194: 1.2. Bebidas alcohólicas y tabaco | H194: 1.2.1. Bebidas alcohólicas | I194: 27 Vinos y licores | J194: 103 | K194: Otros licores | L194: 001 | M194: MARTINNI ROSSO, VERMOUTH, BOTELLA DE 750 ML | N194: 393.32 | O194: 1 | P194: LT | R194: =_xlfn.IFNA(VLOOKUP(M194,'Limpiador distinto de LT'!$A$4:$C$18,3,FALSE),N194) -> 393.32 | S194: Destilados
A195: 2023 | B195: 12 | C195: 22/12/2023 12:00:00 a. m. | D195: 04 | E195: Guadalajara, Jal. | F195: 1. Alimentos, bebidas y tabaco | G195: 1.2. Bebidas alcohólicas y tabaco | H195: 1.2.1. Bebidas alcohólicas | I195: 27 Vinos y licores | J195: 103 | K195: Otros licores | L195: 002 | M195: ABSOLUT, VODKA, AZUL, BOTELLA DE 750 ML | N195: 273.33 | O195: 1 | P195: LT | R195: =_xlfn.IFNA(VLOOKUP(M195,'Limpiador distinto de LT'!$A$4:$C$18,3,FALSE),N195) -> 273.33 | S195: Destilados
A196: 2023 | B196: 12 | C196: 22/12/2023 12:00:00 a. m. | D196: 04 | E196: Guadalajara, Jal. | F196: 1. Alimentos, bebidas y tabaco | G196: 1.2. Bebidas alcohólicas y tabaco | H196: 1.2.1. Bebidas alcohólicas | I196: 27 Vinos y licores | J196: 103 | K196: Otros licores | L196: 003 | M196: BUCHANANS, WHISKY, 18 AÑOS, SPECIAL, BOTELLA DE 750 ML | N196: 2060 | O196: 1 | P196: PZA | R196: =_xlfn.IFNA(VLOOKUP(M196,'Limpiador distinto de LT'!$A$4:$C$18,3,FALSE),N196) -> 2.666666667 | S196: Destilados
A197: 2023 | B197: 12 | C197: 22/12/2023 12:00:00 a. m. | D197: 04 | E197: Guadalajara, Jal. | F197: 1. Alimentos, bebidas y tabaco | G197: 1.2. Bebidas alcohólicas y tabaco | H197: 1.2.1. Bebidas alcohólicas | I197: 27 Vinos y licores | J197: 103 | K197: Otros licores | L197: 004 | M197: WILLIAM LAWSONS, WHISKY, BLENDED, BOTELLA DE 700 ML | N197: 327.15 | O197: 1 | P197: LT | R197: =_xlfn.IFNA(VLOOKUP(M197,'Limpiador distinto de LT'!$A$4:$C$18,3,FALSE),N197) -> 327.15 | S197: Destilados
A198: 2023 | B198: 12 | C198: 22/12/2023 12:00:00 a. m. | D198: 04 | E198: Guadalajara, Jal. | F198: 1. Alimentos, bebidas y tabaco | G198: 1.2. Bebidas alcohólicas y tabaco | H198: 1.2.1. Bebidas alcohólicas | I198: 27 Vinos y licores | J198: 103 | K198: Otros licores | L198: 005 | M198: BAILEYS, CREMA, ORIGINAL, BOTELLA DE 700 ML | N198: 567.14 | O198: 1 | P198: LT | R198: =_xlfn.IFNA(VLOOKUP(M198,'Limpiador distinto de LT'!$A$4:$C$18,3,FALSE),N198) -> 567.14 | S198: Destilados
A199: 2023 | B199: 12 | C199: 22/12/2023 12:00:00 a. m. | D199: 04 | E199: Guadalajara, Jal. | F199: 1. Alimentos, bebidas y tabaco | G199: 1.2. Bebidas alcohólicas y tabaco | H199: 1.2.1. Bebidas alcohólicas | I199: 27 Vinos y licores | J199: 103 | K199: Otros licores | L199: 006 | M199: JACK DANIELS, WHISKY, TENESSEE, BOTELLA DE 700 ML | N199: 715.71 | O199: 1 | P199: LT | R199: =_xlfn.IFNA(VLOOKUP(M199,'Limpiador distinto de LT'!$A$4:$C$18,3,FALSE),N199) -> 715.71 | S199: Destilados
A200: 2023 | B200: 12 | C200: 22/12/2023 12:00:00 a. m. | D200: 04 | E200: Guadalajara, Jal. | F200: 1. Alimentos, bebidas y tabaco | G200: 1.2. Bebidas alcohólicas y tabaco | H200: 1.2.1. Bebidas alcohólicas | I200: 27 Vinos y licores | J200: 103 | K200: Otros licores | L200: 007 | M200: PANALITO, LICOR, DE CAÑA REGIONAL DULCE 960 ML | N200: 27.29 | O200: 1 | P200: LT | Q200: DESENCADENADO | R200: =_xlfn.IFNA(VLOOKUP(M200,'Limpiador distinto de LT'!$A$4:$C$18,3,FALSE),N200) -> 27.29 | S200: =IF(K200="cerveza",K200,IF(K200="Vino de mesa","Fermentados","Destilados")) -> Destilados
A201: 2023 | B201: 12 | C201: 22/12/2023 12:00:00 a. m. | D201: 04 | E201: Guadalajara, Jal. | F201: 1. Alimentos, bebidas y tabaco | G201: 1.2. Bebidas alcohólicas y tabaco | H201: 1.2.1. Bebidas alcohólicas | I201: 27 Vinos y licores | J201: 103 | K201: Otros licores | L201: 008 | M201: ABSOLUT, VODKA, BOTELLA DE 750 ML | N201: 456 | O201: 1 | P201: LT | R201: =_xlfn.IFNA(VLOOKUP(M201,'Limpiador distinto de LT'!$A$4:$C$18,3,FALSE),N201) -> 456 | S201: Destilados
... 4299 more rows

Sheet Análisis de supuestos

Sheet Limpiador distinto de LT
A2: Unidad | B2: (Varios elementos)
A4: Etiquetas de fila | B4: Cuenta de Precio promedio | C4: =(B4/6)*1000/325 -> 
A5: AMSTEL ULTRA, CLARA, PAQ C/6 BOTELL DE 325 ML C/U ( 1950 ) | B5: 3 | C5: =B5*1000/750 -> 4
A6: BLACK AND WHITE, WHISKY, BOTELLA DE 700 ML | B6: 12 | C6: =B6*1000/750 -> 16
A7: BUCHANANS, WHISKY, 15 AÑOS, BOTELLA DE 750 ML | B7: 3 | C7: =B7*1000/750 -> 4
A8: CARTA BLANCA , CLARA, C/6 LATAS DE 355 ML C/U, 2130 ML | B8: 12 | C8: =(B8/6)*1000/355 -> 5.633802817
A9: CARTA BLANCA, CLARA, LATA DE 355 ML, PAQ C/6, 2130ML | B9: 12 | C9: =(B9/6)*1000/355 -> 5.633802817
A10: JOSE CUERVO, REPOSADO, ESPECIAL, BOTELLA DE 990 ML | B10: 12 | C10: =(B10/6)*1000/355 -> 5.633802817
A11: MATUSALEM, AÑEJO, GRAN RESERVA 15, BOTELLA DE 750 ML | B11: 7 | C11: =(B11/4)*1000/473 -> 3.699788584
A12: PASSPORT SCOTCH, WHISKY, ESCOCES, BOTELLA DE 700 ML | B12: 7 | C12: =B12*1000/473 -> 14.79915433
A13: VICTORIA, OSCURA, LATA DE 473 ML | B13: 12 | C13: =(B13/6)*1000/473 -> 4.22832981
A14: BUCHANANS, WHISKY, 18 AÑOS, SPECIAL, BOTELLA DE 750 ML | B14: 2 | C14: =B14*1000/750 -> 2.666666667
A15: MODELO, CLARA, PAQ DE 6 LATAS DE 330 ML C/U, 1980 ML | B15: 5 | C15: =B15*1000/990 -> 5.050505051
A16: BUCHANANS, WHISKY, 18 AÐOS, SPECIAL, BOTELLA DE 750 ML | B16: 7 | C16: =B16*1000/750 -> 9.333333333
A17: AMSTEL ULTRA, CLARA, PAQ C/6 BOTELL DE 325 ML C/U | B17: 7 | C17: =(B17/6)*1000/355 -> 3.286384977
A18: Total general | B18: 101 | C18: =B18*1000/700 -> 144.2857143

Sheet TD_precios promedio (hidden)
A3: Etiquetas de fila | B3: Promedio de Precio promedio ajustado
A4: Cerveza | B4: 45.70935507
A5: Destilados | B5: 401.5693682
A6: Fermentados | B6: 256.7297518
A7: Total general | B7: 310.6768615

Sheet EMEC-(margen ganancia) (hidden)
A1: CODIGO_ACTIVIDAD | B1: ANIO | C1: MES | D1: H000A_I000A | E1: H000 | F1: I000A | G1: J000A | H1: REMUNERACION_MEDIA | I1: J122 | J1: M000A | K1: M100 | L1: K000A | M1: K100A | N1: ESTATUS | O1: Margen ganancia | R1: Gastos totales | S1: K00A | U1: ANIO | V1: 2023
A2: 4612 | B2: 2008 | C2: 01 | D2: 95.88133767 | E2: 99.27708213 | F2: 61.55046296 | G2: 94.75487798 | H2: 98.8251523 | I2: 104.8023007 | J2: 98.35445762 | K2: 98.38653723 | L2: 68.34726462 | M2: 69.94862677 | N2: Cifras definitivas | O2: =(J2-L2)/J2 -> 0.305092354 | R2: Ingresos totales | S2: M00A | U2: CODIGO_ACTIVIDAD | V2: 4612
A3: 4612 | B3: 2008 | C3: 02 | D3: 93.91050704 | E3: 97.12806335 | F3: 61.12079214 | G3: 91.22401553 | H3: 97.13930678 | I3: 100.2653952 | J3: 101.4579106 | K3: 101.548652 | L3: 75.91204991 | M3: 77.89760074 | N3: Cifras definitivas | O3: =(J3-L3)/J3 -> 0.2517877664 | R3: Código actividad | S3: 4612
A4: 4612 | B4: 2008 | C4: 03 | D4: 93.04774548 | E4: 96.13311232 | F4: 61.35036896 | G4: 100.2104638 | H4: 107.6978957 | I4: 105.4612685 | J4: 101.8759381 | K4: 101.9105936 | L4: 74.81857414 | M4: 77.14417525 | N4: Cifras definitivas | O4: 0.2655913112 | U4: Etiquetas de fila | V4: Promedio de Margen ganancia
A5: 4612 | B5: 2008 | C5: 04 | D5: 91.81845973 | E5: 94.76256871 | F5: 61.31449912 | G5: 102.0862247 | H5: 111.1826804 | I5: 108.7540529 | J5: 104.0686891 | K5: 104.1826249 | L5: 76.22026692 | M5: 78.47798402 | N5: Cifras definitivas | O5: 0.2675965499 | R5: Margen de ganancia | S5: ="=(M00A-K00A)/M00A" -> =(M00A-K00A)/M00A | U5: 01 | V5: 0.1499594665
A6: 4612 | B6: 2008 | C6: 05 | D6: 91.60084465 | E6: 94.50164687 | F6: 61.44921443 | G6: 112.2843594 | H6: 122.5800481 | I6: 116.8814612 | J6: 109.3702253 | K6: 109.4360588 | L6: 85.64611851 | M6: 88.5383838 | N6: Cifras definitivas | O6: 0.2169155885 | R6: Codigo_actividad 4612 | S6: Comercio al por menor de bebidas, hielo y tabaco | U6: 02 | V6: 0.1352000791
A7: 4612 | B7: 2008 | C7: 06 | D7: 92.36978121 | E7: 95.38241582 | F7: 61.2907117 | G7: 101.4881171 | H7: 109.8715574 | I7: 105.2705548 | J7: 107.9833702 | K7: 108.0485223 | L7: 82.36493523 | M7: 84.96261449 | N7: Cifras definitivas | O7: 0.2372442622 | U7: 03 | V7: 0.09635540462
A8: 4612 | B8: 2008 | C8: 07 | D8: 90.22248177 | E8: 92.96982418 | F8: 61.37100412 | G8: 99.90559346 | H8: 110.7324821 | I8: 100.3973053 | J8: 106.9694831 | K8: 107.0867492 | L8: 81.28070305 | M8: 83.5831982 | N8: Cifras definitivas | O8: 0.2401505487 | R8: Fuente: | S8: https://www.inegi.org.mx/programas/emec/2018/#datos_abiertos | U8: 04 | V8: 0.09036374356
A9: 4612 | B9: 2008 | C9: 08 | D9: 90.20837722 | E9: 92.96700159 | F9: 61.27113483 | G9: 101.5538772 | H9: 112.5769915 | I9: 106.3416932 | J9: 107.7658916 | K9: 107.787696 | L9: 80.49769258 | M9: 82.47671395 | N9: Cifras definitivas | O9: 0.2530318135 | U9: 05 | V9: 0.1923638405
A10: 4612 | B10: 2008 | C10: 09 | D10: 90.52044939 | E10: 93.19128585 | F10: 62.23335619 | G10: 97.00862038 | H10: 107.1676301 | I10: 99.86287245 | J10: 105.5598378 | K10: 105.7309809 | L10: 85.36815089 | M10: 87.97830339 | N10: Cifras definitivas | O10: 0.1912819052 | U10: 06 | V10: 0.1535029511
A11: 4612 | B11: 2008 | C11: 10 | D11: 90.42577786 | E11: 93.0618761 | F11: 62.41450895 | G11: 94.12844814 | H11: 104.0947066 | I11: 99.50369047 | J11: 103.3762603 | K11: 103.4487134 | L11: 83.43369187 | M11: 86.01301879 | N11: Cifras definitivas | O11: 0.1929124576 | U11: 07 | V11: 0.2008668395
A12: 4612 | B12: 2008 | C12: 11 | D12: 90.53597312 | E12: 93.09973714 | F12: 63.0729034 | G12: 96.40944193 | H12: 106.4874421 | I12: 98.83022092 | J12: 112.5547554 | K12: 112.513447 | L12: 86.43948296 | M12: 89.17903897 | N12: Cifras definitivas | O12: 0.2320228263 | U12: 08 | V12: 0.09258652228
A13: 4612 | B13: 2008 | C13: 12 | D13: 92.57209446 | E13: 94.59732528 | F13: 69.08699807 | G13: 109.125604 | H13: 117.881749 | I13: 111.2880774 | J13: 139.8107914 | K13: 140.1260748 | L13: 114.2026269 | M13: 118.5982163 | N13: Cifras definitivas | O13: 0.1831630035 | U13: 09 | V13: 0.1158731024
A14: 4612 | B14: 2009 | C14: 01 | D14: 93.06635346 | E14: 95.24585994 | F14: 68.35001699 | G14: 97.62837847 | H14: 104.9019058 | I14: 100.5633789 | J14: 100.4130025 | K14: 100.2850192 | L14: 75.41372807 | M14: 77.22946324 | N14: Cifras definitivas | O14: 0.2489645143 | U14: 10 | V14: 0.1480367051
A15: 4612 | B15: 2009 | C15: 02 | D15: 92.1969061 | E15: 94.29437338 | F15: 68.18690425 | G15: 92.27414489 | H15: 100.0837759 | I15: 93.52316369 | J15: 98.51024539 | K15: 98.55713105 | L15: 79.00289842 | M15: 80.98500458 | N15: Cifras definitivas | O15: 0.1980235344 | U15: 11 | V15: 0.1977644482
A16: 4612 | B16: 2009 | C16: 03 | D16: 93.01938046 | E16: 94.07729333 | F16: 76.9525934 | G16: 94.87407551 | H16: 101.9938802 | I16: 100.0826861 | J16: 103.2395885 | K16: 103.3106463 | L16: 83.30986146 | M16: 86.45875398 | N16: Cifras definitivas | O16: 0.1930434565 | U16: 12 | V16: 0.153270344
A17: 4612 | B17: 2009 | C17: 04 | D17: 93.05563673 | E17: 94.06939093 | F17: 77.32615302 | G17: 91.95127139 | H17: 98.81322037 | I17: 96.74858424 | J17: 101.5341511 | K17: 101.6023529 | L17: 81.84566796 | M17: 84.42881932 | N17: Cifras definitivas | O17: 0.1939099595 | U17: Total general | V17: 0.1444608301
A18: 4612 | B18: 2009 | C18: 05 | D18: 91.46722881 | E18: 92.22292523 | F18: 77.86203381 | G18: 99.62366327 | H18: 108.9173298 | I18: 105.3700219 | J18: 104.3583796 | K18: 104.5139071 | L18: 84.8609874 | M18: 87.9224731 | N18: Cifras definitivas | O18: 0.1868311131
A19: 4612 | B19: 2009 | C19: 06 | D19: 91.83724141 | E19: 93.07712367 | F19: 74.46833501 | G19: 91.78000495 | H19: 99.9376762 | I19: 98.52038488 | J19: 102.4646038 | K19: 102.4953795 | L19: 85.59138989 | M19: 88.59298232 | N19: Cifras definitivas | O19: 0.1646735878
A20: 4612 | B20: 2009 | C20: 07 | D20: 94.43498626 | E20: 96.01098759 | F20: 74.25422001 | G20: 100.6047702 | H20: 106.5333667 | I20: 107.5382937 | J20: 103.0736587 | K20: 103.1584219 | L20: 86.11828939 | M20: 88.12310661 | N20: Cifras definitivas | O20: 0.1644975985
A21: 4612 | B21: 2009 | C21: 08 | D21: 94.36306027 | E21: 96.73550178 | F21: 68.04923105 | G21: 96.16705989 | H21: 101.9117646 | I21: 104.6954864 | J21: 98.332745 | K21: 98.37350156 | L21: 81.92725585 | M21: 83.32737727 | N21: Cifras definitivas | O21: 0.1668364811
A22: 4612 | B22: 2009 | C22: 09 | D22: 94.33523593 | E22: 96.68851872 | F22: 68.17145374 | G22: 93.76144348 | H22: 99.39175172 | I22: 102.2866502 | J22: 94.21394093 | K22: 94.36998984 | L22: 81.60380219 | M22: 83.88468345 | N22: Cifras definitivas | O22: 0.1338457835
A23: 4612 | B23: 2009 | C23: 10 | D23: 93.63541707 | E23: 95.8650102 | F23: 68.48459446 | G23: 94.64886616 | H23: 101.0823352 | I23: 101.9600037 | J23: 94.705067 | K23: 94.68638426 | L23: 80.95352403 | M23: 83.29733701 | N23: Cifras definitivas | O23: 0.1452038777
A24: 4612 | B24: 2009 | C24: 11 | D24: 93.5120146 | E24: 95.73728708 | F24: 68.40499363 | G24: 96.9683534 | H24: 103.6961441 | I24: 102.3519912 | J24: 101.6933166 | K24: 101.7347136 | L24: 84.020299 | M24: 85.7963191 | N24: Cifras definitivas | O24: 0.173787405 | U24: Promedio | V24: =AVERAGE(V5:V16) -> 0.1438452872
A25: 4612 | B25: 2009 | C25: 12 | D25: 95.97658687 | E25: 98.56777809 | F25: 67.83932942 | G25: 109.2374811 | H25: 113.8168012 | I25: 120.6545429 | J25: 133.1802506 | K25: 133.4601908 | L25: 110.5349461 | M25: 114.4108108 | N25: Cifras definitivas | O25: 0.1700350044
A26: 4612 | B26: 2010 | C26: 01 | D26: 93.29803947 | E26: 95.68569766 | F26: 66.95750501 | G26: 91.63848148 | H26: 98.22122951 | I26: 105.1607959 | J26: 85.7961013 | K26: 84.6006888 | L26: 77.58371516 | M26: 79.43493993 | N26: Cifras definitivas | O26: 0.09571980563
A27: 4612 | B27: 2010 | C27: 02 | D27: 93.31235106 | E27: 95.68172398 | F27: 67.1115469 | G27: 97.46581697 | H27: 104.4511427 | I27: 107.7677617 | J27: 88.75979773 | K27: 87.54117933 | L27: 74.99269086 | M27: 76.15394006 | N27: Cifras definitivas | O27: 0.1551052078
A28: 4612 | B28: 2010 | C28: 03 | D28: 95.22372466 | E28: 97.81160469 | F28: 67.17602888 | G28: 104.0817753 | H28: 109.3023568 | I28: 111.4663764 | J28: 97.96806602 | K28: 96.29139364 | L28: 82.64937465 | M28: 84.30076301 | N28: Cifras definitivas | O28: 0.1563641296
A29: 4612 | B29: 2010 | C29: 04 | D29: 93.25257532 | E29: 94.96415056 | F29: 72.12734244 | G29: 104.5573692 | H29: 112.1227686 | I29: 117.7632182 | J29: 100.2092757 | K29: 98.87813691 | L29: 81.39032938 | M29: 83.36636949 | N29: Cifras definitivas | O29: 0.1877964508
A30: 4612 | B30: 2010 | C30: 05 | D30: 92.62173121 | E30: 94.21440859 | F30: 72.46665497 | G30: 112.3972324 | H30: 121.3508222 | I30: 120.70067 | J30: 101.466652 | K30: 100.1216964 | L30: 84.14882129 | M30: 86.0913354 | N30: Cifras definitivas | O30: 0.1706750973
A31: 4612 | B31: 2010 | C31: 06 | D31: 94.37411926 | E31: 96.23081516 | F31: 72.03485968 | G31: 105.244508 | H31: 111.5184002 | I31: 117.6853334 | J31: 98.93339508 | K31: 97.38759472 | L31: 84.24889795 | M31: 86.35582051 | N31: Cifras definitivas | O31: 0.1484281129
A32: 4612 | B32: 2010 | C32: 07 | D32: 91.25152199 | E32: 92.52134159 | F32: 73.7016711 | G32: 102.2977272 | H32: 112.1052285 | I32: 110.4929277 | J32: 98.76694289 | K32: 97.28044568 | L32: 82.55253893 | M32: 84.27427351 | N32: Cifras definitivas | O32: 0.1641683289
A33: 4612 | B33: 2010 | C33: 08 | D33: 91.12945934 | E33: 92.44377183 | F33: 73.24702745 | G33: 105.467904 | H33: 115.7341487 | I33: 112.191688 | J33: 93.74504809 | K33: 92.32144694 | L33: 78.71523427 | M33: 79.94162853 | N33: Cifras definitivas | O33: 0.1603264826
A34: 4612 | B34: 2010 | C34: 09 | D34: 90.45035804 | E34: 91.6608069 | F34: 73.42629925 | G34: 103.2514811 | H34: 114.1526505 | I34: 110.2263642 | J34: 91.08961694 | K34: 89.93415198 | L34: 79.32595057 | M34: 80.34807794 | N34: Cifras definitivas | O34: 0.1291438779
A35: 4612 | B35: 2010 | C35: 10 | D35: 90.99976362 | E35: 92.18920005 | F35: 74.09094285 | G35: 97.72786442 | H35: 107.3935366 | I35: 108.3272118 | J35: 88.36772117 | K35: 87.1571128 | L35: 77.00180738 | M35: 78.26847932 | N35: Cifras definitivas | O35: 0.1286206506
A36: 4612 | B36: 2010 | C36: 11 | D36: 92.2217643 | E36: 93.62387065 | F36: 73.56968314 | G36: 101.0040133 | H36: 109.5229679 | I36: 111.4861434 | J36: 93.6537994 | K36: 92.34879654 | L36: 80.80342107 | M36: 82.01774519 | N36: Cifras definitivas | O36: 0.1372115004
A37: 4612 | B37: 2010 | C37: 12 | D37: 93.3880878 | E37: 92.95585244 | F37: 88.77641494 | G37: 115.742539 | H37: 123.9371549 | I37: 123.4404035 | J37: 118.4314825 | K37: 116.7850086 | L37: 109.0446322 | M37: 111.0690208 | N37: Cifras definitivas | O37: 0.07925975501
A38: 4612 | B38: 2011 | C38: 01 | D38: 88.39630908 | E38: 87.21823114 | F38: 89.95839135 | G38: 84.62225646 | H38: 95.73053144 | I38: 87.92679514 | J38: 76.1480114 | K38: 76.21143035 | L38: 65.02873355 | M38: 64.45981647 | N38: Cifras definitivas | O38: 0.1460219071
A39: 4612 | B39: 2011 | C39: 02 | D39: 88.97254567 | E39: 87.94272992 | F39: 89.34276791 | G39: 83.13784101 | H39: 93.44212912 | I39: 85.48405138 | J39: 69.21577994 | K39: 68.83912962 | L39: 61.95001037 | M39: 60.93054285 | N39: Cifras definitivas | O39: 0.1049727328
A40: 4612 | B40: 2011 | C40: 03 | D40: 87.75414851 | E40: 86.49772665 | F40: 89.97474873 | G40: 84.37579071 | H40: 96.15020161 | I40: 86.07446349 | J40: 76.61811801 | K40: 76.62524557 | L40: 67.55830365 | M40: 67.29355597 | N40: Cifras definitivas | O40: 0.1182463704
A41: 4612 | B41: 2011 | C41: 04 | D41: 87.25885647 | E41: 85.85780707 | F41: 90.63641466 | G41: 88.43698378 | H41: 101.3501521 | I41: 89.7088982 | J41: 86.33935978 | K41: 86.57880025 | L41: 78.17730405 | M41: 78.46091394 | N41: Cifras definitivas | O41: 0.09453458713
A42: 4612 | B42: 2011 | C42: 05 | D42: 92.84511373 | E42: 91.43927261 | F42: 95.78444846 | G42: 95.84527617 | H42: 103.2313628 | I42: 95.15213514 | J42: 86.65193791 | K42: 86.96204371 | L42: 77.02631003 | M42: 76.53692974 | N42: Cifras definitivas | O42: 0.1110838155
A43: 4612 | B43: 2011 | C43: 06 | D43: 91.03076598 | E43: 90.11770316 | F43: 90.32595497 | G43: 97.14801107 | H43: 106.7199754 | I43: 96.51776108 | J43: 78.61949293 | K43: 78.6889355 | L43: 73.0555823 | M43: 72.70485119 | N43: Cifras definitivas | O43: 0.07077011594
A44: 4612 | B44: 2011 | C44: 07 | D44: 90.92265317 | E44: 91.43459808 | F44: 79.24268377 | G44: 94.76732844 | H44: 104.228512 | I44: 95.81542699 | J44: 79.82136539 | K44: 79.92075039 | L44: 72.96773861 | M44: 72.29309734 | N44: Cifras definitivas | O44: 0.08586205894
A45: 4612 | B45: 2011 | C45: 08 | D45: 92.22243093 | E45: 92.04995527 | F45: 85.70760762 | G45: 90.5982467 | H45: 98.23884036 | I45: 93.15223366 | J45: 71.12281969 | K45: 71.24856541 | L45: 64.77597933 | M45: 62.93168956 | N45: Cifras definitivas | O45: 0.0892377494
A46: 4612 | B46: 2011 | C46: 09 | D46: 92.64782547 | E46: 92.36450363 | F46: 86.95125163 | G46: 97.56413959 | H46: 105.3064539 | I46: 97.18640305 | J46: 76.34362875 | K46: 76.57496566 | L46: 71.92155932 | M46: 70.55387857 | N46: Cifras definitivas | O46: 0.0579232282
A47: 4612 | B47: 2011 | C47: 10 | D47: 90.64957011 | E47: 91.48359868 | F47: 76.51011865 | G47: 92.15468147 | H47: 101.6603624 | I47: 94.96339249 | J47: 74.71508877 | K47: 74.88234535 | L47: 70.86773752 | M47: 69.80232558 | N47: Cifras definitivas | O47: 0.05149363152
A48: 4612 | B48: 2011 | C48: 11 | D48: 91.89037723 | E48: 92.19278708 | F48: 81.74324868 | G48: 92.54121727 | H48: 100.7082788 | I48: 94.15614268 | J48: 78.71837075 | K48: 78.91113378 | L48: 74.11979412 | M48: 73.14616998 | N48: Cifras definitivas | O48: 0.05841808699
A49: 4612 | B49: 2011 | C49: 12 | D49: 95.76291646 | E49: 96.55032735 | F49: 81.54787263 | G49: 109.0476247 | H49: 113.8724976 | I49: 112.97372 | J49: 102.5212136 | K49: 102.6802539 | L49: 90.8984355 | M49: 91.16823654 | N49: Cifras definitivas | O49: 0.1133694942
A50: 4612 | B50: 2012 | C50: 01 | D50: 87.88582335 | E50: 88.33146068 | F50: 76.97527961 | G50: 90.23099291 | H50: 102.6684276 | I50: 95.26922525 | J50: 77.56321918 | K50: 77.46585501 | L50: 73.35763766 | M50: 72.91092595 | N50: Cifras definitivas | O50: 0.05422133795
A51: 4612 | B51: 2012 | C51: 02 | D51: 89.69640055 | E51: 90.30401568 | F51: 77.38328184 | G51: 87.17621651 | H51: 97.19031753 | I51: 92.9368672 | J51: 74.95407642 | K51: 74.92521094 | L51: 71.40386621 | M51: 71.12046007 | N51: Cifras definitivas | O51: 0.04736513849
A52: 4612 | B52: 2012 | C52: 03 | D52: 90.31044494 | E52: 90.84370453 | F52: 78.51824957 | G52: 85.80975329 | H52: 95.0164218 | I52: 88.65198362 | J52: 85.00989021 | K52: 84.96864453 | L52: 82.06607198 | M52: 82.36730305 | N52: Cifras definitivas | O52: 0.03462912636
A53: 4612 | B53: 2012 | C53: 04 | D53: 89.71125829 | E53: 90.23977535 | F53: 78.00658562 | G53: 88.15155832 | H53: 98.26142226 | I53: 90.13067284 | J53: 88.82864443 | K53: 89.05773994 | L53: 86.1083796 | M53: 86.52789944 | N53: Cifras definitivas | O53: 0.03062373458
A54: 4612 | B54: 2012 | C54: 05 | D54: 94.69645604 | E54: 95.11484974 | F54: 83.41661041 | G54: 96.66628966 | H54: 102.0801556 | I54: 94.59688643 | J54: 91.80150108 | K54: 91.99862891 | L54: 89.85710351 | M54: 89.96450407 | N54: Cifras definitivas | O54: 0.02118045508
A55: 4612 | B55: 2012 | C55: 06 | D55: 92.22201937 | E55: 93.12378321 | F55: 77.42669529 | G55: 92.6334185 | H55: 100.4460964 | I55: 95.5703006 | J55: 85.85423032 | K55: 85.9928667 | L55: 82.43062212 | M55: 82.73144987 | N55: Cifras definitivas | O55: 0.03987698902
A56: 4612 | B56: 2012 | C56: 07 | D56: 93.04060997 | E56: 93.43451885 | F56: 82.09034439 | G56: 89.97510766 | H56: 96.70519969 | I56: 92.60307514 | J56: 82.90152006 | K56: 82.90733319 | L56: 80.14046919 | M56: 79.49809127 | N56: Cifras definitivas | O56: 0.03330518992
A57: 4612 | B57: 2012 | C57: 08 | D57: 92.69171514 | E57: 92.8484746 | F57: 83.59913956 | G57: 92.77915746 | H57: 100.0943367 | I57: 96.9696159 | J57: 77.60769843 | K57: 77.75061737 | L57: 74.0710953 | M57: 73.06076016 | N57: Cifras definitivas | O57: 0.04557026173
A58: 4612 | B58: 2012 | C58: 09 | D58: 91.33269782 | E58: 91.7410251 | F58: 80.41656398 | G58: 93.84879869 | H58: 102.7548741 | I58: 97.62683943 | J58: 78.54295742 | K58: 78.62460438 | L58: 75.04253653 | M58: 74.17066099 | N58: Cifras definitivas | O58: 0.04456696062
A59: 4612 | B59: 2012 | C59: 10 | D59: 94.93076562 | E59: 94.33147451 | F59: 91.4755867 | G59: 94.83597699 | H59: 99.90014973 | I59: 98.80094536 | J59: 77.91589934 | K59: 78.08094131 | L59: 74.4376152 | M59: 73.38894404 | N59: Cifras definitivas | O59: 0.0446415195
A60: 4612 | B60: 2012 | C60: 11 | D60: 96.18671713 | E60: 95.16705452 | F60: 95.86504881 | G60: 95.39239457 | H60: 99.17418685 | I60: 101.8822369 | J60: 77.57582178 | K60: 77.68033037 | L60: 74.94641159 | M60: 74.22560723 | N60: Cifras definitivas | O60: 0.03389471268
A61: 4612 | B61: 2012 | C61: 12 | D61: 99.83446772 | E61: 99.17942871 | F61: 96.39190676 | G61: 118.6660374 | H61: 118.8627937 | I61: 129.4641625 | J61: 107.3496492 | K61: 107.5309499 | L61: 106.4302364 | M61: 106.7452865 | N61: Cifras definitivas | O61: 0.008564656212
A62: 4612 | B62: 2013 | C62: 01 | D62: 100.8426283 | E62: 102.1876542 | F62: 81.89726062 | G62: 99.499182 | H62: 98.66777936 | I62: 103.4357774 | J62: 73.11126492 | K62: 73.31986834 | L62: 72.45364442 | M62: 71.43232318 | N62: Cifras definitivas | O62: 0.008994790348
A63: 4612 | B63: 2013 | C63: 02 | D63: 98.37941039 | E63: 99.68167098 | F63: 80.03898516 | G63: 93.00462256 | H63: 94.53667408 | I63: 96.80935893 | J63: 68.32633585 | K63: 68.32384609 | L63: 66.46253119 | M63: 64.92781955 | N63: Cifras definitivas | O63: 0.02727798347
A64: 4612 | B64: 2013 | C64: 03 | D64: 100.3023237 | E64: 101.5259494 | F64: 83.09656782 | G64: 93.90078422 | H64: 93.61775552 | I64: 96.751735 | J64: 78.84048019 | K64: 78.98700331 | L64: 78.29757835 | M64: 77.50352837 | N64: Cifras definitivas | O64: 0.006886079825
A65: 4612 | B65: 2013 | C65: 04 | D65: 99.34818876 | E65: 100.7072876 | F65: 80.19577329 | G65: 94.04967206 | H65: 94.66672038 | I65: 96.90258269 | J65: 84.72213243 | K65: 84.91918655 | L65: 81.73623175 | M65: 81.46721585 | N65: Cifras definitivas | O65: 0.03524345521
A66: 4612 | B66: 2013 | C66: 05 | D66: 101.4820716 | E66: 102.8477666 | F66: 82.24242055 | G66: 101.8027963 | H66: 100.3160407 | I66: 100.8004722 | J66: 86.42771197 | K66: 86.29708501 | L66: 84.25377758 | M66: 82.81842838 | N66: Cifras definitivas | O66: 0.02515321001
A67: 4612 | B67: 2013 | C67: 06 | D67: 99.3710965 | E67: 100.6840474 | F67: 80.88075137 | G67: 94.98674925 | H67: 95.58790493 | I67: 96.43970568 | J67: 84.63925031 | K67: 84.9315533 | L67: 82.66209826 | M67: 82.15424613 | N67: Cifras definitivas | O67: =(J67-L67)/J67 -> 0.02335975381
A68: 4612 | B68: 2013 | C68: 07 | D68: 99.12570879 | E68: 100.4851676 | F68: 79.96736036 | G68: 96.62997147 | H68: 97.48225021 | I68: 99.0264567 | J68: 85.78106686 | K68: 85.71797714 | L68: 83.64959822 | M68: 83.11324785 | N68: Cifras definitivas | O68: 0.0248477749
A69: 4612 | B69: 2013 | C69: 08 | D69: 98.76430344 | E69: 99.84206108 | F69: 83.64569514 | G69: 94.70652074 | H69: 95.89144807 | I69: 98.12763417 | J69: 84.67172645 | K69: 84.98855934 | L69: 82.64305451 | M69: 82.24419138 | N69: Cifras definitivas | O69: 0.02395926037
A70: 4612 | B70: 2013 | C70: 09 | D70: 98.96224675 | E70: 100.0261675 | F70: 84.04281314 | G70: 93.8471065 | H70: 94.83122057 | I70: 94.41563177 | J70: 80.1070134 | K70: 80.34041321 | L70: 80.14004629 | M70: 79.6667745 | N70: Cifras definitivas | O70: -0.0004123595251
A71: 4612 | B71: 2013 | C71: 10 | D71: 99.33676232 | E71: 100.2672022 | F71: 86.33340159 | G71: 97.6142217 | H71: 98.26595856 | I71: 103.1421005 | J71: 81.03980113 | K71: 80.97496616 | L71: 80.78760838 | M71: 80.257298 | N71: Cifras definitivas | O71: 0.00311196161
A72: 4612 | B72: 2013 | C72: 11 | D72: 98.78873315 | E72: 99.73082315 | F72: 85.61635564 | G72: 97.46151311 | H72: 98.65650667 | I72: 98.99436737 | J72: 82.66003972 | K72: 82.83025483 | L72: 82.47459689 | M72: 81.17632879 | N72: Cifras definitivas | O72: 0.002243439885
A73: 4612 | B73: 2013 | C73: 12 | D73: 99.92704125 | E73: 100.5401066 | F73: 91.47844762 | G73: 118.1265003 | H73: 118.2127468 | I73: 123.7746917 | J73: 103.7160204 | K73: 103.7951487 | L73: 99.53426308 | M73: 99.1680348 | N73: Cifras definitivas | O73: 0.04031929961
A74: 4612 | B74: 2014 | C74: 01 | D74: 101.910209 | E74: 102.9959788 | F74: 86.68755329 | G74: 94.07733122 | H74: 92.31394202 | I74: 98.3876208 | J74: 70.76583722 | K74: 70.99321314 | L74: 66.93563972 | M74: 65.56222381 | N74: Cifras definitivas | O74: 0.0541249514
A75: 4612 | B75: 2014 | C75: 02 | D75: 99.4563166 | E75: 100.4352853 | F75: 85.75722587 | G75: 90.36279577 | H75: 90.85676894 | I75: 93.90713642 | J75: 66.69450853 | K75: 66.88067979 | L75: 66.81255137 | M75: 65.22556148 | N75: Cifras definitivas | O75: -0.001769903439
A76: 4612 | B76: 2014 | C76: 03 | D76: 100.4098753 | E76: 101.5041465 | F76: 85.06007587 | G76: 93.19887439 | H76: 92.81843452 | I76: 95.03642178 | J76: 70.04555938 | K76: 70.20323079 | L76: 69.2619558 | M76: 67.88112761 | N76: Cifras definitivas | O76: 0.01118705578
A77: 4612 | B77: 2014 | C77: 04 | D77: 101.8281688 | E77: 103.145144 | F77: 83.28859679 | G77: 94.26283574 | H77: 92.57049091 | I77: 96.78863372 | J77: 76.55364848 | K77: 76.76517276 | L77: 73.15531418 | M77: 72.05685133 | N77: Cifras definitivas | O77: 0.04439153936
A78: 4612 | B78: 2014 | C78: 05 | D78: 100.2086337 | E78: 101.469073 | F78: 82.47446199 | G78: 97.10873383 | H78: 96.90655411 | I78: 96.4945381 | J78: 77.73814591 | K78: 77.86373194 | L78: 75.23494062 | M78: 74.18662055 | N78: Cifras definitivas | O78: 0.03220047585
A79: 4612 | B79: 2014 | C79: 06 | D79: 98.46135081 | E79: 99.63468165 | F79: 81.97070039 | G79: 92.94711968 | H79: 94.39959834 | I79: 96.68201969 | J79: 80.56064484 | K79: 80.7056078 | L79: 79.04134126 | M79: 78.54672666 | N79: Cifras definitivas | O79: 0.01885912883
A80: 4612 | B80: 2014 | C80: 07 | D80: 98.58282295 | E80: 99.70240451 | F80: 82.86362391 | G80: 93.89338633 | H80: 95.2431504 | I80: 98.3393303 | J80: 81.73790634 | K80: 81.78066698 | L80: 77.69644008 | M80: 76.91467951 | N80: Cifras definitivas | O80: 0.04944421066
A81: 4612 | B81: 2014 | C81: 08 | D81: 97.90191134 | E81: 99.05208588 | F81: 81.74150102 | G81: 90.39119246 | H81: 92.32832252 | I81: 97.98783658 | J81: 79.47468787 | K81: 79.45515707 | L81: 77.20719492 | M81: 77.45633294 | N81: Cifras definitivas | O81: 0.02853100793
A82: 4612 | B82: 2014 | C82: 09 | D82: 97.57597994 | E82: 98.81082865 | F82: 80.19979431 | G82: 89.4480913 | H82: 91.67019522 | I82: 93.58520289 | J82: 79.57236681 | K82: 79.22889063 | L82: 79.54735325 | M82: 78.09622764 | N82: Cifras definitivas | O82: 0.0003143498303
A83: 4612 | B83: 2014 | C83: 10 | D83: 98.02033499 | E83: 99.28931853 | F83: 80.15602439 | G83: 91.51257476 | H83: 93.36080597 | I83: 97.90784316 | J83: 78.1146663 | K83: 77.93585484 | L83: 76.63493503 | M83: 75.41451807 | N83: Cifras definitivas | O83: 0.01894306588
A84: 4612 | B84: 2014 | C84: 11 | D84: 98.27410586 | E84: 99.46530817 | F84: 81.52644182 | G84: 95.61604334 | H84: 97.29525647 | I84: 99.20772182 | J84: 81.01597487 | K84: 81.03276976 | L84: 81.11620203 | M84: 79.59965093 | N84: Cifras definitivas | O84: -0.001237128358
A85: 4612 | B85: 2014 | C85: 12 | D85: 98.42608855 | E85: 99.48028207 | F85: 83.64433571 | G85: 116.7231148 | H85: 118.5896102 | I85: 128.8262559 | J85: 105.4790218 | K85: 105.0697234 | L85: 103.3254051 | M85: 104.9511766 | N85: Cifras definitivas | O85: 0.02041748846
A86: 4612 | B86: 2015 | C86: 01 | D86: 98.4070848 | E86: 99.51589277 | F86: 82.84182418 | G86: 89.98189602 | H86: 91.43843271 | I86: 95.03289723 | J86: 76.22377589 | K86: 76.55324588 | L86: 73.026241 | M86: 72.14329499 | N86: Cifras definitivas | O86: 0.04194931113
A87: 4612 | B87: 2015 | C87: 02 | D87: 96.99742108 | E87: 97.92307147 | F87: 84.05466991 | G87: 85.73871714 | H87: 88.39278012 | I87: 87.38923299 | J87: 70.94142717 | K87: 71.321992 | L87: 67.69689609 | M87: 66.64555318 | N87: Cifras definitivas | O87: 0.04573535111
A88: 4612 | B88: 2015 | C88: 03 | D88: 96.68514328 | E88: 97.53981196 | F88: 84.75954106 | G88: 85.63777102 | H88: 88.57386783 | I88: 90.11295687 | J88: 83.0919258 | K88: 83.35121607 | L88: 79.64781282 | M88: 79.20854768 | N88: Cifras definitivas | O88: 0.04144943022
A89: 4612 | B89: 2015 | C89: 04 | D89: 96.73065889 | E89: 97.61368214 | F89: 84.39846896 | G89: 88.41066724 | H89: 91.39880598 | I89: 89.73617904 | J89: 84.27546569 | K89: 84.72668643 | L89: 81.06449561 | M89: 80.49292606 | N89: Cifras definitivas | O89: 0.03810088801
A90: 4612 | B90: 2015 | C90: 05 | D90: 96.75157371 | E90: 97.66483803 | F90: 83.98564937 | G90: 92.1782352 | H90: 95.27311202 | I90: 89.92474149 | J90: 83.78699343 | K90: 84.19228418 | L90: 79.43257289 | M90: 79.76872471 | N90: Cifras definitivas | O90: 0.05197012522
A91: 4612 | B91: 2015 | C91: 06 | D91: 96.88843972 | E91: 97.65856669 | F91: 86.17628827 | G91: 90.16765049 | H91: 93.06337345 | I91: 92.53647083 | J91: 81.91872345 | K91: 82.20140905 | L91: 81.37552023 | M91: 81.59881075 | N91: Cifras definitivas | O91: 0.006631002012
A92: 4612 | B92: 2015 | C92: 07 | D92: 97.64624808 | E92: 98.44808171 | F92: 86.4818884 | G92: 91.85425955 | H92: 94.06839623 | I92: 94.88290687 | J92: 87.1481603 | K92: 87.53544825 | L92: 83.58224912 | M92: 84.05274868 | N92: Cifras definitivas | O92: 0.04091780214
A93: 4612 | B93: 2015 | C93: 08 | D93: 98.25005471 | E93: 99.11210082 | F93: 86.2240391 | G93: 90.74105976 | H93: 92.3572613 | I93: 94.15227781 | J93: 86.34709569 | K93: 86.72659632 | L93: 83.75391231 | M93: 84.74587068 | N93: Cifras definitivas | O93: 0.03003208573
A94: 4612 | B94: 2015 | C94: 09 | D94: 95.69563105 | E94: 96.48951496 | F94: 84.6385596 | G94: 91.11796399 | H94: 95.21643046 | I94: 92.11883605 | J94: 85.10061374 | K94: 85.43325753 | L94: 84.5145477 | M94: 84.5206039 | N94: Cifras definitivas | O94: 0.006886742812
A95: 4612 | B95: 2015 | C95: 10 | D95: 95.49180055 | E95: 96.23751273 | F95: 85.1250453 | G95: 88.08169341 | H95: 92.24005925 | I95: 91.10187587 | J95: 89.16735695 | K95: 89.54496199 | L95: 89.24950695 | M95: 90.11263056 | N95: Cifras definitivas | O95: -0.000921301279
A96: 4612 | B96: 2015 | C96: 11 | D96: 95.3528105 | E96: 95.85492168 | F96: 88.48001988 | G96: 87.4447976 | H96: 91.70657597 | I96: 86.45868943 | J96: 89.84781085 | K96: 90.16389262 | L96: 95.17932456 | M96: 95.6778877 | N96: Cifras definitivas | O96: -0.05933938356
A97: 4612 | B97: 2015 | C97: 12 | D97: 96.26634874 | E97: 96.62823702 | F97: 91.4082109 | G97: 109.8892055 | H97: 114.1512137 | I97: 118.2351426 | J97: 115.2878916 | K97: 116.0453595 | L97: 115.9465942 | M97: 117.7626122 | N97: Cifras definitivas | O97: -0.005713545289
A98: 4612 | B98: 2016 | C98: 01 | D98: 96.84206537 | E98: 97.3098267 | F98: 90.46717558 | G98: 84.50392943 | H98: 87.25952829 | I98: 84.00146226 | J98: 87.73566183 | K98: 88.05523921 | L98: 89.58032092 | M98: 89.36118462 | N98: Cifras definitivas | O98: -0.02102519148
A99: 4612 | B99: 2016 | C99: 02 | D99: 96.8515057 | E99: 97.04616804 | F99: 94.39424182 | G99: 85.84751008 | H99: 88.63828131 | I99: 84.62422738 | J99: 84.97392093 | K99: 85.40813497 | L99: 83.55641171 | M99: 83.43106342 | N99: Cifras definitivas | O99: 0.01668169721
A100: 4612 | B100: 2016 | C100: 03 | D100: 97.33579306 | E100: 97.50957547 | F100: 95.17972669 | G100: 86.70836914 | H100: 89.0816897 | I100: 84.21200196 | J100: 92.2216955 | K100: 92.65461974 | L100: 91.19577341 | M100: 91.14712736 | N100: Cifras definitivas | O100: 0.01112451993
A101: 4612 | B101: 2016 | C101: 04 | D101: 96.79816039 | E101: 96.96549075 | F101: 94.73278791 | G101: 88.15856566 | H101: 91.07462921 | I101: 84.72329832 | J101: 94.68245652 | K101: 95.20161155 | L101: 90.1399394 | M101: 90.17349445 | N101: Cifras definitivas | O101: 0.0479763336
A102: 4612 | B102: 2016 | C102: 05 | D102: 98.73107444 | E102: 98.99530306 | F102: 95.28238938 | G102: 93.89762045 | H102: 95.10442481 | I102: 88.12600823 | J102: 94.19473518 | K102: 94.70516424 | L102: 89.79437642 | M102: 90.07094815 | N102: Cifras definitivas | O102: 0.04671554893
A103: 4612 | B103: 2016 | C103: 06 | D103: 98.4407956 | E103: 98.70868574 | F103: 94.93858172 | G103: 91.40197756 | H103: 92.84969408 | I103: 89.53533756 | J103: 93.01373205 | K103: 93.3379175 | L103: 90.74073096 | M103: 90.97373389 | N103: Cifras definitivas | O103: 0.02443726362
A104: 4612 | B104: 2016 | C104: 07 | D104: 98.94538983 | E104: 99.15917261 | F104: 96.22108974 | G104: 89.12934502 | H104: 90.0793308 | I104: 88.49620591 | J104: 98.6503743 | K104: 98.96383372 | L104: 94.35223318 | M104: 94.89337616 | N104: Cifras definitivas | O104: 0.0435694355
A105: 4612 | B105: 2016 | C105: 08 | D105: 101.2872962 | E105: 101.9230417 | F105: 92.51806445 | G105: 93.27094596 | H105: 92.08553238 | I105: 92.79527477 | J105: 90.39282953 | K105: 90.62975541 | L105: 90.13975513 | M105: 90.26917985 | N105: Cifras definitivas | O105: 0.002799717647
A106: 4612 | B106: 2016 | C106: 09 | D106: 99.56850241 | E106: 100.0941661 | F106: 92.3724412 | G106: 96.26658998 | H106: 96.68377815 | I106: 95.16732119 | J106: 88.59299371 | K106: 88.59531594 | L106: 88.48170618 | M106: 87.67424541 | N106: Cifras definitivas | O106: 0.001256166265
A107: 4612 | B107: 2016 | C107: 10 | D107: 98.3216981 | E107: 97.83553985 | F107: 105.6358637 | G107: 94.24417745 | H107: 95.85287812 | I107: 91.2359599 | J107: 91.16993578 | K107: 91.08564997 | L107: 94.1186733 | M107: 93.305765 | N107: Cifras definitivas | O107: -0.03234331027
A108: 4612 | B108: 2016 | C108: 11 | D108: 100.7192318 | E108: 100.3415355 | F108: 106.4858123 | G108: 92.59272733 | H108: 91.93152658 | I108: 89.45353115 | J108: 93.4898597 | K108: 93.15619221 | L108: 94.09120937 | M108: 94.20975398 | N108: Cifras definitivas | O108: -0.006432244865
A109: 4612 | B109: 2016 | C109: 12 | D109: 100.9780825 | E109: 100.3707165 | F109: 110.0401602 | G109: 117.9419473 | H109: 116.7995514 | I109: 123.9839707 | J109: 127.2351831 | K109: 126.6043283 | L109: 120.7399836 | M109: 122.8396894 | N109: Cifras definitivas | O109: 0.05104876946
A110: 4612 | B110: 2017 | C110: 01 | D110: 98.94709303 | E110: 99.3993174 | F110: 92.80236478 | G110: 92.02361451 | H110: 93.00284798 | I110: 90.54585812 | J110: 82.81655463 | K110: 82.85999006 | L110: 78.16924677 | M110: 77.73058382 | N110: Cifras definitivas | O110: 0.05611568702
A111: 4612 | B111: 2017 | C111: 02 | D111: 99.17660406 | E111: 99.35943257 | F111: 96.89714193 | G111: 92.96056715 | H111: 93.73235556 | I111: 89.35964812 | J111: 80.74407533 | K111: 80.68848933 | L111: 76.94047745 | M111: 76.84197897 | N111: Cifras definitivas | O111: 0.04710683557
A112: 4612 | B112: 2017 | C112: 03 | D112: 98.90939257 | E112: 99.09486388 | F112: 96.59109487 | G112: 92.67467494 | H112: 93.69653633 | I112: 88.85030463 | J112: 91.03994565 | K112: 90.84456752 | L112: 88.18713668 | M112: 88.51576726 | N112: Cifras definitivas | O112: 0.03133579386
A113: 4612 | B113: 2017 | C113: 04 | D113: 100.3456533 | E113: 99.75626933 | F113: 109.147592 | G113: 92.19062412 | H113: 91.87306182 | I113: 88.000681 | J113: 92.79548013 | K113: 93.16578188 | L113: 89.28353767 | M113: 90.21236491 | N113: Cifras definitivas | O113: 0.03784605085
A114: 4612 | B114: 2017 | C114: 05 | D114: 97.45801755 | E114: 96.61356041 | F114: 109.9089766 | G114: 91.80586215 | H114: 94.2004203 | I114: 85.33357356 | J114: 95.68917795 | K114: 95.82917522 | L114: 91.66213829 | M114: 92.17342918 | N114: Cifras definitivas | O114: 0.04208458831
A115: 4612 | B115: 2017 | C115: 06 | D115: 101.4365091 | E115: 100.7440145 | F115: 111.7213391 | G115: 95.24686244 | H115: 93.898009 | I115: 92.39666119 | J115: 95.38975183 | K115: 95.480955 | L115: 96.35021066 | M115: 97.56666239 | N115: Cifras definitivas | O115: -0.01006878424
A116: 4612 | B116: 2017 | C116: 07 | D116: 97.85792331 | E116: 98.23565164 | F116: 92.77806821 | G116: 94.39765165 | H116: 96.46398417 | I116: 92.1656188 | J116: 96.67917389 | K116: 96.87765047 | L116: 97.18822551 | M116: 95.95816419 | N116: Cifras definitivas | O116: -0.005265369981
A117: 4612 | B117: 2017 | C117: 08 | D117: 99.15542819 | E117: 99.40405997 | F117: 95.93194755 | G117: 92.75670622 | H117: 93.54677592 | I117: 89.93506299 | J117: 95.54308535 | K117: 95.56518831 | L117: 96.01632721 | M117: 95.27898441 | N117: Cifras definitivas | O117: -0.004953177493
A118: 4612 | B118: 2017 | C118: 09 | D118: 99.28940932 | E118: 99.53419851 | F118: 96.12151405 | G118: 90.59098271 | H118: 91.23932082 | I118: 90.48307083 | J118: 93.16625917 | K118: 93.31090613 | L118: 94.49127916 | M118: 93.5608023 | N118: Cifras definitivas | O118: -0.01422210145
A119: 4612 | B119: 2017 | C119: 10 | D119: 98.75263764 | E119: 98.99556209 | F119: 95.6096345 | G119: 91.3770806 | H119: 92.53128097 | I119: 94.47696577 | J119: 95.33045122 | K119: 94.86615091 | L119: 96.68539624 | M119: 96.73855223 | N119: Cifras definitivas | O119: -0.01421313969
A120: 4612 | B120: 2017 | C120: 11 | D120: 97.47016814 | E120: 97.47245837 | F120: 97.77461453 | G120: 90.95728983 | H120: 93.31808036 | I120: 92.24684936 | J120: 98.27625262 | K120: 98.27138556 | L120: 109.9125264 | M120: 110.0179114 | N120: Cifras definitivas | O120: -0.1184037185
A121: 4612 | B121: 2017 | C121: 12 | D121: 98.93394789 | E121: 98.96057592 | F121: 98.89433512 | G121: 119.6432913 | H121: 120.9324947 | I121: 130.2979804 | J121: 127.6198195 | K121: 126.4745911 | L121: 125.8273346 | M121: 124.9464513 | N121: Cifras definitivas | O121: 0.01404550506
A122: 4612 | B122: 2018 | C122: 01 | D122: 99.5386757 | E122: 99.84481822 | F122: 95.49153236 | G122: 94.0130049 | H122: 94.4487198 | I122: 94.28422812 | J122: 87.61247739 | K122: 87.66739902 | L122: 84.83582269 | M122: 82.36807226 | N122: Cifras definitivas | O122: 0.03169245732
A123: 4612 | B123: 2018 | C123: 02 | D123: 99.944159 | E123: 99.88906593 | F123: 100.6724785 | G123: 97.35068745 | H123: 97.40507942 | I123: 96.69091831 | J123: 89.88539783 | K123: 90.36639382 | L123: 83.79893317 | M123: 81.6230167 | N123: Cifras definitivas | O123: 0.06771360874
A124: 4612 | B124: 2018 | C124: 03 | D124: 100.047998 | E124: 99.91289647 | F124: 101.8340133 | G124: 97.4372799 | H124: 97.3905344 | I124: 98.54978471 | J124: 102.4379184 | K124: 102.0825317 | L124: 105.1267002 | M124: 106.2663023 | N124: Cifras definitivas | O124: -0.02624791574
A125: 4612 | B125: 2018 | C125: 04 | D125: 99.84102522 | E125: 99.93015306 | F125: 98.66277285 | G125: 97.57980292 | H125: 97.7351772 | I125: 98.87313498 | J125: 95.35814692 | K125: 95.62139818 | L125: 103.2269589 | M125: 104.0005134 | N125: Cifras definitivas | O125: -0.08251850811
A126: 4612 | B126: 2018 | C126: 05 | D126: 100.0661793 | E126: 100.1788495 | F126: 98.57670205 | G126: 101.1264944 | H126: 101.0596139 | I126: 100.363611 | J126: 99.40978782 | K126: 99.60488795 | L126: 103.991076 | M126: 101.922655 | N126: Cifras definitivas | O126: -0.04608488028
A127: 4612 | B127: 2018 | C127: 06 | D127: 100.0570119 | E127: 100.0893428 | F127: 99.6296042 | G127: 98.73221777 | H127: 98.67596075 | I127: 99.02922853 | J127: 96.0768446 | K127: 96.01598828 | L127: 99.01452265 | M127: 99.60337393 | N127: Cifras definitivas | O127: -0.03057633775
A128: 4612 | B128: 2018 | C128: 07 | D128: 100.0043939 | E128: 99.96953351 | F128: 100.4652409 | G128: 99.86589918 | H128: 99.8615114 | I128: 98.79131407 | J128: 97.82102046 | K128: 97.81684904 | L128: 96.50651544 | M128: 94.73109601 | N128: Cifras definitivas | O128: 0.01343785838
A129: 4612 | B129: 2018 | C129: 08 | D129: 100.0457061 | E129: 100.0065119 | F129: 100.5638457 | G129: 102.1160223 | H129: 102.0693703 | I129: 101.6885283 | J129: 98.59344164 | K129: 98.548001 | L129: 101.5650322 | M129: 101.5365133 | N129: Cifras definitivas | O129: -0.03013984024
A130: 4612 | B130: 2018 | C130: 09 | D130: 99.99463871 | E130: 99.91706837 | F130: 101.0201032 | G130: 98.01237531 | H130: 98.01763032 | I130: 99.49306057 | J130: 94.12113727 | K130: 94.17182743 | L130: 97.37380608 | M130: 96.0648437 | N130: Cifras definitivas | O130: -0.03455832456
A131: 4612 | B131: 2018 | C131: 10 | D131: 100.0587521 | E131: 100.059862 | F131: 100.0440794 | G131: 100.3104711 | H131: 100.2515712 | I131: 99.98836409 | J131: 97.04141472 | K131: 97.40930662 | L131: 106.698019 | M131: 107.9832731 | N131: Cifras definitivas | O131: =(J131-L131)/J131 -> -0.0995101349
A132: 4612 | B132: 2018 | C132: 11 | D132: 100.0609852 | E132: 100.0147293 | F132: 100.6724785 | G132: 97.39010424 | H132: 97.33074688 | I132: 99.58342044 | J132: 104.0093629 | K132: 104.2874664 | L132: 101.5430845 | M132: 105.078982 | N132: Cifras definitivas | O132: 0.02371207997
A133: 4612 | B133: 2018 | C133: 12 | D133: 100.3404749 | E133: 100.1871689 | F133: 102.3671491 | G133: 116.0656405 | H133: 115.6718071 | I133: 112.6644068 | J133: 137.6330501 | K133: 136.4079506 | L133: 116.3195291 | M133: 118.8213583 | N133: Cifras definitivas | O133: 0.1548575797
A134: 4612 | B134: 2019 | C134: 01 | D134: 99.97783172 | E134: 99.85208752 | F134: 101.6401452 | G134: 122.2846928 | H134: 122.3118073 | I134: 122.8166845 | J134: 89.42165763 | K134: 89.39091744 | L134: 83.05419626 | M134: 81.64501847 | N134: Cifras definitivas | O134: 0.0712071498
A135: 4612 | B135: 2019 | C135: 02 | D135: 99.96178869 | E135: 99.81599404 | F135: 101.8891651 | G135: 114.1244191 | H135: 114.1680442 | I135: 109.5062985 | J135: 88.15086266 | K135: 88.50860967 | L135: 86.379386 | M135: 81.83463604 | N135: Cifras definitivas | O135: 0.02009596511
A136: 4612 | B136: 2019 | C136: 03 | D136: 100.1015923 | E136: 100.0049316 | F136: 101.3794266 | G136: 110.9190674 | H136: 110.8064966 | I136: 113.4728369 | J136: 100.2457158 | K136: 100.6445374 | L136: 93.68947542 | M136: 90.18495469 | N136: Cifras definitivas | O136: 0.06540170177
A137: 4612 | B137: 2019 | C137: 04 | D137: 100.1457841 | E137: 100.063149 | F137: 101.2382041 | G137: 110.7779336 | H137: 110.6166721 | I137: 112.4155964 | J137: 102.525645 | K137: 101.2851395 | L137: 93.33152447 | M137: 91.52314044 | N137: Cifras definitivas | O137: 0.08967630066
A138: 4612 | B138: 2019 | C138: 05 | D138: 100.1167538 | E138: 99.96953351 | F138: 102.0629775 | G138: 113.9319283 | H138: 113.7990635 | I138: 114.2563277 | J138: 109.5727524 | K138: 108.7070502 | L138: 99.04861451 | M138: 103.03808 | N138: Cifras definitivas | O138: 0.09604703413
A139: 4612 | B139: 2019 | C139: 06 | D139: 100.2220033 | E139: 100.0130227 | F139: 102.984685 | G139: 109.8611562 | H139: 109.6178011 | I139: 113.2311586 | J139: 102.3350181 | K139: 101.2310539 | L139: 91.96481859 | M139: 99.8608364 | N139: Cifras definitivas | O139: 0.1013357863
A140: 4612 | B140: 2019 | C140: 07 | D140: 101.1195933 | E140: 101.0022775 | F140: 102.6704854 | G140: 113.1396226 | H140: 111.8869439 | I140: 117.7971437 | J140: 103.8381242 | K140: 103.8396815 | L140: 91.59240154 | M140: 98.32862599 | N140: Cifras definitivas | O140: 0.1179308927
A141: 4612 | B141: 2019 | C141: 08 | D141: 100.9973607 | E141: 100.745072 | F141: 104.3325663 | G141: 110.1507412 | H141: 109.0629898 | I141: 113.4091779 | J141: 100.1777332 | K141: 99.5943309 | L141: 90.9873064 | M141: 92.25058524 | N141: Cifras definitivas | O141: 0.09174121341
A142: 4612 | B142: 2019 | C142: 09 | D142: 100.8561467 | E142: 100.6785741 | F142: 103.2036212 | G142: 107.9332875 | H142: 107.0170645 | I142: 112.9277708 | J142: 99.11847133 | K142: 98.57979185 | L142: 90.86444891 | M142: 93.11896142 | N142: Cifras definitivas | O142: 0.08327431113
A143: 4612 | B143: 2019 | C143: 10 | D143: 101.237301 | E143: 100.710622 | F143: 108.1998916 | G143: 110.5421597 | H143: 109.1911367 | I143: 114.1324527 | J143: 99.75944097 | K143: 99.48543446 | L143: 96.33992659 | M143: 98.78122693 | N143: Cifras definitivas | O143: 0.03427760167
A144: 4612 | B144: 2019 | C144: 11 | D144: 101.2404155 | E144: 100.637487 | F144: 109.2110115 | G144: 108.0346501 | H144: 106.7109904 | I144: 113.2710237 | J144: 105.9850665 | K144: 106.5333828 | L144: 99.63124921 | M144: 102.2529535 | N144: Cifras definitivas | O144: 0.05995011827
A145: 4612 | B145: 2019 | C145: 12 | D145: 101.6876453 | E145: 101.032264 | F145: 110.3516552 | G145: 126.9938345 | H145: 124.8861985 | I145: 130.6423353 | J145: 139.4999137 | K145: 139.5750644 | L145: 123.1786385 | M145: 128.7657153 | N145: Cifras definitivas | O145: 0.1169984609
A146: 4612 | B146: 2020 | C146: 01 | D146: 101.3060208 | E146: 100.7737942 | F146: 108.3419496 | G146: 113.3613199 | H146: 111.8998842 | I146: 120.415449 | J146: 87.89008739 | K146: 88.32944668 | L146: 82.18410605 | M146: 79.58249959 | N146: Cifras definitivas | O146: 0.0649217848
A147: 4612 | B147: 2020 | C147: 02 | D147: 101.094523 | E147: 100.7023026 | F147: 106.2795984 | G147: 109.29481 | H147: 108.1115047 | I147: 109.7660361 | J147: 86.50938614 | K147: 86.9714741 | L147: 80.7829063 | M147: 78.42845288 | N147: Cifras definitivas | O147: 0.06619489625
A148: 4612 | B148: 2020 | C148: 03 | D148: 101.1042782 | E148: 100.6817591 | F148: 106.6898966 | G148: 111.8542154 | H148: 110.6325245 | I148: 111.1008561 | J148: 82.11390648 | K148: 82.58189662 | L148: 80.43800236 | M148: 78.24186807 | N148: Cifras definitivas | O148: 0.02040950421
A149: 4612 | B149: 2020 | C149: 04 | D149: 88.93657695 | E149: 87.7801154 | F149: 104.2247689 | G149: 93.81396003 | H149: 105.4841138 | I149: 89.98089909 | J149: 45.58908873 | K149: 45.60548101 | L149: 41.90164365 | M149: 41.47087853 | N149: Cifras definitivas | O149: 0.08088437788
A150: 4612 | B150: 2020 | C150: 05 | D150: 88.71634117 | E150: 87.77084278 | F150: 101.2156421 | G150: 95.25086565 | H150: 107.3656379 | I150: 85.73848955 | J150: 42.30093367 | K150: 42.51222062 | L150: 41.45570475 | M150: 40.9125708 | N150: Cifras definitivas | O150: 0.01998133012
A151: 4612 | B151: 2020 | C151: 06 | D151: 95.23664089 | E151: 94.7844279 | F151: 101.2148067 | G151: 97.82132511 | H151: 102.7139599 | I151: 100.0025067 | J151: 68.13415227 | K151: 68.34426737 | L151: 63.63506246 | M151: 67.35757354 | N151: Cifras definitivas | O151: 0.06603281409
A152: 4612 | B152: 2020 | C152: 07 | D152: 95.25338913 | E152: 94.79675404 | F152: 101.2900143 | G152: 94.41455104 | H152: 99.11936142 | I152: 105.5860231 | J152: 64.11428798 | K152: 64.30658585 | L152: 59.12012382 | M152: 62.44855531 | N152: Cifras definitivas | O152: 0.07789471454
A153: 4612 | B153: 2020 | C153: 08 | D153: 95.55646654 | E153: 95.16871187 | F153: 100.6825063 | G153: 102.3737711 | H153: 107.1343205 | I153: 106.0306484 | J153: 75.70678518 | K153: 75.26423872 | L153: 66.83897153 | M153: 69.11253358 | N153: Cifras definitivas | O153: 0.1171336708
A154: 4612 | B154: 2020 | C154: 09 | D154: 96.29985402 | E154: 95.96997571 | F154: 100.6607798 | G154: 102.1737732 | H154: 106.0996138 | I154: 114.115051 | J154: 72.45538638 | K154: 72.88942917 | L154: 68.07489277 | M154: 69.99398067 | N154: Cifras definitivas | O154: 0.06045780485
A155: 4612 | B155: 2020 | C155: 10 | D155: 96.27932207 | E155: 95.83038145 | F155: 102.2142279 | G155: 112.0262759 | H155: 116.3554889 | I155: 118.0051184 | J155: 85.6283468 | K155: 85.89772099 | L155: 78.48186926 | M155: 80.47766943 | N155: Cifras definitivas | O155: 0.08345924927
A156: 4612 | B156: 2020 | C156: 11 | D156: 96.23818605 | E156: 95.82627274 | F156: 101.6835983 | G156: 112.0511923 | H156: 116.4311142 | I156: 121.7335236 | J156: 87.24072886 | K156: 87.73316263 | L156: 84.3141251 | M156: 84.17835651 | N156: Cifras definitivas | O156: 0.03354630112
A157: 4612 | B157: 2020 | C157: 12 | D157: 96.18617843 | E157: 95.74902893 | F157: 101.965208 | G157: 123.8430586 | H157: 128.7534869 | I157: 132.8246617 | J157: 112.7169199 | K157: 112.6462668 | L157: 96.96580427 | M157: 98.74995785 | N157: Cifras definitivas | O157: 0.1397404724
A158: 4612 | B158: 2021 | C158: 01 | D158: 96.82222373 | E158: 97.38133771 | F158: 89.43084795 | G158: 115.5360061 | H158: 119.3279824 | I158: 128.1326623 | J158: 84.03079092 | K158: 84.33483286 | L158: 77.24776504 | M158: 77.24560933 | N158: Cifras definitivas | O158: 0.08072071922
A159: 4612 | B159: 2021 | C159: 02 | D159: 97.02300473 | E159: 97.65071988 | F159: 88.72473517 | G159: 117.5084545 | H159: 121.114013 | I159: 124.7056652 | J159: 91.15096107 | K159: 91.5815093 | L159: 83.28621123 | M159: 85.47300351 | N159: Cifras definitivas | O159: 0.08628268696
A160: 4612 | B160: 2021 | C160: 03 | D160: 96.98786285 | E160: 97.65071988 | F160: 88.22502459 | G160: 116.2925721 | H160: 119.9042526 | I160: 128.2094952 | J160: 106.2066212 | K160: 107.3389854 | L160: 97.77394444 | M160: 99.53371417 | N160: Cifras definitivas | O160: 0.07939878565
A161: 4612 | B161: 2021 | C161: 04 | D161: 97.02376869 | E161: 97.65482859 | F161: 88.68128208 | G161: 118.2596303 | H161: 121.8872777 | I161: 127.9625983 | J161: 109.3116431 | K161: 109.8645363 | L161: 98.04061384 | M161: 101.9423863 | N161: Cifras definitivas | O161: 0.1031091374
A162: 4612 | B162: 2021 | C162: 05 | D162: 97.08482626 | E162: 97.70982215 | F162: 88.82250463 | G162: 119.0202755 | H162: 122.5941067 | I162: 127.3585851 | J162: 113.9763639 | K162: 115.0967355 | L162: 102.0442686 | M162: 105.5431582 | N162: Cifras definitivas | O162: 0.1046892079
A163: 4612 | B163: 2021 | C163: 06 | D163: 98.10535415 | E163: 98.83055575 | F163: 88.51833297 | G163: 117.1466626 | H163: 119.409041 | I163: 127.4991713 | J163: 109.5325854 | K163: 110.3734212 | L163: 98.34708068 | M163: 103.4255699 | N163: Cifras definitivas | O163: 0.1021203391
A164: 4612 | B164: 2021 | C164: 07 | D164: 98.1649052 | E164: 100.0736627 | F164: 72.93151037 | G164: 113.576746 | H164: 115.6999498 | I164: 140.5701481 | J164: 103.1745097 | K164: 103.7754092 | L164: 93.32725071 | M164: 94.98886685 | N164: Cifras definitivas | O164: 0.09544275079
A165: 4612 | B165: 2021 | C165: 08 | D165: 98.34204641 | E165: 101.5040637 | F165: 56.54080552 | G165: 124.3098345 | H165: 126.4055804 | I165: 156.3362525 | J165: 105.4384652 | K165: 106.2327345 | L165: 96.68845073 | M165: 97.29101617 | N165: Cifras definitivas | O165: 0.08298692916
A166: 4612 | B166: 2021 | C166: 09 | D166: 98.48249644 | E166: 101.6050117 | F166: 57.20346521 | G166: 123.9662455 | H166: 125.8764248 | I166: 155.9499446 | J166: 103.5096596 | K166: 104.238178 | L166: 92.90999918 | M166: 94.51686108 | N166: Cifras definitivas | O166: 0.1024026204
A167: 4612 | B167: 2021 | C167: 10 | D167: 98.9047066 | E167: 102.2325472 | F167: 54.91131449 | G167: 131.3927731 | H167: 132.8478468 | I167: 168.4662315 | J167: 104.5280529 | K167: 105.4806569 | L167: 96.8631841 | M167: 98.60739116 | N167: Cifras definitivas | O167: 0.07332834198
A168: 4612 | B168: 2021 | C168: 11 | D168: 98.09879239 | E168: 101.3640269 | F168: 54.93304104 | G168: 127.2077136 | H168: 129.6730678 | I168: 164.6944779 | J168: 112.9175937 | K168: 114.282213 | L168: 103.3128945 | M168: 105.6234649 | N168: Cifras definitivas | O168: 0.08505936854
A169: 4612 | B169: 2021 | C169: 12 | D169: 98.24846862 | E169: 101.5053034 | F169: 55.1937596 | G169: 150.8317411 | H169: 153.5207044 | I169: 194.2664127 | J169: 147.2986008 | K169: 149.0409065 | L169: 122.8794078 | M169: 130.9348908 | N169: Cifras definitivas | O169: 0.1657802104
A170: 4612 | B170: 2022 | C170: 01 | D170: 98.67118398 | E170: 102.5113004 | F170: 47.90560676 | G170: 126.3860938 | H170: 128.0881497 | I170: 168.4554298 | J170: 108.1269791 | K170: 109.1646622 | L170: 92.64604669 | M170: 94.49895137 | N170: Cifras definitivas | O170: 0.143173633
A171: 4612 | B171: 2022 | C171: 02 | D171: 102.4694701 | E171: 105.8901012 | F171: 57.24940599 | G171: 135.6291769 | H171: 132.3605722 | I171: 175.3245778 | J171: 99.65194381 | K171: 100.5223561 | L171: 91.90307995 | M171: 93.46903776 | N171: Cifras definitivas | O171: 0.0777592846
A172: 4612 | B172: 2022 | C172: 03 | D172: 99.28724959 | E172: 102.8220411 | F172: 52.55800788 | G172: 125.9540168 | H172: 126.8581991 | I172: 165.1010669 | J172: 115.4049992 | K172: 116.5245109 | L172: 106.4459858 | M172: 111.2675501 | N172: Cifras definitivas | O172: 0.07763106836
A173: 4612 | B173: 2022 | C173: 04 | D173: 99.79345098 | E173: 102.9651185 | F173: 57.86463663 | G173: 140.9734112 | H173: 141.2651931 | I173: 177.795751 | J173: 120.4403504 | K173: 121.6217635 | L173: 100.630582 | M173: 113.1193983 | N173: Cifras definitivas | O173: 0.1644778381
A174: 4612 | B174: 2022 | C174: 05 | D174: 100.8731047 | E174: 104.1010499 | F174: 58.20030961 | G174: 149.9993699 | H174: 148.701054 | I174: 178.6945912 | J174: 130.1288651 | K174: 130.7054503 | L174: 98.88292178 | M174: 110.5680347 | N174: Cifras definitivas | O174: 0.2401153908
A175: 4612 | B175: 2022 | C175: 06 | D175: 100.1511928 | E175: 103.3243427 | F175: 58.20278209 | G175: 136.5039586 | H175: 136.297886 | I175: 173.0023885 | J175: 115.8560353 | K175: 116.7798401 | L175: 97.8966251 | M175: 112.296709 | N175: Cifras definitivas | O175: 0.1550148866
A176: 4612 | B176: 2022 | C176: 07 | D176: 100.1276161 | E176: 102.9949971 | F176: 62.22140789 | G176: 146.8842196 | H176: 146.6970107 | I176: 188.5945049 | J176: 124.806065 | K176: 125.7736689 | L176: 105.6258023 | M176: 121.1540256 | N176: Cifras definitivas | O176: 0.1536805337
A177: 4612 | B177: 2022 | C177: 08 | D177: 102.8429452 | E177: 106.0565824 | F177: 60.35929941 | G177: 143.0911238 | H177: 139.1355755 | I177: 184.4122027 | J177: 123.0652359 | K177: 123.7277689 | L177: 106.0486155 | M177: 121.0568196 | N177: Cifras definitivas | O177: 0.1382731711
A178: 4612 | B178: 2022 | C178: 09 | D178: 102.8807322 | E178: 106.1869754 | F178: 59.17285286 | G178: 142.6253664 | H178: 138.6317568 | I178: 186.2080955 | J178: 108.4047117 | K178: 109.2491491 | L178: 94.89427102 | M178: 108.5439352 | N178: Cifras definitivas | O178: 0.1246296446
A179: 4612 | B179: 2022 | C179: 10 | D179: 104.0920229 | E179: 107.3181624 | F179: 61.44309996 | G179: 142.2800165 | H179: 136.6867628 | I179: 186.1875435 | J179: 113.4843308 | K179: 114.3531968 | L179: 101.9386126 | M179: 117.2961539 | N179: Cifras definitivas | O179: 0.1017384347
A180: 4612 | B180: 2022 | C180: 11 | D180: 108.0762518 | E180: 111.632671 | F180: 61.06109729 | G180: 140.7138443 | H180: 130.1986717 | I180: 185.7928139 | J180: 124.5485098 | K180: 125.4744385 | L180: 104.714966 | M180: 118.8411842 | N180: Cifras definitivas | O180: 0.1592435255
A181: 4612 | B181: 2022 | C181: 12 | D181: 109.3381321 | E181: 112.9920755 | F181: 61.03372619 | G181: 176.2554597 | H181: 161.2021865 | I181: 241.182103 | J181: 147.6282043 | K181: 147.9985453 | L181: 120.3761782 | M181: 138.3350693 | N181: Cifras definitivas | O181: 0.1845990487
A182: 4612 | B182: 2023 | C182: 01 | D182: 107.5201271 | E182: 110.6615259 | F182: 65.99145917 | G182: 145.9279907 | H182: 135.7215571 | I182: 191.6866134 | J182: 116.0281791 | K182: 117.1092944 | L182: 98.62865526 | M182: 111.4552115 | N182: Cifras preliminares | O182: 0.1499594665
A183: 4612 | B183: 2023 | C183: 02 | D183: 100.4001393 | E183: 103.3482089 | F183: 61.42724502 | G183: 139.9453276 | H183: 139.3875832 | I183: 184.4166728 | J183: 109.1790148 | K183: 110.0397205 | L183: 94.41800334 | M183: 106.0631636 | N183: Cifras preliminares | O183: 0.1352000791
A184: 4612 | B184: 2023 | C184: 03 | D184: 101.9642693 | E184: 104.9893599 | F184: 61.97317231 | G184: 149.8228732 | H184: 146.9366418 | I184: 201.9778489 | J184: 119.5857979 | K184: 120.5604065 | L184: 108.0630599 | M184: 122.7963773 | N184: Cifras preliminares | O184: 0.09635540462
A185: 4612 | B185: 2023 | C185: 04 | D185: 105.5547243 | E185: 108.8743662 | F185: 61.66971654 | G185: 141.3420394 | H185: 133.9040393 | I185: 184.6595589 | J185: 106.9683049 | K185: 107.7168487 | L185: 97.3022484 | M185: 110.4014058 | N185: Cifras preliminares | O185: 0.09036374356
A186: 4612 | B186: 2023 | C186: 05 | D186: 101.4204554 | E186: 104.3516015 | F186: 62.67128538 | G186: 161.9503884 | H186: 159.6821743 | I186: 198.6335546 | J186: 113.6159588 | K186: 114.1248018 | L186: 91.76035658 | M186: 103.2398862 | N186: Cifras preliminares | O186: 0.1923638405
A187: 4612 | B187: 2023 | C187: 06 | D187: 100.1327183 | E187: 104.1141088 | F187: 47.49952564 | G187: 145.5097774 | H187: 145.3169153 | I187: 190.770282 | J187: 106.6757982 | K187: 107.3829279 | L187: 90.30074833 | M187: 101.3893549 | N187: Cifras preliminares | O187: 0.1535029511
A188: 4612 | B188: 2023 | C188: 07 | D188: 106.503112 | E188: 110.7178329 | F188: 50.78533891 | G188: 154.3697821 | H188: 144.9439168 | I188: 210.0942405 | J188: 119.4224045 | K188: 120.2450353 | L188: 95.43440354 | M188: 107.3078299 | N188: Cifras preliminares | O188: 0.2008668395
A189: 4612 | B189: 2023 | C189: 08 | D189: 104.8298351 | E189: 108.9438052 | F189: 50.44396705 | G189: 151.4989085 | H189: 144.5188847 | I189: 204.210003 | J189: 113.9295193 | K189: 114.7579099 | L189: 103.3811814 | M189: 117.6610273 | N189: Cifras preliminares | O189: 0.09258652228
A190: 4612 | B190: 2023 | C190: 09 | D190: 105.1466408 | E190: 109.2390736 | F190: 51.04549258 | G190: 155.8680287 | H190: 148.2387145 | I190: 203.1474836 | J190: 113.190883 | K190: 113.4537057 | L190: 100.0751042 | M190: 114.5413422 | N190: Cifras preliminares | O190: 0.1158731024
A191: 4612 | B191: 2023 | C191: 10 | D191: 106.3425401 | E191: 110.5440934 | F191: 50.79883978 | G191: 162.1891425 | H191: 152.5157688 | I191: 209.4354383 | J191: 117.0627509 | K191: 117.9802741 | L191: 99.733167 | M191: 113.1500827 | N191: Cifras preliminares | O191: 0.1480367051
A192: 4612 | B192: 2023 | C192: 11 | D192: 104.548106 | E192: 108.6124116 | F192: 50.81879236 | G192: 146.4745923 | H192: 140.1025785 | I192: 198.734052 | J192: 109.2006746 | K192: 109.8201151 | L192: 87.60466346 | M192: 98.60297757 | N192: Cifras preliminares | O192: 0.1977644482
A193: 4612 | B193: 2023 | C193: 12 | D193: 104.3641938 | E193: 108.4310018 | F193: 50.60179847 | G193: 198.7606722 | H193: 190.4491043 | I193: 266.387269 | J193: 138.6258699 | K193: 139.4410537 | L193: 117.3786351 | M193: 133.4076252 | N193: Cifras preliminares | O193: 0.153270344
A194: 431 | B194: 2008 | C194: 06 | D194: 67.82739962 | E194: 80.95220828 | F194: 51.25248184 | G194: 57.11365262 | H194: 84.20439666 | I194: 70.83060968 | J194: 77.68264733 | K194: 79.61847616 | L194: 74.80800831 | M194: 82.10841691 | N194: Cifras definitivas | O194: 0.03700490546
A195: 431 | B195: 2008 | C195: 07 | D195: 68.06125491 | E195: 80.95631261 | F195: 51.78032533 | G195: 59.80674876 | H195: 87.87194541 | I195: 77.0195414 | J195: 79.21562156 | K195: 81.20022572 | L195: 75.05909063 | M195: 82.61561917 | N195: Cifras definitivas | O195: =(J195-L195)/J195 -> 0.05247110164
A196: 431 | B196: 2008 | C196: 08 | D196: 67.85837311 | E196: 79.49530267 | F196: 53.45660847 | G196: 58.36536437 | H196: 86.01055654 | I196: 71.5410642 | J196: 78.66048692 | K196: 80.58951081 | L196: 75.67267466 | M196: 83.03273504 | N196: Cifras definitivas | O196: 0.03798364817
A197: 431 | B197: 2008 | C197: 09 | D197: 67.89098801 | E197: 79.37680822 | F197: 53.67392245 | G197: 56.38396966 | H197: 83.05074254 | I197: 69.8655529 | J197: 76.92945773 | K197: 78.81983336 | L197: 73.72346427 | M197: 80.8626471 | N197: Cifras definitivas | O197: 0.04167445806
A198: 431 | B198: 2008 | C198: 10 | D198: 69.05903323 | E198: 81.23464906 | F198: 54.07507863 | G198: 59.71596282 | H198: 86.47089313 | I198: 73.63187113 | J198: 82.01264463 | K198: 83.99854648 | L198: 79.68603491 | M198: 87.45298213 | N198: Cifras definitivas | O198: 0.0283689147
A199: 431 | B199: 2008 | C199: 11 | D199: 68.84634634 | E199: 80.80361408 | F199: 54.15682597 | G199: 58.50930637 | H199: 84.98534705 | I199: 71.01133653 | J199: 79.99654635 | K199: 82.05350512 | L199: 77.85545769 | M199: 85.17526077 | N199: Cifras definitivas | O199: 0.0267647637
A200: 431 | B200: 2008 | C200: 12 | D200: 69.024649 | E200: 81.12621724 | F200: 54.12030499 | G200: 65.11963437 | H200: 94.34257952 | I200: 90.6229672 | J200: 88.23396874 | K200: 90.55907512 | L200: 81.00544467 | M200: 88.72582531 | N200: Cifras definitivas | O200: 0.08192450338
... 4300 more rows

Sheet elasticidades (hidden)
E8: Autor | F8: Año de publicación | G8: Escenario/Propuesta | H8: Resultados | P8: Elasticidad ingreso
E9: Urzúa, C. | F9: 2013 | G9: Aumentar el precio del cerveza en 1% | H9: Disminución de la demanda de 1.082% en áreas urbanas, 1.462% en áreas rurales.
E10: Ameida, A. | F10: 1999 | G10: Elasticidad precio directa | H10: Tequila -0.288 Destilados de caña -0.653 Cerveza -1.069 Destilados de uva -0.585 Vodka, ginebra y otras 0.7777
G11: Elasticidad ingreso | H11: Tequila 0.5729 Destilados de caña 0.0046 Cerveza 1.257 Destilados de uva 0.7038 Vodka, ginebra y otras 0.2212
E12: Medina-Mora, et al. | F12: 2010 | G12: 1) Mantener el escenario actual (alcoholímetro-impuestos) | H12: Costo de 1246 pesos por DALY evitado
G13: 2) Incremento de 25% en los impuestos al consumo | H13: Costo de 644 pesos por DALY evitado
G14: 3) Incremento de 50% en los impuestos al consumo de productos con grados nocivos de alcohol | H14: Costo de 567 pesos por DALY evitado
G15: 4) Reducción de la disponibilidad de productos con grado nocivo de alcohol | H15: Costo de 2040 pesos por DALY evitado
G16: 5) Regulación de la publicidad asociada | H16: Costo de 1802 pesos por DALY evitado
G17: 6) Intervención preventiva-persuasiva breve en el primer nivel de atención | H17: Costo de 14342 pesos por DALY evitado
G18: 7) Pruebas aleatorias a automovilistas (alcoholímetro). | H18: Costo de 9356 pesos por DALY evitado
E19: Nicita, A. | F19: 2008 | G19: Elasticidad precio alcohol y tabaco | H19: Promedio -0.91 Q1 → -0.98 Q2 → -0.91 Q3 → -0.86 Q4 → -0.93 Q5 → -0.50 Rural → -0.90 Urbano → -0.93
E20: Guillermo Paraje and Pablo Pincheira | F20: 2018 | G20: Resultado de México con la tasa de crecimiento anual del cociente entre el salario nominal y el precio del bien. | H20: Reducción en la asequibilidad de la cerveza en México: -1.18%.
E21: Horacio Catalán and Emmanuel Moreno | F21: 2016 | G21: Elasticidad en incrementar 1% en precios de cerveza | H21: Corto plazo: reduce la demanda en un 0.25% Largo plazo: reduce la demanda 1.23%.
G22: Elasticidad en incrementar 1% en precios de vinos y licores | H22: Corto plazo: reduce la demanda en un 0.58% Largo plazo: reduce en un 1.48%.
G23: Elasticidad en incrementar 1% en ingresos para demanda en cerveza | H23: Corto plazo: aumenta la demanda de cerveza en un 0.61% -Largo plazo aumentaría la demanda de cerveza en un 3.04%.
G24: Elasticidad en incrementar 1% en ingresos para demanda en vinos y licores | H24: Corto plazo: aumenta en un 1.08% Largo plazo aumenta en un 2.75%.
G25: Tasa preferencial en cerveza | H25: Consumidores de cerveza tienen una preferencia por el consumo presente, con una tasa de preferencia temporal del 1.64
G26: Tasa preferencial en vinos y licores | H26: Consumidores de vinos y licores valoran más el consumo futuro, con una tasa de preferencia temporal de 0.42.
E27: Moreno-Aguilar, Guerrero-López, Colchero,, Quezada, & Bautista-Arredondo | F27: 2021 | G27: La demanda de la cerveza es inelástica. Los incrementos en el precio de la cerveza ocasionan mayores proporciones de disminución en el consumo en cerveza. | H27: Incremento en el 1% de la cerveza ocasiona disminuciones de demanda en 1.31% en el corto plazo y 1.40% en el largo plazo
E28: Huesca Reynoso, Llamas Rembao & Calderón Villarreal | F28: 2021 | G28: Elasticidad precio | H28: Un incremento de 1% en el precio del alcohol disminuye su demanda en 0.59%.
G29: Elasticidad cruzada | H29: El incremento de 1% en los precios de los cigarrillos disminuye en 0.036% la demanda de alcohol.
G30: Elasticidad cruzada | H30: El incremento en 1% de los refrescos ocasiona disminución en la demanda de cerveza por 0.404%

Sheet ConsumoCNA (hidden)
A2: Resumen | J2: Proxy de consumo= CNA
B3: Consumo Bebidad alcoholicas | C3: Consumo Cerveza | E3: Consumo Vinos | G3: Consumo destilados
A4: 2013 | B4: 6534499714 | C4: 6277480897 | D4: 0.9606674072 | E4: 91647813.7 | F4: 0.0140252227 | G4: 165371002.7 | H4: 0.02530737011
A5: 2014 | B5: 6869664810 | C5: 6569990904 | D5: 0.9563772157 | E5: 91161221.43 | F5: 0.013270112 | G5: 208512684.9 | H5: 0.03035267232
A6: 2015 | B6: 7467282426 | C6: 7123341707 | D6: 0.9539403093 | E6: 99602734.9 | F6: 0.01333855199 | G6: 244337983.8 | H6: 0.03272113868
A7: 2016 | B7: 7777257374 | C7: 7462040263 | D7: 0.9594693739 | E7: 108620821.5 | F7: 0.01396646867 | G7: 206596289.4 | H7: 0.02656415745
A8: 2017 | B8: 8494546580 | C8: 8127908087 | D8: 0.956838368 | E8: 105506973.9 | F8: 0.01242055393 | G8: 261131519.4 | H8: 0.03074107804
A9: 2018 | B9: 8841455284 | C9: 8493066378 | D9: 0.9605959772 | E9: 93886455.95 | F9: 0.01061889168 | G9: 254502449.8 | H9: 0.02878513114
A10: 2019 | B10: 8926423706 | C10: 8553224556 | D10: 0.9581916384 | E10: 106325963.2 | F10: 0.0119113731 | G10: 266873186.5 | H10: 0.02989698845 | J10: Fuentes:
A11: 2020 | B11: 8504178463 | C11: 8144204771 | D11: 0.9576709621 | E11: 62034178.85 | F11: 0.007294552803 | G11: 297939513.6 | H11: 0.03503448509 | J11: producción de la Encuesta Mensual de la Industria Manufacturera (EMIM). Serie 2018 | K11: https://www.inegi.org.mx/programas/emim/2018/
A12: 2021 | B12: 1.080491683e+10 | C12: 9853395746 | D12: 0.9119362876 | E12: 70468695.54 | F12: 0.006521910036 | G12: 881052392.5 | H12: 0.08154180232 | J12: importación & exportación del Cubo de Información de Comercio Exterior | K12: https://www.banxico.org.mx/CuboComercioExterior/ValorDolares/inicio
A13: 2022 | B13: 1.002847142e+10 | C13: 9770758960 | D13: 0.9743019202 | E13: 98234105.73 | F13: 0.009795521335 | G13: 159478353.2 | H13: 0.01590255848 | J13: población | K13: https://datos.gob.mx/busca/dataset/proyecciones-de-la-poblacion-de-mexico-y-de-las-entidades-federativas-2020-2070
A14: 2023 | B14: =SUM(C14,E14,G14) -> 8322434163 | C14: 8037230089 | D14: =C14/B14 -> 0.9657306903 | E14: 127447622.2 | F14: =E14/B14 -> 0.01531374351 | G14: 157756451.4 | H14: =G14/B14 -> 0.01895556617
A18: Cerveza | B18: año | C18: Producción Nacional | D18: Importaciones | E18: Exportaciones | F18: población | G18: CNA | H18: Consumo Cerveza
B19: 2013 | C19: 8460383000 | D19: 161208815.8 | E19: 2344110919 | F19: 84892499 | G19: 73.94623755 | H19: 6277480897
B20: 2014 | C20: 9145035000 | D20: 172054710 | E20: 2747098806 | F20: 86412614 | G20: 76.03046129 | H20: 6569990904
B21: 2015 | C21: 9715324000 | D21: 256642823.2 | E21: 2848625116 | F21: 87875895 | G21: 81.06138444 | H21: 7123341707
B22: 2016 | C22: 10431897000 | D22: 252941743.2 | E22: 3222798480 | F22: 89309122 | G22: 83.55294617 | H22: 7462040263
B23: 2017 | C23: 11178113000 | D23: 262267823.8 | E23: 3312472737 | F23: 90718649 | G23: 89.59467735 | H23: 8127908087
B24: 2018 | C24: 12162562000 | D24: 282537398.5 | E24: 3952033020 | F24: 92107030 | G24: 92.20866614 | H24: 8493066378
B25: 2019 | C25: 12450242000 | D25: 117355436 | E25: 4014372880 | F25: 93478857 | G25: 91.49902802 | H25: 8553224556
B26: 2020 | C26: 11868343000 | D26: 40616502.17 | E26: 3764754731 | F26: 94830134 | G26: 85.88203377 | H26: 8144204771
B27: 2021 | C27: 13469664000 | D27: 29387339.88 | E27: 3645655594 | F27: 96156144 | G27: 102.4728669 | H27: 9853395746
B28: 2022 | C28: 14170972000 | D28: 29323218.48 | E28: 4429536259 | F28: 97456833 | G28: 100.2573002 | H28: 9770758960
B29: 2023 | C29: 12217691000 | D29: 14800345.91 | E29: 4195261257 | H29: 8037230089
A31: Fermentados | B31: año | C31: Producción Nacional | D31: Importaciones | E31: Exportaciones | F31: población | G31: CNA | H31: Consumo Vinos
B32: 2013 | C32: 41747000 | D32: 50381881.39 | E32: 481067.69 | F32: 84892499 | G32: 1.07957493 | H32: 91647813.7
B33: 2014 | C33: 39582000 | D33: 52408693.52 | E33: 829472.086 | F33: 86412614 | G33: 1.054952711 | H33: 91161221.43
B34: 2015 | C34: 42131000 | D34: 58101827.97 | E34: 630093.076 | F34: 87875895 | G34: 1.133447744 | H34: 99602734.9
B35: 2016 | C35: 43722000 | D35: 65579731.87 | E35: 680910.4 | F35: 89309122 | G35: 1.216234345 | H35: 108620821.5
B36: 2017 | C36: 33807000 | D36: 72497626.22 | E36: 797652.295 | F36: 90718649 | G36: 1.163013064 | H36: 105506973.9
B37: 2018 | C37: 24130000 | D37: 70366287.58 | E37: 609831.638 | F37: 92107030 | G37: 1.019319111 | H37: 93886455.95
B38: 2019 | C38: 29658000 | D38: 77553562.02 | E38: 885598.832 | F38: 93478857 | G38: 1.137433283 | H38: 106325963.2
B39: 2020 | C39: 15381000 | D39: 70933671.06 | E39: 24280492.21 | F39: 94830134 | G39: 0.6541610376 | H39: 62034178.85
B40: 2021 | C40: 28940000 | D40: 76400013.82 | E40: 34871318.28 | F40: 96156144 | G40: 0.7328569201 | H40: 70468695.54 | J40: OJO: La EMIM ya no registra producción de Fermentados, se toma la producción de 2022
B41: 2022 | C41: 30010000 | D41: 104559813.6 | E41: 36335707.9 | F41: 97456833 | G41: 1.007975559 | H41: 98234105.73
B42: 2023 | C42: 30010000 | D42: 103261590.3 | E42: 5823968.102 | H42: =C42+D42-E42 -> 127447622.2
A44: Destilados | B44: año | C44: Producción Nacional | D44: Importaciones | E44: Exportaciones | F44: población | G44: CNA | H44: Consumo destilados
B45: 2013 | C45: 180860000 | D45: 156407012.5 | E45: 171896009.8 | F45: 84892499 | G45: 1.948004885 | H45: 165371002.7
B46: 2014 | C46: 210881000 | D46: 185876019.9 | E46: 188244335 | F46: 86412614 | G46: 2.412988975 | H46: 208512684.9
B47: 2015 | C47: 214525000 | D47: 211739328 | E47: 181926344.2 | F47: 87875895 | G47: 2.780489278 | H47: 244337983.8
B48: 2016 | C48: 229714000 | D48: 185563212.4 | E48: 208680923 | F48: 89309122 | G48: 2.31327198 | H48: 206596289.4
B49: 2017 | C49: 246559000 | D49: 224869485.7 | E49: 210296966.4 | F49: 90718649 | G49: 2.878476721 | H49: 261131519.4
B50: 2018 | C50: 263306000 | D50: 221655201.3 | E50: 230458751.5 | F50: 92107030 | G50: 2.763116451 | H50: 254502449.8
B51: 2019 | C51: 317654000 | D51: 198036465.8 | E51: 248817279.3 | F51: 93478857 | G51: 2.854904254 | H51: 266873186.5
B52: 2020 | C52: 262448000 | D52: 371865629 | E52: 336374115.4 | F52: 94830134 | G52: 3.141823184 | H52: 297939513.6
B53: 2021 | C53: 279477000 | D53: 968673445.6 | E53: 367098053 | F53: 96156144 | G53: 9.162725915 | H53: 881052392.5
B54: 2022 | C54: 321398000 | D54: 340707436.9 | E54: 502627083.7 | F54: 97456833 | G54: 1.636399915 | H54: 159478353.2
B55: 2023 | C55: 311360000 | D55: 328846067.2 | E55: 482449615.8 | H55: 157756451.4

Sheet Recaudación (hidden)
C1: Recaudación IEPS bebidad alcoholicas (mdp)
C2: Cerveza | D2: Bebidas alcoholicas
B3: 2018 | C3: 37646 | D3: 15958.3
B4: 2019 | C4: 41851.5 | D4: 15509.8
B5: 2020 | C5: 34957.4 | D5: 17354.7
B6: 2021 | C6: 37497.4 | D6: 19897.9
B7: 2022 | C7: 44064.7 | D7: 23985.1
B8: 2023 | C8: 48983 | D8: 24703.9
B9: Fuente: | C9: https://www.finanzaspublicas.hacienda.gob.mx/es/Finanzas_Publicas/Informes_al_Congreso_de_la_Union
C10: Cuarto trimestre por año/ Anexo de Finanzas Públicas/ II. Indicadores de Recaudación

Sheet Parámetros
G1: Cantidades CNA | J1: Impuestos
B2: Precio ajustado | C2: Cantidad CNA | D2: Valor Mercado estimado | E2: SOM_MQ | F2: SOM_MV | G2: % aprox de alcohol | H2: tasa promedio de IEPS | I2: Recaudación
A3: Cerveza | B3: =GETPIVOTDATA("Precio promedio ajustado",'TD_precios promedio'!$A$3,"Clasificación CIEP","Cerveza") -> 45.70935507 | C3: =ConsumoCNA!C14 -> 8037230089 | D3: =B3*C3 -> 3.673766039e+11 | E3: =C3/SUM($C$3:$C$5) -> 0.9657306903 | F3: =D3/SUM($D$3:$D$5) -> 0.800286353 | G3: 3.5-15 grados | H3: 0.265 | I3: =Recaudación!C8*1000000 -> 48983000000
A4: Fermentados | B4: =GETPIVOTDATA("Precio promedio ajustado",'TD_precios promedio'!$A$3,"Clasificación CIEP","Destilados") -> 401.5693682 | C4: =ConsumoCNA!E14 -> 127447622.2 | D4: =B4*C4 -> 5.117906111e+10 | E4: =C4/SUM($C$3:$C$5) -> 0.01531374351 | F4: =D4/SUM($D$3:$D$5) -> 0.1114875137 | G4: hasta 14 grados | H4: =Simulador!C24 -> 0.265 | I4: =O11*$P$11 -> 9565112494
A5: Destilados | B5: =GETPIVOTDATA("Precio promedio ajustado",'TD_precios promedio'!$A$3,"Clasificación CIEP","Fermentados") -> 256.7297518 | C5: =ConsumoCNA!G14 -> 157756451.4 | D5: =B5*C5 -> 4.050077463e+10 | E5: =C5/SUM($C$3:$C$5) -> 0.01895556617 | F5: =D5/SUM($D$3:$D$5) -> 0.08822613329 | G5: 30-53 | H5: 0.53 | I5: =O12*P11 -> 1.513878751e+10
A7: Estado Base
A8: Parametros iniciales
B9: IVA | C9: % aprox de alcohol | D9: tasa promedio de IEPS | E9: margen ganancia | F9: Recaudación 2023 | G9: Elasticidades | H9: Elasticidades fijas | I9: margen ganancia fijo | J9: Dado que la recaudación de fermentados y destilados no se distingue en los datos presentados por la SHCP, se estima la distribución con base en el valor de mercado y la tasa advalorem del IEPS. Tomar en cuenta que hay vinos con menos de 12 grados de alcohol, por lo que pagarían a una tasa del 26.5% | M9: Auxiliares
A10: Cerveza | B10: 0.16 | C10: 3.5-15 grados | D10: 0.265 | E10: =Simulador!D14 -> 0.1438452872 | F10: =I3 -> 48983000000 | G10: =Simulador!B7 -> -0.0123 | H10: -0.0123 | I10: ='EMEC-(margen ganancia)'!$V$24 -> 0.1438452872 | M10: SOM_MV | N10: ajustextasapromedio | O10: normalizado a 100 | P10: Recaudación vinos y destilados
A11: Vinos | B11: 0.16 | C11: hasta 14 grados | D11: =Simulador!C24 -> 0.265 | E11: =Simulador!D15 -> 0.1438452872 | F11: =I4 -> 9565112494 | G11: =Simulador!B8 -> -0.0148 | H11: -0.0148 | I11: ='EMEC-(margen ganancia)'!$V$24 -> 0.1438452872 | L11: Vinos | M11: =F4/($F$4+$F$5) -> 0.5582368325 | N11: =M11*H4 -> 0.1479327606 | O11: =N11/($N$11+$N$12) -> 0.3871903827 | P11: =Recaudación!D8*1000000 -> 24703900000
A12: Destilados | B12: 0.16 | C12: 30-53 | D12: 0.53 | E12: =Simulador!D16 -> 0.1438452872 | F12: =I5 -> 1.513878751e+10 | G12: =Simulador!B9 -> -0.0148 | H12: -0.0148 | I12: ='EMEC-(margen ganancia)'!$V$24 -> 0.1438452872 | L12: Destilados | M12: =F5/($F$4+$F$5) -> 0.4417631675 | N12: =M12*H5 -> 0.2341344788 | O12: =N12/($N$11+$N$12) -> 0.6128096173
L13: Auxiliar utilizado para asumir la distribución desagregada por IEPS sobre vinos y licores
O14: Posibles tasas de vinos
N15: mayor 12 | O15: 0.3
N16: 12 o menos | O16: 0.265
A19: Parámetros económicos
B20: Precio ajustado (xL) | C20: cantidad CNA (litros) | D20: Valor Mercado (MV) | E20: SOM_MQ | F20: SOM_MV
A21: Cerveza | B21: =Simulador!B14 -> 45.70935507 | C21: =ConsumoCNA!C14 -> 8037230089 | D21: =B21*C21 -> 3.673766039e+11 | E21: =C21/SUM($C$21:$C$23) -> 0.9657306903 | F21: =D21/SUM($D$21:$D$23) -> 0.800286353
A22: Vinos | B22: =Simulador!B15 -> 401.5693682 | C22: =ConsumoCNA!E14 -> 127447622.2 | D22: =B22*C22 -> 5.117906111e+10 | E22: =C22/SUM($C$21:$C$23) -> 0.01531374351 | F22: =D22/SUM($D$21:$D$23) -> 0.1114875137
A23: Destilados | B23: =Simulador!B16 -> 256.7297518 | C23: =ConsumoCNA!G14 -> 157756451.4 | D23: =B23*C23 -> 4.050077463e+10 | E23: =C23/SUM($C$21:$C$23) -> 0.01895556617 | F23: =D23/SUM($D$21:$D$23) -> 0.08822613329
A26: Precios desglosados: Partimos del precio al consumidor y descomponemos hasta el precio de la industria | I26: Proporciones en impuestos
B27: Precio ajustado (xL) | C27: IVA | D27: Margen al comercializador | E27: Impuesto específico | F27: IEPS_AD valorem | G27: Precio industria | I27: Proporción impuestos | J27: Proporción IVA | K27: Proporción IEPS
A28: Cerveza | B28: =B21 -> 45.70935507 | C28: =B28*(0.16/1.16) -> 6.30473863 | D28: =(B28-C28)*E10/(1+E10) -> 4.955362787 | E28: 0 | F28: =(B28-C28-D28-E28)*D10/(1+D10) -> 7.216642069 | G28: =B28-SUM(C28:F28) -> 27.23261158 | H28: Cerveza | I28: =(E28+F28+C28)/B28 -> 0.2958121085 | J28: =C28/B28 -> 0.1379310345 | K28: =(E28+F28)/B28 -> 0.157881074
A29: Vinos | B29: =B22 -> 401.5693682 | C29: =B29*(0.16/1.16) -> 55.38887837 | D29: =(B29-C29)*E11/(1+E11) -> 43.53423714 | E29: 0 | F29: =(B29-C29-D29-E29)*D11/(1+D11) -> 63.40020312 | G29: =B29-SUM(C29:F29) -> 239.2460495 | H29: Vinos | I29: =(E29+F29+C29)/B29 -> 0.2958121085 | J29: =C29/B29 -> 0.1379310345 | K29: =(E29+F29)/B29 -> 0.157881074
A30: Destilados | B30: =B23 -> 256.7297518 | C30: =B30*(0.16/1.16) -> 35.41100025 | D30: =(B30-C30)*E12/(1+E12) -> 27.83213757 | E30: 0 | F30: =(B30-C30-D30-E30)*D12/(1+D12) -> 67.02477479 | G30: =B30-SUM(C30:F30) -> 126.4618392 | H30: Destilados | I30: =(E30+F30+C30)/B30 -> 0.3990023529 | J30: =C30/B30 -> 0.1379310345 | K30: =(E30+F30)/B30 -> 0.2610713184
B33: Simulador en estado base: con base en las estimaciones del precio y la cantidad (CNA) estimamos una recaudación y aplicamos una tasa de ajuste.
B34: Valor mercado | C34: Ingreso_comercializadoras | D34: REC_IVA | E34: REC_específico | F34: REC_advalorem | G34: tasa de ajuste
A35: Cerveza | B35: =B28*C21 -> 3.673766039e+11 | C35: =B35*E10 -> 5.284539311e+10 | D35: =C28*C21 -> 5.067263502e+10 | E35: =C21*E28 -> 0 | F35: =C21*F28 -> 5.800181278e+10 | G35: =I3/(E35+F35) -> 0.8445080878 | H35: =F35*G35 -> 48983000000
A36: Vinos | B36: =B29*C22 -> 5.117906111e+10 | C36: =B36*E11 -> 7361866746 | D36: =C29*C22 -> 7059180843 | E36: =C22*E29 -> 0 | F36: =C22*F29 -> 8080205133 | G36: =I4/(E36+F36) -> 1.183770998 | H36: =F36*G36 -> 9565112494
A37: Destilados | B37: =B30*C23 -> 4.050077463e+10 | C37: =B37*E12 -> 5825845560 | D37: =C30*C23 -> 5586313742 | E37: =C23*E30 -> 0 | F37: =C23*F30 -> 1.057359063e+10 | G37: =I5/(E37+F37) -> 1.431754646 | H37: =F37*G37 -> 1.513878751e+10
A39: Simulación
A42: Parámetros interactivos: en esta sección se modifican los parámetros con base en las opciones de la pestaña del simulador. (no editar)
B43: IVA | C43: % aprox de alcohol | D43: tasa promedio de IEPS | E43: margen ganancia | F43: Recaudación 2023 | G43: LUMPSUM x litro alcohol | H43: Supuesto de % alcohol | I43: Impuesto específico | J43: Opción elegida | K43: Trago estandar L | M43: Impuesto específico | N43: Opción elegida | O43: Impuesto específico | P43: Opción elegida
A44: Cerveza | B44: 0.16 | C44: 3.5-15 grados | D44: =Simulador!G7 -> 0.265 | E44: =Simulador!D14 -> 0.1438452872 | F44: =F10 -> 48983000000 | G44: =I44+M44+O44 -> 0 | H44: 0.06 | I44: =IF(J44=$R$46,Simulador!H7*H44,IF(J44=$R$45,Simulador!H7,IF(J44=$R$47,Simulador!H7/K44))) -> 0 | J44: =Simulador!I7 -> litros de producto | K44: 0.33 | L44: 330 ml | M44: =IF(N44=$R$46,Simulador!J7*H44,IF(N44=$R$45,Simulador!J7,IF(N44=$R$47,Simulador!J7/K44))) -> 0 | N44: =Simulador!K7 -> litros de producto | O44: =IF(P44=$R$46,Simulador!L7*H44,IF(P44=$R$45,Simulador!L7,IF(P44=$R$47,Simulador!L7/K44))) -> 0 | P44: =Simulador!M7 -> tragos estándar de la bebida | R44: Opciones de específico
A45: Vinos | B45: 0.16 | C45: hasta 14 grados | D45: =Simulador!G8 -> 0.265 | E45: =Simulador!D15 -> 0.1438452872 | F45: =F11 -> 9565112494 | G45: =I45+M45+O45 -> 0 | H45: 0.12 | I45: =IF(J45=$R$46,Simulador!H8*H45,IF(J45=$R$45,Simulador!H8,IF(J45=$R$47,Simulador!H8/K45))) -> 0 | J45: =Simulador!I8 -> litros de producto | K45: 0.14 | L45: 140 ml | M45: =IF(N45=$R$46,Simulador!J8*H45,IF(N45=$R$45,Simulador!J8,IF(N45=$R$47,Simulador!J8/K45))) -> 0 | N45: =Simulador!K8 -> litros de alcohol puro | O45: =IF(P45=$R$46,Simulador!L8*H45,IF(P45=$R$45,Simulador!L8,IF(P45=$R$47,Simulador!L8/K45))) -> 0 | P45: =Simulador!M8 -> tragos estándar de la bebida | R45: litros de producto
A46: Destilados | B46: 0.16 | C46: 30-53 | D46: =Simulador!G9 -> 0.53 | E46: =Simulador!D16 -> 0.1438452872 | F46: =F12 -> 1.513878751e+10 | G46: =I46+M46+O46 -> 0 | H46: 0.415 | I46: =IF(J46=$R$46,Simulador!H9*H46,IF(J46=$R$45,Simulador!H9,IF(J46=$R$47,Simulador!H9/K46))) -> 0 | J46: =Simulador!I9 -> litros de producto | K46: 0.4 | L46: 40 ml | M46: =IF(N46=$R$46,Simulador!J9*H46,IF(N46=$R$45,Simulador!J9,IF(N46=$R$47,Simulador!J9/K46))) -> 0 | N46: =Simulador!K9 -> litros de alcohol puro | O46: =IF(P46=$R$46,Simulador!L9*H46,IF(P46=$R$45,Simulador!L9,IF(P46=$R$47,Simulador!L9/K46))) -> 0 | P46: =Simulador!M9 -> tragos estándar de la bebida | R46: litros de alcohol puro
R47: tragos estándar de la bebida
A53: Resultados económicos: con base en el cambio en precios se estima una nueva cantidad demandada.
B54: Precio ajustado (xL) | C54: var_precio_original | D54: Elasticidad (exógena) | E54: Cambio en ventas (Q) | F54: cantidad CNA (litros) | G54: Valor Mercado (MV) | H54: SOM_MQ | I54: SOM_MV
A55: Cerveza | B55: =B62 -> 45.70935507 | C55: =B55/B21-1 -> 0 | D55: =Simulador!B7 -> -0.0123 | E55: =C55*100*D55 -> 0 | F55: =C21*(1+E55) -> 8037230089 | G55: =B55*F55 -> 3.673766039e+11 | H55: =F55/SUM($F$55:$F$57) -> 0.9657306903 | I55: =G55/SUM($G$55:$G$57) -> 0.800286353
A56: Vinos | B56: =B63 -> 401.5693682 | C56: =B56/B22-1 -> 0 | D56: =Simulador!B8 -> -0.0148 | E56: =C56*100*D56 -> 0 | F56: =C22*(1+E56) -> 127447622.2 | G56: =B56*F56 -> 5.117906111e+10 | H56: =F56/SUM($F$55:$F$57) -> 0.01531374351 | I56: =G56/SUM($G$55:$G$57) -> 0.1114875137
A57: Destilados | B57: =B64 -> 256.7297518 | C57: =B57/B23-1 -> 0 | D57: =Simulador!B9 -> -0.0148 | E57: =C57*100*D57 -> 0 | F57: =C23*(1+E57) -> 157756451.4 | G57: =B57*F57 -> 4.050077463e+10 | H57: =F57/SUM($F$55:$F$57) -> 0.01895556617 | I57: =G57/SUM($G$55:$G$57) -> 0.08822613329
A60: Precios desglosados: a diferencia del estado base, aquí partimos del precio de la industria y aplicamos las nuevas medidas fiscales hasta conseguir el precio del consumidor. | I60: Proporciones en impuestos
B61: Precio ajustado (xL) | C61: IVA | D61: Margen al comercializador | E61: Impuesto específico | F61: IEPS_AD valorem | G61: Precio industria | I61: Proporción impuestos | J61: Proporción IVA | K61: Proporción IEPS
A62: Cerveza | B62: =SUM(C62:G62) -> 45.70935507 | C62: =(D62+F62+G62+E62)*0.16 -> 6.30473863 | D62: =(G62+F62+E62)*E44 -> 4.955362787 | E62: =G44 -> 0 | F62: =G62*D44 -> 7.216642069 | G62: =G28 -> 27.23261158 | H62: Cerveza | I62: =(E62+F62+C62)/B62 -> 0.2958121085 | J62: =C62/B62 -> 0.1379310345 | K62: =(E62+F62)/B62 -> 0.157881074
A63: Vinos | B63: =SUM(C63:G63) -> 401.5693682 | C63: =(D63+F63+G63+E63)*0.16 -> 55.38887837 | D63: =(G63+F63+E63)*E45 -> 43.53423714 | E63: =G45 -> 0 | F63: =G63*D45 -> 63.40020312 | G63: =G29 -> 239.2460495 | H63: Vinos | I63: =(E63+F63+C63)/B63 -> 0.2958121085 | J63: =C63/B63 -> 0.1379310345 | K63: =(E63+F63)/B63 -> 0.157881074
A64: Destilados | B64: =SUM(C64:G64) -> 256.7297518 | C64: =(D64+F64+G64+E64)*0.16 -> 35.41100025 | D64: =(G64+F64+E64)*E46 -> 27.83213757 | E64: =G46 -> 0 | F64: =G64*D46 -> 67.02477479 | G64: =G30 -> 126.4618392 | H64: Destilados | I64: =(E64+F64+C64)/B64 -> 0.3990023529 | J64: =C64/B64 -> 0.1379310345 | K64: =(E64+F64)/B64 -> 0.2610713184
A66: Con base en la nueva cantidad demandanda y los impuestos calculados mediante los parámetros utilizados por el usuario se calcula la nueva recaudación.
B67: Valor mercado | C67: Ingreso_comercializadoras | D67: REC_IVA | E67: REC_específico | F67: REC_advalorem | G67: ajuste | H67: Recaudación IEPS nueva | I67: Diferencia
A68: Cerveza | B68: =B62*G55 -> 1.679254763e+13 | C68: =B68*E44 -> 2.415528838e+12 | D68: =C62*F55 -> 5.067263502e+10 | E68: =F55*E62 -> 0 | F68: =F55*F62 -> 5.800181278e+10 | G68: =G35 -> 0.8445080878 | H68: =(E68+F68)*G68 -> 4.8983e+10 | I68: =H68-H35 -> 0
A69: Vinos | B69: =B63*G56 -> 2.055194323e+13 | C69: =B69*E45 -> 2.956300178e+12 | D69: =C63*F56 -> 7059180843 | E69: =F56*E63 -> 0 | F69: =F56*F63 -> 8080205133 | G69: =G36 -> 1.183770998 | H69: =(E69+F69)*G69 -> 9565112494 | I69: =H69-H36 -> 0
A70: Destilados | B70: =B64*G57 -> 1.039775382e+13 | C70: =B70*E46 -> 1.495667885e+12 | D70: =C64*F57 -> 5586313742 | E70: =F57*E64 -> 0 | F70: =F57*F64 -> 1.057359063e+10 | G70: =G37 -> 1.431754646 | H70: =(E70+F70)*G70 -> 1.513878751e+10 | I70: =H70-H37 -> 0
A72: Fuente para trago estándar: | B72: https://www.niaaa.nih.gov/alcohols-effects-health/overview-alcohol-consumption/what-standard-drink

Sheet Simulador
A1: Parámetros económicos | F1: Te damos la bienvenida al simulador fiscal sobre impuestos al alcohol diseñado por el Centro de Investigación Económica y Presupuestaria (CIEP). Esta herramienta permite realizar estimaciones sobre el impacto fiscal y económico sobre distintos escenarios tributarios. Esta versión del simulador permite realizar modificaciones tributarias sobre la tasa exclusiva o cuota específica del Impuesto Especial sobre Bienes y Servicios (IEPS). Respecto al componente específico, se puede aplicar sobre la medida de trago estándar de la bebida, litro de alcohol puro o litro de producto. Asimismo, el simulador ofrece interpretaciones sobre las propuestas realizadas. ¡Esperamos te sea de utilidad!
K4: Celdas editables por el usuario
A5: Parámetros exógenos | F5: Paso 1: Parámetros Fiscales
B6: Elasticidad | C6: Fuente | G6: Tasa Ad valorem del IEPS | H6: Impuesto específico (recomendado por litro alcohol puro) | I6: Impuesto específico aplicado para | J6: Impuesto específico (recomendado por litro alcohol puro) | K6: Impuesto específico aplicado para | L6: Impuesto específico (recomendado por litro alcohol puro) | M6: Impuesto específico aplicado para | N6: Interpretación del impuesto específico
A7: Cerveza | B7: =Parámetros!H10 -> -0.0123 | C7: Horacio Catalán and Emmanuel Moreno, 2016 | F7: Cerveza | G7: =Parámetros!D10 -> 0.265 | H7: 0 | I7: litros de producto | J7: 0 | K7: litros de producto | L7: 0 | M7: tragos estándar de la bebida | N7: ="En total se aplicarán $"&ROUND(Parámetros!G44,1)&" por litro comercializado (" &IF(H7<>0,"$ "&ROUND(Parámetros!I44,1)&" por los "&I7&", ","$0 por los "&I7&", " )&" "&IF(J7<>0,"$"&ROUND(Parámetros!M44,1)&" por los "&K7&" ", "$0 por los "&K7&" " )&" "&IF(L7<>0,"y $"&ROUND(Parámetros!O44,1)&" por los "&M7, "y $0 por los "&M7 )&")." -> En total se aplicarán $0 por litro comercializado ($0 por los litros de producto, $0 por los litros de producto y $0 por los tragos estándar de la bebida).
A8: Vinos y fermentados | B8: =Parámetros!H11 -> -0.0148 | C8: Horacio Catalán and Emmanuel Moreno, 2016 | F8: Vinos y fermentados | G8: =Parámetros!D11 -> 0.265 | H8: 0 | I8: litros de producto | J8: 0 | K8: litros de alcohol puro | L8: 0 | M8: tragos estándar de la bebida | N8: ="En total se aplicarán $"&ROUND(Parámetros!G45,1)&" por litro comercializado (" &IF(H8<>0,"$ "&ROUND(Parámetros!I45,1)&" por los "&I8&", ","$0 por los "&I8&", " )&" "&IF(J8<>0,"$"&ROUND(Parámetros!M45,1)&" por los "&K8&" ", "$0 por los "&K8&" " )&" "&IF(L8<>0,"y $"&ROUND(Parámetros!O45,1)&" por los "&M8, "y $0 por los "&M8 )&")." -> En total se aplicarán $0 por litro comercializado ($0 por los litros de producto, $0 por los litros de alcohol puro y $0 por los tragos estándar de la bebida).
A9: Destilados | B9: =Parámetros!H12 -> -0.0148 | C9: Horacio Catalán and Emmanuel Moreno, 2016 | F9: Destilados | G9: =Parámetros!D12 -> 0.53 | H9: 0 | I9: litros de producto | J9: 0 | K9: litros de alcohol puro | L9: 0 | M9: tragos estándar de la bebida | N9: ="En total se aplicarán $"&ROUND(Parámetros!G46,1)&" por litro comercializado (" &IF(H9<>0,"$ "&ROUND(Parámetros!I46,1)&" por los "&I9&", ","$0 por los "&I9&", " )&" "&IF(J9<>0,"$"&ROUND(Parámetros!M46,1)&" por los "&K9&" ", "$0 por los "&K9&" " )&" "&IF(L9<>0,"y $"&ROUND(Parámetros!O46,1)&" por los "&M9, "y $0 por los "&M9 )&")." -> En total se aplicarán $0 por litro comercializado ($0 por los litros de producto, $0 por los litros de alcohol puro y $0 por los tragos estándar de la bebida).
A12: Parámetros Económicos Calculados | G12: Paso 2: Estimación sobre resultados recaudatorios
B13: Precio (p) | C13: Cantidad (Litro) | D13: Margen de ganancia de la industria minorista | G13: Recaudación (mdp) | H13: Recaudación nueva (mdp) | I13: Var %
A14: Cerveza | B14: =Parámetros!B3 -> 45.70935507 | C14: =Parámetros!C21 -> 8037230089 | D14: =Parámetros!I10 -> 0.1438452872 | F14: Cerveza | G14: =D23/1000000 -> 48983 | H14: =Parámetros!H68/1000000 -> 48983 | I14: =H14/G14-1 -> 0
A15: Vinos y fermentados | B15: =Parámetros!B4 -> 401.5693682 | C15: =Parámetros!C22 -> 127447622.2 | D15: =Parámetros!I11 -> 0.1438452872 | F15: Vinos y fermentados | G15: =D24/1000000 -> 9565.112494 | H15: =Parámetros!H69/1000000 -> 9565.112494 | I15: =H15/G15-1 -> 0
A16: Destilados | B16: =Parámetros!B5 -> 256.7297518 | C16: =Parámetros!C23 -> 157756451.4 | D16: =Parámetros!I12 -> 0.1438452872 | F16: Destilados | G16: =D25/1000000 -> 15138.78751 | H16: =Parámetros!H70/1000000 -> 15138.78751 | I16: =H16/G16-1 -> 0
A18: Fuente | B18: Estimado por CIEP con información de los precios promedio del INPC publicado por INEGI | C18: Estimado por el CIEP con información de la EMIM (INEGI) y el Cubo de Información de Comercio Exterior (Banxico). | D18: Encuesta Mensual sobre Empresas Comerciales (EMEC) | G18: Paso 3: Estructura de Precios
F19: Concepto | G19: Cerveza | I19: Vinos y fermentados | K19: Destilados
G20: Escenario 2023 | H20: Simulación | I20: Escenario 2023 | J20: Simulación | K20: Escenario 2023 | L20: Simulación
A21: Parámetros Fiscales | F21: Precio en pesos | G21: =Parámetros!B28 -> 45.70935507 | H21: =Parámetros!B62 -> 45.70935507 | I21: =Parámetros!B29 -> 401.5693682 | J21: =Parámetros!B63 -> 401.5693682 | K21: =Parámetros!B30 -> 256.7297518 | L21: =Parámetros!B64 -> 256.7297518
B22: %alcohol | C22: Tasa IEPS | D22: Recaudación 2023 | F22: IVA | G22: =Parámetros!C28 -> 6.30473863 | H22: =Parámetros!C62 -> 6.30473863 | I22: =Parámetros!C29 -> 55.38887837 | J22: =Parámetros!C63 -> 55.38887837 | K22: =Parámetros!C30 -> 35.41100025 | L22: =Parámetros!C64 -> 35.41100025
A23: Cerveza | B23: =Parámetros!H44 -> 0.06 | C23: 0.265 | D23: =Parámetros!I3 -> 48983000000 | F23: Margen de ganancia | G23: =Parámetros!D28 -> 4.955362787 | H23: =Parámetros!D62 -> 4.955362787 | I23: =Parámetros!D29 -> 43.53423714 | J23: =Parámetros!D63 -> 43.53423714 | K23: =Parámetros!D30 -> 27.83213757 | L23: =Parámetros!D64 -> 27.83213757
A24: Vinos y fermentados | B24: =Parámetros!H45 -> 0.12 | C24: 0.265 | D24: =Parámetros!I4 -> 9565112494 | F24: Impuesto específico | G24: =Parámetros!E28 -> 0 | H24: =Parámetros!E62 -> 0 | I24: =Parámetros!E29 -> 0 | J24: =Parámetros!E63 -> 0 | K24: =Parámetros!E30 -> 0 | L24: =Parámetros!E64 -> 0
A25: Destilados | B25: =Parámetros!H46 -> 0.415 | C25: =Parámetros!D46 -> 0.53 | D25: =Parámetros!I5 -> 1.513878751e+10 | F25: IEPS Ad valorem | G25: =Parámetros!F28 -> 7.216642069 | H25: =Parámetros!F62 -> 7.216642069 | I25: =Parámetros!F29 -> 63.40020312 | J25: =Parámetros!F63 -> 63.40020312 | K25: =Parámetros!F30 -> 67.02477479 | L25: =Parámetros!F64 -> 67.02477479
A26: Fuente | B26: Supuesto | C26: LIEPS | D26: SHCP | F26: Precio industria | G26: =Parámetros!G28 -> 27.23261158 | H26: =Parámetros!G62 -> 27.23261158 | I26: =Parámetros!G29 -> 239.2460495 | J26: =Parámetros!G63 -> 239.2460495 | K26: =Parámetros!G30 -> 126.4618392 | L26: =Parámetros!G64 -> 126.4618392
B29: Tasa de ajuste | G29: Paso 4: Resultados Económicos
A30: Cerveza | B30: 0.06 | G30: Precio base | H30: Precio simulado | I30: Cantidad base (millones L) | J30: Cantidad simulada (millones L)
A31: Vinos | B31: =Parámetros!G36 -> 1.183770998 | F31: Cerveza | G31: =Parámetros!B28 -> 45.70935507 | H31: =Parámetros!B62 -> 45.70935507 | I31: =Parámetros!C21/1000000 -> 8037.230089 | J31: =Parámetros!F55/1000000 -> 8037.230089
A32: Destilados | B32: =Parámetros!G37 -> 1.431754646 | F32: Vinos y fermentados | G32: =Parámetros!B29 -> 401.5693682 | H32: =Parámetros!B63 -> 401.5693682 | I32: =Parámetros!C22/1000000 -> 127.4476222 | J32: =Parámetros!F56/1000000 -> 127.4476222
F33: Destilados | G33: =Parámetros!B30 -> 256.7297518 | H33: =Parámetros!B64 -> 256.7297518 | I33: =Parámetros!C23/1000000 -> 157.7564514 | J33: =Parámetros!F57/1000000 -> 157.7564514
F35: Paso 5: Interpretación
F36: Cerveza | G36: ="Dado que el precio incrementó en "&ROUND(Parámetros!C55*100,1)&"%, la cantidad comercializada disminuyó en "&ROUND(Parámetros!E55*100,1)&"%. Asimismo, de los $" &ROUND(Parámetros!B62,1)&" de precio final, el "&ROUND(Parámetros!K62*100,1)&"% corresponde al IEPS." -> Dado que el precio incrementó en 0%, la cantidad comercializada disminuyó en 0%. Asimismo, de los $45.7 de precio final, el 15.8% corresponde al IEPS. | N36: ="La recaudación por IEPS al alcohol en "&F31&IF(I14>=0,"incrementó en "&ROUND(I14*100,1)&"%.","disminuyó en "&ROUND(I14*100,1)&"%.") -> La recaudación por IEPS al alcohol en Cerveza incrementó en 0%.
F37: Vinos y fermentados | G37: ="Dado que el precio incrementó en "&ROUND(Parámetros!C56*100,1)&"%, la cantidad comercializada disminuyó en "&ROUND(Parámetros!E56*100,1)&"%. Asimismo, de los $"&ROUND(Parámetros!B63,1)&" de precio final, el "&ROUND(Parámetros!K63*100,1)&"% corresponde al IEPS." -> Dado que el precio incrementó en 0%, la cantidad comercializada disminuyó en 0%. Asimismo, de los $401.6 de precio final, el 15.8% corresponde al IEPS. | N37: ="La recaudación por IEPS al alcohol en "&F32&IF(I15>=0," incrementó en "&ROUND(I15*100,1)&"%.","disminuyó en "&ROUND(I15*100,1)&"%.") -> La recaudación por IEPS al alcohol en Vinos y fermentados incrementó en 0%.
F38: Destilados | G38: ="Dado que el precio incrementó en "&ROUND(Parámetros!C57*100,1)&"%, la cantidad comercializada disminuyó en "&ROUND(Parámetros!E57*100,1)&"%. Asimismo, de los $"&ROUND(Parámetros!B64,1)&" de precio final, el "&ROUND(Parámetros!K64*100,1)&"% corresponde al IEPS." -> Dado que el precio incrementó en 0%, la cantidad comercializada disminuyó en 0%. Asimismo, de los $256.7 de precio final, el 26.1% corresponde al IEPS. | N38: ="La recaudación por IEPS al alcohol en "&F33&IF(I16>=0,"incrementó en "&ROUND(I16*100,1)&"%.","disminuyó en "&ROUND(I16*100,1)&"%.") -> La recaudación por IEPS al alcohol en Destilados incrementó en 0%.
F42: Nota: En caso de requerir editar el valor de las elasticidades, precios promedio o margen de ganancia del comercializador, mostrar las columnas A:D
